{"text_format":"1","workbook":"xlsx","n_sheets":3,"sheets":["出場選手 データ入力・貼付","採点票(作成画面)","採点票(印刷画面)"],"not_rendered":{"charts":0,"images":5,"macros":1,"external_links":0,"defined_names":2,"comments":0,"pivot_tables":0},"unopened":[],"bounds":{"document_bytes":16777216,"sheet_cells":100000,"rows_first":2000,"rows_last":500,"rows_between":2000,"halvings":0,"cell_chars":16384,"cell_head_chars":4096},"cells_cut":0,"cells_raw":0,"read":"whole","date_system":"1900"}

{"sheet":"出場選手 データ入力・貼付","index":0,"n_rows":313,"n_cols":10,"rows_kept":313,"cut":false,"hidden":false,"merged":[[1,1,1,4],[47,12,47,13]]}
[]
[null,"出場選手一覧"]
[null,"NO.","選手名","学校名","NO."]
[null,null,null,null,null,null,{"$f":"SUBSTITUTE(SUBSTITUTE(D4,\"(\",\"\"),\")\",\"\")","v":""}]
[null,null,null,null,null,null,{"$f":"SUBSTITUTE(SUBSTITUTE(D5,\"(\",\"\"),\")\",\"\")","v":""},null,null,{"$f":"SUBSTITUTE(SUBSTITUTE(D5,\"(\",\"\"),\")\",\"\")","v":""}]
[null,null,null,null,null,null,"",null,null,{"$f":"SUBSTITUTE(SUBSTITUTE(D6,\"(\",\"\"),\")\",\"\")","v":""}]
[null,null,null,null,null,null,"",null,null,""]
[null,null,null,null,null,null,"",null,null,""]
[null,null,null,null,null,null,"",null,null,""]
[null,null,null,null,null,null,"",null,null,""]
[null,null,null,null,null,null,"",null,null,""]
[null,null,null,null,null,null,"",null,null,""]
[null,null,null,null,null,null,"",null,null,""]
[null,null,null,null,null,null,"",null,null,""]
[null,null,null,null,null,null,"",null,null,""]
[null,null,null,null,null,null,"",null,null,""]
[null,null,null,null,null,null,"",null,null,""]
[null,null,null,null,null,null,"",null,null,""]
[null,null,null,null,null,null,"",null,null,""]
[null,null,null,null,null,null,"",null,null,""]
[null,null,null,null,null,null,"",null,null,""]
[null,null,null,null,null,null,"",null,null,""]
[null,null,null,null,null,null,"",null,null,""]
[null,null,null,null,null,null,"",null,null,""]
[null,null,null,null,null,null,"",null,null,""]
[null,null,null,null,null,null,"",null,null,""]
[null,null,null,null,null,null,"",null,null,""]
[null,null,null,null,null,null,"",null,null,""]
[null,null,null,null,null,null,"",null,null,""]
[null,null,null,null,null,null,"",null,null,""]
[null,null,null,null,null,null,"",null,null,""]
[null,null,null,null,null,null,"",null,null,""]
[null,null,null,null,null,null,"",null,null,""]
[null,null,null,null,null,null,"",null,null,""]
[null,null,null,null,null,null,"",null,null,""]
[null,null,null,null,null,null,"",null,null,""]
[null,null,null,null,null,null,"",null,null,""]
[null,null,null,null,null,null,"",null,null,""]
[null,null,null,null,null,null,"",null,null,""]
[null,null,null,null,null,null,"",null,null,""]
[null,null,null,null,null,null,"",null,null,""]
[null,null,null,null,null,null,"",null,null,""]
[null,null,null,null,null,null,"",null,null,""]
[null,null,null,null,null,null,"",null,null,""]
[null,null,null,null,null,null,"",null,null,""]
[null,null,null,null,null,null,"",null,null,""]
[null,null,null,null,null,null,"",null,null,""]
[null,null,null,null,null,null,"",null,null,""]
[null,null,null,null,null,null,"",null,null,""]
[null,null,null,null,null,null,"",null,null,""]
[null,null,null,null,null,null,"",null,null,""]
[null,null,null,null,null,null,"",null,null,""]
[null,null,null,null,null,null,"",null,null,""]
[null,null,null,null,null,null,"",null,null,""]
[null,null,null,null,null,null,"",null,null,""]
[null,null,null,null,null,null,"",null,null,""]
[null,null,null,null,null,null,"",null,null,""]
[null,null,null,null,null,null,"",null,null,""]
[null,null,null,null,null,null,"",null,null,""]
[null,null,null,null,null,null,"",null,null,""]
[null,null,null,null,null,null,"",null,null,""]
[null,null,null,null,null,null,"",null,null,""]
[null,null,null,null,null,null,"",null,null,""]
[null,null,null,null,null,null,"",null,null,""]
[null,null,null,null,null,null,"",null,null,""]
[null,null,null,null,null,null,"",null,null,""]
[null,null,null,null,null,null,"",null,null,""]
[null,null,null,null,null,null,"",null,null,""]
[null,null,null,null,null,null,{"$f":"SUBSTITUTE(SUBSTITUTE(D69,\"(\",\"\"),\")\",\"\")","v":""},null,null,""]
[null,null,null,null,null,null,"",null,null,{"$f":"SUBSTITUTE(SUBSTITUTE(D70,\"(\",\"\"),\")\",\"\")","v":""}]
[null,null,null,null,null,null,"",null,null,""]
[null,null,null,null,null,null,"",null,null,""]
[null,null,null,null,null,null,"",null,null,""]
[null,null,null,null,null,null,"",null,null,""]
[null,null,null,null,null,null,"",null,null,""]
[null,null,null,null,null,null,"",null,null,""]
[null,null,null,null,null,null,"",null,null,""]
[null,null,null,null,null,null,"",null,null,""]
[null,null,null,null,null,null,"",null,null,""]
[null,null,null,null,null,null,"",null,null,""]
[null,null,null,null,null,null,"",null,null,""]
[null,null,null,null,null,null,"",null,null,""]
[null,null,null,null,null,null,"",null,null,""]
[null,null,null,null,null,null,"",null,null,""]
[null,null,null,null,null,null,"",null,null,""]
[null,null,null,null,null,null,"",null,null,""]
[null,null,null,null,null,null,"",null,null,""]
[null,null,null,null,null,null,"",null,null,""]
[null,null,null,null,null,null,"",null,null,""]
[null,null,null,null,null,null,"",null,null,""]
[null,null,null,null,null,null,"",null,null,""]
[null,null,null,null,null,null,"",null,null,""]
[null,null,null,null,null,null,"",null,null,""]
[null,null,null,null,null,null,"",null,null,""]
[null,null,null,null,null,null,"",null,null,""]
[null,null,null,null,null,null,"",null,null,""]
[null,null,null,null,null,null,"",null,null,""]
[null,null,null,null,null,null,"",null,null,""]
[null,null,null,null,null,null,"",null,null,""]
[null,null,null,null,null,null,"",null,null,""]
[null,null,null,null,null,null,"",null,null,""]
[null,null,null,null,null,null,"",null,null,""]
[null,null,null,null,null,null,"",null,null,""]
[null,null,null,null,null,null,"",null,null,""]
[null,null,null,null,null,null,"",null,null,""]
[null,null,null,null,null,null,"",null,null,""]
[null,null,null,null,null,null,"",null,null,""]
[null,null,null,null,null,null,"",null,null,""]
[null,null,null,null,null,null,"",null,null,""]
[null,null,null,null,null,null,"",null,null,""]
[null,null,null,null,null,null,"",null,null,""]
[null,null,null,null,null,null,"",null,null,""]
[null,null,null,null,null,null,"",null,null,""]
[null,null,null,null,null,null,"",null,null,""]
[null,null,null,null,null,null,"",null,null,""]
[null,null,null,null,null,null,"",null,null,""]
[null,null,null,null,null,null,"",null,null,""]
[null,null,null,null,null,null,"",null,null,""]
[null,null,null,null,null,null,"",null,null,""]
[null,null,null,null,null,null,"",null,null,""]
[null,null,null,null,null,null,"",null,null,""]
[null,null,null,null,null,null,"",null,null,""]
[null,null,null,null,null,null,"",null,null,""]
[null,null,null,null,null,null,"",null,null,""]
[null,null,null,null,null,null,"",null,null,""]
[null,null,null,null,null,null,"",null,null,""]
[null,null,null,null,null,null,"",null,null,""]
[null,null,null,null,null,null,"",null,null,""]
[null,null,null,null,null,null,"",null,null,""]
[null,null,null,null,null,null,"",null,null,""]
[null,null,null,null,null,null,"",null,null,""]
[null,null,null,null,null,null,"",null,null,""]
[null,null,null,null,null,null,{"$f":"SUBSTITUTE(SUBSTITUTE(D133,\"(\",\"\"),\")\",\"\")","v":""},null,null,""]
[null,null,null,null,null,null,"",null,null,{"$f":"SUBSTITUTE(SUBSTITUTE(D134,\"(\",\"\"),\")\",\"\")","v":""}]
[null,null,null,null,null,null,"",null,null,""]
[null,null,null,null,null,null,"",null,null,""]
[null,null,null,null,null,null,"",null,null,""]
[null,null,null,null,null,null,"",null,null,""]
[null,null,null,null,null,null,"",null,null,""]
[null,null,null,null,null,null,"",null,null,""]
[null,null,null,null,null,null,"",null,null,""]
[null,null,null,null,null,null,"",null,null,""]
[null,null,null,null,null,null,"",null,null,""]
[null,null,null,null,null,null,"",null,null,""]
[null,null,null,null,null,null,"",null,null,""]
[null,null,null,null,null,null,"",null,null,""]
[null,null,null,null,null,null,"",null,null,""]
[null,null,null,null,null,null,"",null,null,""]
[null,null,null,null,null,null,"",null,null,""]
[null,null,null,null,null,null,"",null,null,""]
[null,null,null,null,null,null,"",null,null,""]
[null,null,null,null,null,null,"",null,null,""]
[null,null,null,null,null,null,"",null,null,""]
[null,null,null,null,null,null,"",null,null,""]
[null,null,null,null,null,null,"",null,null,""]
[null,null,null,null,null,null,"",null,null,""]
[null,null,null,null,null,null,"",null,null,""]
[null,null,null,null,null,null,"",null,null,""]
[null,null,null,null,null,null,"",null,null,""]
[null,null,null,null,null,null,"",null,null,""]
[null,null,null,null,null,null,"",null,null,""]
[null,null,null,null,null,null,"",null,null,""]
[null,null,null,null,null,null,"",null,null,""]
[null,null,null,null,null,null,"",null,null,""]
[null,null,null,null,null,null,"",null,null,""]
[null,null,null,null,null,null,"",null,null,""]
[null,null,null,null,null,null,"",null,null,""]
[null,null,null,null,null,null,"",null,null,""]
[null,null,null,null,null,null,"",null,null,""]
[null,null,null,null,null,null,"",null,null,""]
[null,null,null,null,null,null,"",null,null,""]
[null,null,null,null,null,null,"",null,null,""]
[null,null,null,null,null,null,"",null,null,""]
[null,null,null,null,null,null,"",null,null,""]
[null,null,null,null,null,null,"",null,null,""]
[null,null,null,null,null,null,"",null,null,""]
[null,null,null,null,null,null,"",null,null,""]
[null,null,null,null,null,null,"",null,null,""]
[null,null,null,null,null,null,"",null,null,""]
[null,null,null,null,null,null,"",null,null,""]
[null,null,null,null,null,null,"",null,null,""]
[null,null,null,null,null,null,"",null,null,""]
[null,null,null,null,null,null,"",null,null,""]
[null,null,null,null,null,null,"",null,null,""]
[null,null,null,null,null,null,"",null,null,""]
[null,null,null,null,null,null,"",null,null,""]
[null,null,null,null,null,null,"",null,null,""]
[null,null,null,null,null,null,"",null,null,""]
[null,null,null,null,null,null,"",null,null,""]
[null,null,null,null,null,null,"",null,null,""]
[null,null,null,null,null,null,"",null,null,""]
[null,null,null,null,null,null,"",null,null,""]
[null,null,null,null,null,null,"",null,null,""]
[null,null,null,null,null,null,"",null,null,""]
[null,null,null,null,null,null,"",null,null,""]
[null,null,null,null,null,null,"",null,null,""]
[null,null,null,null,null,null,{"$f":"SUBSTITUTE(SUBSTITUTE(D197,\"(\",\"\"),\")\",\"\")","v":""},null,null,""]
[null,null,null,null,null,null,"",null,null,{"$f":"SUBSTITUTE(SUBSTITUTE(D198,\"(\",\"\"),\")\",\"\")","v":""}]
[null,null,null,null,null,null,"",null,null,""]
[null,null,null,null,null,null,"",null,null,""]
[null,null,null,null,null,null,"",null,null,""]
[null,null,null,null,null,null,"",null,null,""]
[null,null,null,null,null,null,"",null,null,""]
[null,null,null,null,null,null,"",null,null,""]
[null,null,null,null,null,null,"",null,null,""]
[null,null,null,null,null,null,"",null,null,""]
[null,null,null,null,null,null,"",null,null,""]
[null,null,null,null,null,null,"",null,null,""]
[null,null,null,null,null,null,"",null,null,""]
[null,null,null,null,null,null,"",null,null,""]
[null,null,null,null,null,null,"",null,null,""]
[null,null,null,null,null,null,"",null,null,""]
[null,null,null,null,null,null,"",null,null,""]
[null,null,null,null,null,null,"",null,null,""]
[null,null,null,null,null,null,"",null,null,""]
[null,null,null,null,null,null,"",null,null,""]
[null,null,null,null,null,null,"",null,null,""]
[null,null,null,null,null,null,"",null,null,""]
[null,null,null,null,null,null,"",null,null,""]
[null,null,null,null,null,null,"",null,null,""]
[null,null,null,null,null,null,"",null,null,""]
[null,null,null,null,null,null,"",null,null,""]
[null,null,null,null,null,null,"",null,null,""]
[null,null,null,null,null,null,"",null,null,""]
[null,null,null,null,null,null,"",null,null,""]
[null,null,null,null,null,null,"",null,null,""]
[null,null,null,null,null,null,"",null,null,""]
[null,null,null,null,null,null,"",null,null,""]
[null,null,null,null,null,null,"",null,null,""]
[null,null,null,null,null,null,"",null,null,""]
[null,null,null,null,null,null,"",null,null,""]
[null,null,null,null,null,null,"",null,null,""]
[null,null,null,null,null,null,"",null,null,""]
[null,null,null,null,null,null,"",null,null,""]
[null,null,null,null,null,null,"",null,null,""]
[null,null,null,null,null,null,"",null,null,""]
[null,null,null,null,null,null,"",null,null,""]
[null,null,null,null,null,null,"",null,null,""]
[null,null,null,null,null,null,"",null,null,""]
[null,null,null,null,null,null,"",null,null,""]
[null,null,null,null,null,null,"",null,null,""]
[null,null,null,null,null,null,"",null,null,""]
[null,null,null,null,null,null,"",null,null,""]
[null,null,null,null,null,null,"",null,null,""]
[null,null,null,null,null,null,"",null,null,""]
[null,null,null,null,null,null,"",null,null,""]
[null,null,null,null,null,null,"",null,null,""]
[null,null,null,null,null,null,"",null,null,""]
[null,null,null,null,null,null,"",null,null,""]
[null,null,null,null,null,null,"",null,null,""]
[null,null,null,null,null,null,"",null,null,""]
[null,null,null,null,null,null,"",null,null,""]
[null,null,null,null,null,null,"",null,null,""]
[null,null,null,null,null,null,"",null,null,""]
[null,null,null,null,null,null,"",null,null,""]
[null,null,null,null,null,null,"",null,null,""]
[null,null,null,null,null,null,"",null,null,""]
[null,null,null,null,null,null,"",null,null,""]
[null,null,null,null,null,null,"",null,null,""]
[null,null,null,null,null,null,"",null,null,""]
[null,null,null,null,null,null,{"$f":"SUBSTITUTE(SUBSTITUTE(D261,\"(\",\"\"),\")\",\"\")","v":""},null,null,""]
[null,null,null,null,null,null,"",null,null,{"$f":"SUBSTITUTE(SUBSTITUTE(D262,\"(\",\"\"),\")\",\"\")","v":""}]
[null,null,null,null,null,null,"",null,null,""]
[null,null,null,null,null,null,"",null,null,""]
[null,null,null,null,null,null,"",null,null,""]
[null,null,null,null,null,null,"",null,null,""]
[null,null,null,null,null,null,"",null,null,""]
[null,null,null,null,null,null,"",null,null,""]
[null,null,null,null,null,null,"",null,null,""]
[null,null,null,null,null,null,"",null,null,""]
[null,null,null,null,null,null,"",null,null,""]
[null,null,null,null,null,null,"",null,null,""]
[null,null,null,null,null,null,"",null,null,""]
[null,null,null,null,null,null,"",null,null,""]
[null,null,null,null,null,null,"",null,null,""]
[null,null,null,null,null,null,"",null,null,""]
[null,null,null,null,null,null,"",null,null,""]
[null,null,null,null,null,null,"",null,null,""]
[null,null,null,null,null,null,"",null,null,""]
[null,null,null,null,null,null,"",null,null,""]
[null,null,null,null,null,null,"",null,null,""]
[null,null,null,null,null,null,"",null,null,""]
[null,null,null,null,null,null,"",null,null,""]
[null,null,null,null,null,null,"",null,null,""]
[null,null,null,null,null,null,"",null,null,""]
[null,null,null,null,null,null,"",null,null,""]
[null,null,null,null,null,null,"",null,null,""]
[null,null,null,null,null,null,"",null,null,""]
[null,null,null,null,null,null,"",null,null,""]
[null,null,null,null,null,null,"",null,null,""]
[null,null,null,null,null,null,"",null,null,""]
[null,null,null,null,null,null,"",null,null,""]
[null,null,null,null,null,null,"",null,null,""]
[null,null,null,null,null,null,"",null,null,""]
[null,null,null,null,null,null,"",null,null,""]
[null,null,null,null,null,null,"",null,null,""]
[null,null,null,null,null,null,"",null,null,""]
[null,null,null,null,null,null,"",null,null,""]
[null,null,null,null,null,null,"",null,null,""]
[null,null,null,null,null,null,"",null,null,""]
[null,null,null,null,null,null,"",null,null,""]
[null,null,null,null,null,null,"",null,null,""]
[null,null,null,null,null,null,"",null,null,""]
[null,null,null,null,null,null,"",null,null,""]
[null,null,null,null,null,null,"",null,null,""]
[null,null,null,null,null,null,"",null,null,""]
[null,null,null,null,null,null,"",null,null,""]
[null,null,null,null,null,null,"",null,null,""]
[null,null,null,null,null,null,"",null,null,""]
[null,null,null,null,null,null,"",null,null,""]
[null,null,null,null,null,null,"",null,null,""]
[null,null,null,null,null,null,"",null,null,""]
[null,null,null,null,null,null,"",null,null,""]

{"sheet":"採点票(作成画面)","index":1,"n_rows":314,"n_cols":25,"rows_kept":314,"cut":false,"hidden":false,"merged":[[2,18,3,18],[2,16,3,16],[0,2,1,4],[109,1,110,3],[109,4,110,4],[109,5,109,10],[91,1,92,3],[91,4,92,4],[91,5,91,10],[93,5,93,11],[94,4,107,4],[76,4,89,4],[39,5,39,11],[40,4,53,4],[55,1,56,3],[55,4,56,4],[130,4,143,4],[111,5,111,11],[112,4,125,4],[127,1,128,3],[127,4,128,4],[127,5,127,10],[129,5,129,11],[7,3,7,4],[8,3,8,4],[75,5,75,11],[37,1,38,3],[37,4,38,4],[37,5,37,10],[22,4,35,4],[57,5,57,11],[58,4,71,4],[73,1,74,3],[73,4,74,4],[73,5,73,10],[55,5,55,10],[0,0,1,1],[3,3,3,4],[19,3,19,4],[14,3,14,4],[15,3,15,4],[16,3,16,4],[17,3,17,4],[18,3,18,4],[9,3,9,4],[10,3,10,4],[11,3,11,4],[12,3,12,4],[13,3,13,4],[4,3,4,4],[5,3,5,4],[6,3,6,4]]}
[null,null,"←【男女】選択"]
[]
[null,null,null,null,null,null,null,null,null,null,null,null,null,null,null,null,"審判\nNO.\n(入力)",null,"審判\nNO.\n(入力)"]
[null,null,"コート番号\n（入力）","対戦時点\n(選択)",null,"NO.\n(入力)",null,null,null,null,null,"NO.\n(入力)",null,null,null,null,null,null,null,null,null,null,"プロNO","選手","学校名"]
[null,1,null,null,null,null,{"$f":"IFERROR(VLOOKUP(F5,$W$5:$Y$314,2,FALSE),\"\")","v":""},"（",{"$f":"IFERROR(VLOOKUP(F5,$W$5:$Y$314,3,FALSE),\"\")","v":""},"）","－",null,{"$f":"IFERROR(VLOOKUP(L5,$W$5:$Y$314,2,FALSE),\"\")","v":""},"（",{"$f":"IFERROR(VLOOKUP(L5,$W$5:$Y$314,3,FALSE),\"\")","v":""},"）",null,{"$f":"IFERROR(VLOOKUP(Q5,$W$5:$Y$314,3,FALSE),\"\")","v":""},null,{"$f":"IFERROR(VLOOKUP(S5,$W$5:$Y$314,3,FALSE),\"\")","v":""},null,null,{"$f":"IF('出場選手 データ入力・貼付'!B4&'出場選手 データ入力・貼付'!E4=\"\",\"\",IF('出場選手 データ入力・貼付'!E4<>\"\",'出場選手 データ入力・貼付'!E4,'出場選手 データ入力・貼付'!B4))","v":""},{"$f":"IF('出場選手 データ入力・貼付'!C4<>\"\",'出場選手 データ入力・貼付'!C4,\"\")","v":""},{"$f":"IFERROR('出場選手 データ入力・貼付'!G4,\"\")","v":""}]
[null,2,null,null,null,null,"","（",{"$f":"IFERROR(VLOOKUP(F6,$W$5:$Y$314,3,FALSE),\"\")","v":""},"）","－",null,"","（",{"$f":"IFERROR(VLOOKUP(L6,$W$5:$Y$314,3,FALSE),\"\")","v":""},"）",null,{"$f":"IFERROR(VLOOKUP(Q6,$W$5:$Y$314,3,FALSE),\"\")","v":""},null,{"$f":"IFERROR(VLOOKUP(S6,$W$5:$Y$314,3,FALSE),\"\")","v":""},null,null,{"$f":"IF('出場選手 データ入力・貼付'!B5&'出場選手 データ入力・貼付'!E5=\"\",\"\",IF('出場選手 データ入力・貼付'!E5<>\"\",'出場選手 データ入力・貼付'!E5,'出場選手 データ入力・貼付'!B5))","v":""},{"$f":"IF('出場選手 データ入力・貼付'!C5<>\"\",'出場選手 データ入力・貼付'!C5,\"\")","v":""},{"$f":"IFERROR('出場選手 データ入力・貼付'!G5,\"\")","v":""}]
[null,3,null,null,null,null,"","（","","）","－",null,"","（","","）",null,"",null,"",null,null,{"$f":"IF('出場選手 データ入力・貼付'!B6&'出場選手 データ入力・貼付'!E6=\"\",\"\",IF('出場選手 データ入力・貼付'!E6<>\"\",'出場選手 データ入力・貼付'!E6,'出場選手 データ入力・貼付'!B6))","v":""},{"$f":"IF('出場選手 データ入力・貼付'!C6<>\"\",'出場選手 データ入力・貼付'!C6,\"\")","v":""},{"$f":"IFERROR('出場選手 データ入力・貼付'!G6,\"\")","v":""}]
[null,4,null,null,null,null,"","（","","）","－",null,"","（","","）",null,"",null,"",null,null,{"$f":"IF('出場選手 データ入力・貼付'!B7&'出場選手 データ入力・貼付'!E7=\"\",\"\",IF('出場選手 データ入力・貼付'!E7<>\"\",'出場選手 データ入力・貼付'!E7,'出場選手 データ入力・貼付'!B7))","v":""},{"$f":"IF('出場選手 データ入力・貼付'!C7<>\"\",'出場選手 データ入力・貼付'!C7,\"\")","v":""},{"$f":"IFERROR('出場選手 データ入力・貼付'!G7,\"\")","v":""}]
[null,5,null,null,null,null,"","（","","）","－",null,"","（","","）",null,"",null,"",null,null,{"$f":"IF('出場選手 データ入力・貼付'!B8&'出場選手 データ入力・貼付'!E8=\"\",\"\",IF('出場選手 データ入力・貼付'!E8<>\"\",'出場選手 データ入力・貼付'!E8,'出場選手 データ入力・貼付'!B8))","v":""},{"$f":"IF('出場選手 データ入力・貼付'!C8<>\"\",'出場選手 データ入力・貼付'!C8,\"\")","v":""},{"$f":"IFERROR('出場選手 データ入力・貼付'!G8,\"\")","v":""}]
[null,6,null,null,null,null,"","（","","）","－",null,"","（","","）",null,"",null,"",null,null,{"$f":"IF('出場選手 データ入力・貼付'!B9&'出場選手 データ入力・貼付'!E9=\"\",\"\",IF('出場選手 データ入力・貼付'!E9<>\"\",'出場選手 データ入力・貼付'!E9,'出場選手 データ入力・貼付'!B9))","v":""},{"$f":"IF('出場選手 データ入力・貼付'!C9<>\"\",'出場選手 データ入力・貼付'!C9,\"\")","v":""},{"$f":"IFERROR('出場選手 データ入力・貼付'!G9,\"\")","v":""}]
[null,7,null,null,null,null,"","（","","）","－",null,"","（","","）",null,"",null,"",null,null,{"$f":"IF('出場選手 データ入力・貼付'!B10&'出場選手 データ入力・貼付'!E10=\"\",\"\",IF('出場選手 データ入力・貼付'!E10<>\"\",'出場選手 データ入力・貼付'!E10,'出場選手 データ入力・貼付'!B10))","v":""},{"$f":"IF('出場選手 データ入力・貼付'!C10<>\"\",'出場選手 データ入力・貼付'!C10,\"\")","v":""},{"$f":"IFERROR('出場選手 データ入力・貼付'!G10,\"\")","v":""}]
[null,8,null,null,null,null,"","（","","）","－",null,"","（","","）",null,"",null,"",null,null,{"$f":"IF('出場選手 データ入力・貼付'!B11&'出場選手 データ入力・貼付'!E11=\"\",\"\",IF('出場選手 データ入力・貼付'!E11<>\"\",'出場選手 データ入力・貼付'!E11,'出場選手 データ入力・貼付'!B11))","v":""},{"$f":"IF('出場選手 データ入力・貼付'!C11<>\"\",'出場選手 データ入力・貼付'!C11,\"\")","v":""},{"$f":"IFERROR('出場選手 データ入力・貼付'!G11,\"\")","v":""}]
[null,9,null,null,null,null,"","（","","）","－",null,"","（","","）",null,"",null,"",null,null,{"$f":"IF('出場選手 データ入力・貼付'!B12&'出場選手 データ入力・貼付'!E12=\"\",\"\",IF('出場選手 データ入力・貼付'!E12<>\"\",'出場選手 データ入力・貼付'!E12,'出場選手 データ入力・貼付'!B12))","v":""},{"$f":"IF('出場選手 データ入力・貼付'!C12<>\"\",'出場選手 データ入力・貼付'!C12,\"\")","v":""},{"$f":"IFERROR('出場選手 データ入力・貼付'!G12,\"\")","v":""}]
[null,10,null,null,null,null,"","（","","）","－",null,"","（","","）",null,"",null,"",null,null,{"$f":"IF('出場選手 データ入力・貼付'!B13&'出場選手 データ入力・貼付'!E13=\"\",\"\",IF('出場選手 データ入力・貼付'!E13<>\"\",'出場選手 データ入力・貼付'!E13,'出場選手 データ入力・貼付'!B13))","v":""},{"$f":"IF('出場選手 データ入力・貼付'!C13<>\"\",'出場選手 データ入力・貼付'!C13,\"\")","v":""},{"$f":"IFERROR('出場選手 データ入力・貼付'!G13,\"\")","v":""}]
[null,11,null,null,null,null,"","（","","）","－",null,"","（","","）",null,"",null,"",null,null,{"$f":"IF('出場選手 データ入力・貼付'!B14&'出場選手 データ入力・貼付'!E14=\"\",\"\",IF('出場選手 データ入力・貼付'!E14<>\"\",'出場選手 データ入力・貼付'!E14,'出場選手 データ入力・貼付'!B14))","v":""},{"$f":"IF('出場選手 データ入力・貼付'!C14<>\"\",'出場選手 データ入力・貼付'!C14,\"\")","v":""},{"$f":"IFERROR('出場選手 データ入力・貼付'!G14,\"\")","v":""}]
[null,12,null,null,null,null,"","（","","）","－",null,"","（","","）",null,"",null,"",null,null,{"$f":"IF('出場選手 データ入力・貼付'!B15&'出場選手 データ入力・貼付'!E15=\"\",\"\",IF('出場選手 データ入力・貼付'!E15<>\"\",'出場選手 データ入力・貼付'!E15,'出場選手 データ入力・貼付'!B15))","v":""},{"$f":"IF('出場選手 データ入力・貼付'!C15<>\"\",'出場選手 データ入力・貼付'!C15,\"\")","v":""},{"$f":"IFERROR('出場選手 データ入力・貼付'!G15,\"\")","v":""}]
[null,13,null,null,null,null,"","（","","）","－",null,"","（","","）",null,"",null,"",null,null,{"$f":"IF('出場選手 データ入力・貼付'!B16&'出場選手 データ入力・貼付'!E16=\"\",\"\",IF('出場選手 データ入力・貼付'!E16<>\"\",'出場選手 データ入力・貼付'!E16,'出場選手 データ入力・貼付'!B16))","v":""},{"$f":"IF('出場選手 データ入力・貼付'!C16<>\"\",'出場選手 データ入力・貼付'!C16,\"\")","v":""},{"$f":"IFERROR('出場選手 データ入力・貼付'!G16,\"\")","v":""}]
[null,14,null,null,null,null,"","（","","）","－",null,"","（","","）",null,"",null,"",null,null,{"$f":"IF('出場選手 データ入力・貼付'!B17&'出場選手 データ入力・貼付'!E17=\"\",\"\",IF('出場選手 データ入力・貼付'!E17<>\"\",'出場選手 データ入力・貼付'!E17,'出場選手 データ入力・貼付'!B17))","v":""},{"$f":"IF('出場選手 データ入力・貼付'!C17<>\"\",'出場選手 データ入力・貼付'!C17,\"\")","v":""},{"$f":"IFERROR('出場選手 データ入力・貼付'!G17,\"\")","v":""}]
[null,15,null,null,null,null,"","（","","）","－",null,"","（","","）",null,"",null,"",null,null,{"$f":"IF('出場選手 データ入力・貼付'!B18&'出場選手 データ入力・貼付'!E18=\"\",\"\",IF('出場選手 データ入力・貼付'!E18<>\"\",'出場選手 データ入力・貼付'!E18,'出場選手 データ入力・貼付'!B18))","v":""},{"$f":"IF('出場選手 データ入力・貼付'!C18<>\"\",'出場選手 データ入力・貼付'!C18,\"\")","v":""},{"$f":"IFERROR('出場選手 データ入力・貼付'!G18,\"\")","v":""}]
[null,16,null,null,null,null,"","（","","）","－",null,"","（","","）",null,"",null,"",null,null,{"$f":"IF('出場選手 データ入力・貼付'!B19&'出場選手 データ入力・貼付'!E19=\"\",\"\",IF('出場選手 データ入力・貼付'!E19<>\"\",'出場選手 データ入力・貼付'!E19,'出場選手 データ入力・貼付'!B19))","v":""},{"$f":"IF('出場選手 データ入力・貼付'!C19<>\"\",'出場選手 データ入力・貼付'!C19,\"\")","v":""},{"$f":"IFERROR('出場選手 データ入力・貼付'!G19,\"\")","v":""}]
[null,null,null,null,null,null,null,null,null,null,null,null,null,null,null,null,null,null,null,null,null,null,{"$f":"IF('出場選手 データ入力・貼付'!B20&'出場選手 データ入力・貼付'!E20=\"\",\"\",IF('出場選手 データ入力・貼付'!E20<>\"\",'出場選手 データ入力・貼付'!E20,'出場選手 データ入力・貼付'!B20))","v":""},{"$f":"IF('出場選手 データ入力・貼付'!C20<>\"\",'出場選手 データ入力・貼付'!C20,\"\")","v":""},{"$f":"IFERROR('出場選手 データ入力・貼付'!G20,\"\")","v":""}]
[null,null,null,null,null,null,null,null,null,null,null,null,null,null,null,null,null,null,null,null,null,null,{"$f":"IF('出場選手 データ入力・貼付'!B21&'出場選手 データ入力・貼付'!E21=\"\",\"\",IF('出場選手 データ入力・貼付'!E21<>\"\",'出場選手 データ入力・貼付'!E21,'出場選手 データ入力・貼付'!B21))","v":""},{"$f":"IF('出場選手 データ入力・貼付'!C21<>\"\",'出場選手 データ入力・貼付'!C21,\"\")","v":""},{"$f":"IFERROR('出場選手 データ入力・貼付'!G21,\"\")","v":""}]
[null,null,null,null,null,null,null,null,null,null,null,null,null,null,null,null,null,null,null,null,null,null,{"$f":"IF('出場選手 データ入力・貼付'!B22&'出場選手 データ入力・貼付'!E22=\"\",\"\",IF('出場選手 データ入力・貼付'!E22<>\"\",'出場選手 データ入力・貼付'!E22,'出場選手 データ入力・貼付'!B22))","v":""},{"$f":"IF('出場選手 データ入力・貼付'!C22<>\"\",'出場選手 データ入力・貼付'!C22,\"\")","v":""},{"$f":"IFERROR('出場選手 データ入力・貼付'!G22,\"\")","v":""}]
[null,null,null,null,null,null,null,null,null,null,null,null,null,null,null,null,null,null,null,null,null,null,{"$f":"IF('出場選手 データ入力・貼付'!B23&'出場選手 データ入力・貼付'!E23=\"\",\"\",IF('出場選手 データ入力・貼付'!E23<>\"\",'出場選手 データ入力・貼付'!E23,'出場選手 データ入力・貼付'!B23))","v":""},{"$f":"IF('出場選手 データ入力・貼付'!C23<>\"\",'出場選手 データ入力・貼付'!C23,\"\")","v":""},{"$f":"IFERROR('出場選手 データ入力・貼付'!G23,\"\")","v":""}]
[null,null,null,null,null,null,null,null,null,null,null,null,null,null,null,null,null,null,null,null,null,null,{"$f":"IF('出場選手 データ入力・貼付'!B24&'出場選手 データ入力・貼付'!E24=\"\",\"\",IF('出場選手 データ入力・貼付'!E24<>\"\",'出場選手 データ入力・貼付'!E24,'出場選手 データ入力・貼付'!B24))","v":""},{"$f":"IF('出場選手 データ入力・貼付'!C24<>\"\",'出場選手 データ入力・貼付'!C24,\"\")","v":""},{"$f":"IFERROR('出場選手 データ入力・貼付'!G24,\"\")","v":""}]
[null,null,null,null,null,null,null,null,null,null,null,null,null,null,null,null,null,null,null,null,null,null,{"$f":"IF('出場選手 データ入力・貼付'!B25&'出場選手 データ入力・貼付'!E25=\"\",\"\",IF('出場選手 データ入力・貼付'!E25<>\"\",'出場選手 データ入力・貼付'!E25,'出場選手 データ入力・貼付'!B25))","v":""},{"$f":"IF('出場選手 データ入力・貼付'!C25<>\"\",'出場選手 データ入力・貼付'!C25,\"\")","v":""},{"$f":"IFERROR('出場選手 データ入力・貼付'!G25,\"\")","v":""}]
[null,null,null,null,null,null,null,null,null,null,null,null,null,null,null,null,null,null,null,null,null,null,{"$f":"IF('出場選手 データ入力・貼付'!B26&'出場選手 データ入力・貼付'!E26=\"\",\"\",IF('出場選手 データ入力・貼付'!E26<>\"\",'出場選手 データ入力・貼付'!E26,'出場選手 データ入力・貼付'!B26))","v":""},{"$f":"IF('出場選手 データ入力・貼付'!C26<>\"\",'出場選手 データ入力・貼付'!C26,\"\")","v":""},{"$f":"IFERROR('出場選手 データ入力・貼付'!G26,\"\")","v":""}]
[null,null,null,null,null,null,null,null,null,null,null,null,null,null,null,null,null,null,null,null,null,null,{"$f":"IF('出場選手 データ入力・貼付'!B27&'出場選手 データ入力・貼付'!E27=\"\",\"\",IF('出場選手 データ入力・貼付'!E27<>\"\",'出場選手 データ入力・貼付'!E27,'出場選手 データ入力・貼付'!B27))","v":""},{"$f":"IF('出場選手 データ入力・貼付'!C27<>\"\",'出場選手 データ入力・貼付'!C27,\"\")","v":""},{"$f":"IFERROR('出場選手 データ入力・貼付'!G27,\"\")","v":""}]
[null,null,null,null,null,null,null,null,null,null,null,null,null,null,null,null,null,null,null,null,null,null,{"$f":"IF('出場選手 データ入力・貼付'!B28&'出場選手 データ入力・貼付'!E28=\"\",\"\",IF('出場選手 データ入力・貼付'!E28<>\"\",'出場選手 データ入力・貼付'!E28,'出場選手 データ入力・貼付'!B28))","v":""},{"$f":"IF('出場選手 データ入力・貼付'!C28<>\"\",'出場選手 データ入力・貼付'!C28,\"\")","v":""},{"$f":"IFERROR('出場選手 データ入力・貼付'!G28,\"\")","v":""}]
[null,null,null,null,null,null,null,null,null,null,null,null,null,null,null,null,null,null,null,null,null,null,{"$f":"IF('出場選手 データ入力・貼付'!B29&'出場選手 データ入力・貼付'!E29=\"\",\"\",IF('出場選手 データ入力・貼付'!E29<>\"\",'出場選手 データ入力・貼付'!E29,'出場選手 データ入力・貼付'!B29))","v":""},{"$f":"IF('出場選手 データ入力・貼付'!C29<>\"\",'出場選手 データ入力・貼付'!C29,\"\")","v":""},{"$f":"IFERROR('出場選手 データ入力・貼付'!G29,\"\")","v":""}]
[null,null,null,null,null,null,null,null,null,null,null,null,null,null,null,null,null,null,null,null,null,null,{"$f":"IF('出場選手 データ入力・貼付'!B30&'出場選手 データ入力・貼付'!E30=\"\",\"\",IF('出場選手 データ入力・貼付'!E30<>\"\",'出場選手 データ入力・貼付'!E30,'出場選手 データ入力・貼付'!B30))","v":""},{"$f":"IF('出場選手 データ入力・貼付'!C30<>\"\",'出場選手 データ入力・貼付'!C30,\"\")","v":""},{"$f":"IFERROR('出場選手 データ入力・貼付'!G30,\"\")","v":""}]
[null,null,null,null,null,null,null,null,null,null,null,null,null,null,null,null,null,null,null,null,null,null,{"$f":"IF('出場選手 データ入力・貼付'!B31&'出場選手 データ入力・貼付'!E31=\"\",\"\",IF('出場選手 データ入力・貼付'!E31<>\"\",'出場選手 データ入力・貼付'!E31,'出場選手 データ入力・貼付'!B31))","v":""},{"$f":"IF('出場選手 データ入力・貼付'!C31<>\"\",'出場選手 データ入力・貼付'!C31,\"\")","v":""},{"$f":"IFERROR('出場選手 データ入力・貼付'!G31,\"\")","v":""}]
[null,null,null,null,null,null,null,null,null,null,null,null,null,null,null,null,null,null,null,null,null,null,{"$f":"IF('出場選手 データ入力・貼付'!B32&'出場選手 データ入力・貼付'!E32=\"\",\"\",IF('出場選手 データ入力・貼付'!E32<>\"\",'出場選手 データ入力・貼付'!E32,'出場選手 データ入力・貼付'!B32))","v":""},{"$f":"IF('出場選手 データ入力・貼付'!C32<>\"\",'出場選手 データ入力・貼付'!C32,\"\")","v":""},{"$f":"IFERROR('出場選手 データ入力・貼付'!G32,\"\")","v":""}]
[null,null,null,null,null,null,null,null,null,null,null,null,null,null,null,null,null,null,null,null,null,null,{"$f":"IF('出場選手 データ入力・貼付'!B33&'出場選手 データ入力・貼付'!E33=\"\",\"\",IF('出場選手 データ入力・貼付'!E33<>\"\",'出場選手 データ入力・貼付'!E33,'出場選手 データ入力・貼付'!B33))","v":""},{"$f":"IF('出場選手 データ入力・貼付'!C33<>\"\",'出場選手 データ入力・貼付'!C33,\"\")","v":""},{"$f":"IFERROR('出場選手 データ入力・貼付'!G33,\"\")","v":""}]
[null,null,null,null,null,null,null,null,null,null,null,null,null,null,null,null,null,null,null,null,null,null,{"$f":"IF('出場選手 データ入力・貼付'!B34&'出場選手 データ入力・貼付'!E34=\"\",\"\",IF('出場選手 データ入力・貼付'!E34<>\"\",'出場選手 データ入力・貼付'!E34,'出場選手 データ入力・貼付'!B34))","v":""},{"$f":"IF('出場選手 データ入力・貼付'!C34<>\"\",'出場選手 データ入力・貼付'!C34,\"\")","v":""},{"$f":"IFERROR('出場選手 データ入力・貼付'!G34,\"\")","v":""}]
[null,null,null,null,null,null,null,null,null,null,null,null,null,null,null,null,null,null,null,null,null,null,{"$f":"IF('出場選手 データ入力・貼付'!B35&'出場選手 データ入力・貼付'!E35=\"\",\"\",IF('出場選手 データ入力・貼付'!E35<>\"\",'出場選手 データ入力・貼付'!E35,'出場選手 データ入力・貼付'!B35))","v":""},{"$f":"IF('出場選手 データ入力・貼付'!C35<>\"\",'出場選手 データ入力・貼付'!C35,\"\")","v":""},{"$f":"IFERROR('出場選手 データ入力・貼付'!G35,\"\")","v":""}]
[null,null,null,null,null,null,null,null,null,null,null,null,null,null,null,null,null,null,null,null,null,null,{"$f":"IF('出場選手 データ入力・貼付'!B36&'出場選手 データ入力・貼付'!E36=\"\",\"\",IF('出場選手 データ入力・貼付'!E36<>\"\",'出場選手 データ入力・貼付'!E36,'出場選手 データ入力・貼付'!B36))","v":""},{"$f":"IF('出場選手 データ入力・貼付'!C36<>\"\",'出場選手 データ入力・貼付'!C36,\"\")","v":""},{"$f":"IFERROR('出場選手 データ入力・貼付'!G36,\"\")","v":""}]
[null,null,null,null,null,null,null,null,null,null,null,null,null,null,null,null,null,null,null,null,null,null,{"$f":"IF('出場選手 データ入力・貼付'!B37&'出場選手 データ入力・貼付'!E37=\"\",\"\",IF('出場選手 データ入力・貼付'!E37<>\"\",'出場選手 データ入力・貼付'!E37,'出場選手 データ入力・貼付'!B37))","v":""},{"$f":"IF('出場選手 データ入力・貼付'!C37<>\"\",'出場選手 データ入力・貼付'!C37,\"\")","v":""},{"$f":"IFERROR('出場選手 データ入力・貼付'!G37,\"\")","v":""}]
[null,null,null,null,null,null,null,null,null,null,null,null,null,null,null,null,null,null,null,null,null,null,{"$f":"IF('出場選手 データ入力・貼付'!B38&'出場選手 データ入力・貼付'!E38=\"\",\"\",IF('出場選手 データ入力・貼付'!E38<>\"\",'出場選手 データ入力・貼付'!E38,'出場選手 データ入力・貼付'!B38))","v":""},{"$f":"IF('出場選手 データ入力・貼付'!C38<>\"\",'出場選手 データ入力・貼付'!C38,\"\")","v":""},{"$f":"IFERROR('出場選手 データ入力・貼付'!G38,\"\")","v":""}]
[null,null,null,null,null,null,null,null,null,null,null,null,null,null,null,null,null,null,null,null,null,null,{"$f":"IF('出場選手 データ入力・貼付'!B39&'出場選手 データ入力・貼付'!E39=\"\",\"\",IF('出場選手 データ入力・貼付'!E39<>\"\",'出場選手 データ入力・貼付'!E39,'出場選手 データ入力・貼付'!B39))","v":""},{"$f":"IF('出場選手 データ入力・貼付'!C39<>\"\",'出場選手 データ入力・貼付'!C39,\"\")","v":""},{"$f":"IFERROR('出場選手 データ入力・貼付'!G39,\"\")","v":""}]
[null,null,null,null,null,null,null,null,null,null,null,null,null,null,null,null,null,null,null,null,null,null,{"$f":"IF('出場選手 データ入力・貼付'!B40&'出場選手 データ入力・貼付'!E40=\"\",\"\",IF('出場選手 データ入力・貼付'!E40<>\"\",'出場選手 データ入力・貼付'!E40,'出場選手 データ入力・貼付'!B40))","v":""},{"$f":"IF('出場選手 データ入力・貼付'!C40<>\"\",'出場選手 データ入力・貼付'!C40,\"\")","v":""},{"$f":"IFERROR('出場選手 データ入力・貼付'!G40,\"\")","v":""}]
[null,null,null,null,null,null,null,null,null,null,null,null,null,null,null,null,null,null,null,null,null,null,{"$f":"IF('出場選手 データ入力・貼付'!B41&'出場選手 データ入力・貼付'!E41=\"\",\"\",IF('出場選手 データ入力・貼付'!E41<>\"\",'出場選手 データ入力・貼付'!E41,'出場選手 データ入力・貼付'!B41))","v":""},{"$f":"IF('出場選手 データ入力・貼付'!C41<>\"\",'出場選手 データ入力・貼付'!C41,\"\")","v":""},{"$f":"IFERROR('出場選手 データ入力・貼付'!G41,\"\")","v":""}]
[null,null,null,null,null,null,null,null,null,null,null,null,null,null,null,null,null,null,null,null,null,null,{"$f":"IF('出場選手 データ入力・貼付'!B42&'出場選手 データ入力・貼付'!E42=\"\",\"\",IF('出場選手 データ入力・貼付'!E42<>\"\",'出場選手 データ入力・貼付'!E42,'出場選手 データ入力・貼付'!B42))","v":""},{"$f":"IF('出場選手 データ入力・貼付'!C42<>\"\",'出場選手 データ入力・貼付'!C42,\"\")","v":""},{"$f":"IFERROR('出場選手 データ入力・貼付'!G42,\"\")","v":""}]
[null,null,null,null,null,null,null,null,null,null,null,null,null,null,null,null,null,null,null,null,null,null,{"$f":"IF('出場選手 データ入力・貼付'!B43&'出場選手 データ入力・貼付'!E43=\"\",\"\",IF('出場選手 データ入力・貼付'!E43<>\"\",'出場選手 データ入力・貼付'!E43,'出場選手 データ入力・貼付'!B43))","v":""},{"$f":"IF('出場選手 データ入力・貼付'!C43<>\"\",'出場選手 データ入力・貼付'!C43,\"\")","v":""},{"$f":"IFERROR('出場選手 データ入力・貼付'!G43,\"\")","v":""}]
[null,null,null,null,null,null,null,null,null,null,null,null,null,null,null,null,null,null,null,null,null,null,{"$f":"IF('出場選手 データ入力・貼付'!B44&'出場選手 データ入力・貼付'!E44=\"\",\"\",IF('出場選手 データ入力・貼付'!E44<>\"\",'出場選手 データ入力・貼付'!E44,'出場選手 データ入力・貼付'!B44))","v":""},{"$f":"IF('出場選手 データ入力・貼付'!C44<>\"\",'出場選手 データ入力・貼付'!C44,\"\")","v":""},{"$f":"IFERROR('出場選手 データ入力・貼付'!G44,\"\")","v":""}]
[null,null,null,null,null,null,null,null,null,null,null,null,null,null,null,null,null,null,null,null,null,null,{"$f":"IF('出場選手 データ入力・貼付'!B45&'出場選手 データ入力・貼付'!E45=\"\",\"\",IF('出場選手 データ入力・貼付'!E45<>\"\",'出場選手 データ入力・貼付'!E45,'出場選手 データ入力・貼付'!B45))","v":""},{"$f":"IF('出場選手 データ入力・貼付'!C45<>\"\",'出場選手 データ入力・貼付'!C45,\"\")","v":""},{"$f":"IFERROR('出場選手 データ入力・貼付'!G45,\"\")","v":""}]
[null,null,null,null,null,null,null,null,null,null,null,null,null,null,null,null,null,null,null,null,null,null,{"$f":"IF('出場選手 データ入力・貼付'!B46&'出場選手 データ入力・貼付'!E46=\"\",\"\",IF('出場選手 データ入力・貼付'!E46<>\"\",'出場選手 データ入力・貼付'!E46,'出場選手 データ入力・貼付'!B46))","v":""},{"$f":"IF('出場選手 データ入力・貼付'!C46<>\"\",'出場選手 データ入力・貼付'!C46,\"\")","v":""},{"$f":"IFERROR('出場選手 データ入力・貼付'!G46,\"\")","v":""}]
[null,null,null,null,null,null,null,null,null,null,null,null,null,null,null,null,null,null,null,null,null,null,{"$f":"IF('出場選手 データ入力・貼付'!B47&'出場選手 データ入力・貼付'!E47=\"\",\"\",IF('出場選手 データ入力・貼付'!E47<>\"\",'出場選手 データ入力・貼付'!E47,'出場選手 データ入力・貼付'!B47))","v":""},{"$f":"IF('出場選手 データ入力・貼付'!C47<>\"\",'出場選手 データ入力・貼付'!C47,\"\")","v":""},{"$f":"IFERROR('出場選手 データ入力・貼付'!G47,\"\")","v":""}]
[null,null,null,null,null,null,null,null,null,null,null,null,null,null,null,null,null,null,null,null,null,null,{"$f":"IF('出場選手 データ入力・貼付'!B48&'出場選手 データ入力・貼付'!E48=\"\",\"\",IF('出場選手 データ入力・貼付'!E48<>\"\",'出場選手 データ入力・貼付'!E48,'出場選手 データ入力・貼付'!B48))","v":""},{"$f":"IF('出場選手 データ入力・貼付'!C48<>\"\",'出場選手 データ入力・貼付'!C48,\"\")","v":""},{"$f":"IFERROR('出場選手 データ入力・貼付'!G48,\"\")","v":""}]
[null,null,null,null,null,null,null,null,null,null,null,null,null,null,null,null,null,null,null,null,null,null,{"$f":"IF('出場選手 データ入力・貼付'!B49&'出場選手 データ入力・貼付'!E49=\"\",\"\",IF('出場選手 データ入力・貼付'!E49<>\"\",'出場選手 データ入力・貼付'!E49,'出場選手 データ入力・貼付'!B49))","v":""},{"$f":"IF('出場選手 データ入力・貼付'!C49<>\"\",'出場選手 データ入力・貼付'!C49,\"\")","v":""},{"$f":"IFERROR('出場選手 データ入力・貼付'!G49,\"\")","v":""}]
[null,null,null,null,null,null,null,null,null,null,null,null,null,null,null,null,null,null,null,null,null,null,{"$f":"IF('出場選手 データ入力・貼付'!B50&'出場選手 データ入力・貼付'!E50=\"\",\"\",IF('出場選手 データ入力・貼付'!E50<>\"\",'出場選手 データ入力・貼付'!E50,'出場選手 データ入力・貼付'!B50))","v":""},{"$f":"IF('出場選手 データ入力・貼付'!C50<>\"\",'出場選手 データ入力・貼付'!C50,\"\")","v":""},{"$f":"IFERROR('出場選手 データ入力・貼付'!G50,\"\")","v":""}]
[null,null,null,null,null,null,null,null,null,null,null,null,null,null,null,null,null,null,null,null,null,null,{"$f":"IF('出場選手 データ入力・貼付'!B51&'出場選手 データ入力・貼付'!E51=\"\",\"\",IF('出場選手 データ入力・貼付'!E51<>\"\",'出場選手 データ入力・貼付'!E51,'出場選手 データ入力・貼付'!B51))","v":""},{"$f":"IF('出場選手 データ入力・貼付'!C51<>\"\",'出場選手 データ入力・貼付'!C51,\"\")","v":""},{"$f":"IFERROR('出場選手 データ入力・貼付'!G51,\"\")","v":""}]
[null,null,null,null,null,null,null,null,null,null,null,null,null,null,null,null,null,null,null,null,null,null,{"$f":"IF('出場選手 データ入力・貼付'!B52&'出場選手 データ入力・貼付'!E52=\"\",\"\",IF('出場選手 データ入力・貼付'!E52<>\"\",'出場選手 データ入力・貼付'!E52,'出場選手 データ入力・貼付'!B52))","v":""},{"$f":"IF('出場選手 データ入力・貼付'!C52<>\"\",'出場選手 データ入力・貼付'!C52,\"\")","v":""},{"$f":"IFERROR('出場選手 データ入力・貼付'!G52,\"\")","v":""}]
[null,null,null,null,null,null,null,null,null,null,null,null,null,null,null,null,null,null,null,null,null,null,{"$f":"IF('出場選手 データ入力・貼付'!B53&'出場選手 データ入力・貼付'!E53=\"\",\"\",IF('出場選手 データ入力・貼付'!E53<>\"\",'出場選手 データ入力・貼付'!E53,'出場選手 データ入力・貼付'!B53))","v":""},{"$f":"IF('出場選手 データ入力・貼付'!C53<>\"\",'出場選手 データ入力・貼付'!C53,\"\")","v":""},{"$f":"IFERROR('出場選手 データ入力・貼付'!G53,\"\")","v":""}]
[null,null,null,null,null,null,null,null,null,null,null,null,null,null,null,null,null,null,null,null,null,null,{"$f":"IF('出場選手 データ入力・貼付'!B54&'出場選手 データ入力・貼付'!E54=\"\",\"\",IF('出場選手 データ入力・貼付'!E54<>\"\",'出場選手 データ入力・貼付'!E54,'出場選手 データ入力・貼付'!B54))","v":""},{"$f":"IF('出場選手 データ入力・貼付'!C54<>\"\",'出場選手 データ入力・貼付'!C54,\"\")","v":""},{"$f":"IFERROR('出場選手 データ入力・貼付'!G54,\"\")","v":""}]
[null,null,null,null,null,null,null,null,null,null,null,null,null,null,null,null,null,null,null,null,null,null,{"$f":"IF('出場選手 データ入力・貼付'!B55&'出場選手 データ入力・貼付'!E55=\"\",\"\",IF('出場選手 データ入力・貼付'!E55<>\"\",'出場選手 データ入力・貼付'!E55,'出場選手 データ入力・貼付'!B55))","v":""},{"$f":"IF('出場選手 データ入力・貼付'!C55<>\"\",'出場選手 データ入力・貼付'!C55,\"\")","v":""},{"$f":"IFERROR('出場選手 データ入力・貼付'!G55,\"\")","v":""}]
[null,null,null,null,null,null,null,null,null,null,null,null,null,null,null,null,null,null,null,null,null,null,{"$f":"IF('出場選手 データ入力・貼付'!B56&'出場選手 データ入力・貼付'!E56=\"\",\"\",IF('出場選手 データ入力・貼付'!E56<>\"\",'出場選手 データ入力・貼付'!E56,'出場選手 データ入力・貼付'!B56))","v":""},{"$f":"IF('出場選手 データ入力・貼付'!C56<>\"\",'出場選手 データ入力・貼付'!C56,\"\")","v":""},{"$f":"IFERROR('出場選手 データ入力・貼付'!G56,\"\")","v":""}]
[null,null,null,null,null,null,null,null,null,null,null,null,null,null,null,null,null,null,null,null,null,null,{"$f":"IF('出場選手 データ入力・貼付'!B57&'出場選手 データ入力・貼付'!E57=\"\",\"\",IF('出場選手 データ入力・貼付'!E57<>\"\",'出場選手 データ入力・貼付'!E57,'出場選手 データ入力・貼付'!B57))","v":""},{"$f":"IF('出場選手 データ入力・貼付'!C57<>\"\",'出場選手 データ入力・貼付'!C57,\"\")","v":""},{"$f":"IFERROR('出場選手 データ入力・貼付'!G57,\"\")","v":""}]
[null,null,null,null,null,null,null,null,null,null,null,null,null,null,null,null,null,null,null,null,null,null,{"$f":"IF('出場選手 データ入力・貼付'!B58&'出場選手 データ入力・貼付'!E58=\"\",\"\",IF('出場選手 データ入力・貼付'!E58<>\"\",'出場選手 データ入力・貼付'!E58,'出場選手 データ入力・貼付'!B58))","v":""},{"$f":"IF('出場選手 データ入力・貼付'!C58<>\"\",'出場選手 データ入力・貼付'!C58,\"\")","v":""},{"$f":"IFERROR('出場選手 データ入力・貼付'!G58,\"\")","v":""}]
[null,null,null,null,null,null,null,null,null,null,null,null,null,null,null,null,null,null,null,null,null,null,{"$f":"IF('出場選手 データ入力・貼付'!B59&'出場選手 データ入力・貼付'!E59=\"\",\"\",IF('出場選手 データ入力・貼付'!E59<>\"\",'出場選手 データ入力・貼付'!E59,'出場選手 データ入力・貼付'!B59))","v":""},{"$f":"IF('出場選手 データ入力・貼付'!C59<>\"\",'出場選手 データ入力・貼付'!C59,\"\")","v":""},{"$f":"IFERROR('出場選手 データ入力・貼付'!G59,\"\")","v":""}]
[null,null,null,null,null,null,null,null,null,null,null,null,null,null,null,null,null,null,null,null,null,null,{"$f":"IF('出場選手 データ入力・貼付'!B60&'出場選手 データ入力・貼付'!E60=\"\",\"\",IF('出場選手 データ入力・貼付'!E60<>\"\",'出場選手 データ入力・貼付'!E60,'出場選手 データ入力・貼付'!B60))","v":""},{"$f":"IF('出場選手 データ入力・貼付'!C60<>\"\",'出場選手 データ入力・貼付'!C60,\"\")","v":""},{"$f":"IFERROR('出場選手 データ入力・貼付'!G60,\"\")","v":""}]
[null,null,null,null,null,null,null,null,null,null,null,null,null,null,null,null,null,null,null,null,null,null,{"$f":"IF('出場選手 データ入力・貼付'!B61&'出場選手 データ入力・貼付'!E61=\"\",\"\",IF('出場選手 データ入力・貼付'!E61<>\"\",'出場選手 データ入力・貼付'!E61,'出場選手 データ入力・貼付'!B61))","v":""},{"$f":"IF('出場選手 データ入力・貼付'!C61<>\"\",'出場選手 データ入力・貼付'!C61,\"\")","v":""},{"$f":"IFERROR('出場選手 データ入力・貼付'!G61,\"\")","v":""}]
[null,null,null,null,null,null,null,null,null,null,null,null,null,null,null,null,null,null,null,null,null,null,{"$f":"IF('出場選手 データ入力・貼付'!B62&'出場選手 データ入力・貼付'!E62=\"\",\"\",IF('出場選手 データ入力・貼付'!E62<>\"\",'出場選手 データ入力・貼付'!E62,'出場選手 データ入力・貼付'!B62))","v":""},{"$f":"IF('出場選手 データ入力・貼付'!C62<>\"\",'出場選手 データ入力・貼付'!C62,\"\")","v":""},{"$f":"IFERROR('出場選手 データ入力・貼付'!G62,\"\")","v":""}]
[null,null,null,null,null,null,null,null,null,null,null,null,null,null,null,null,null,null,null,null,null,null,{"$f":"IF('出場選手 データ入力・貼付'!B63&'出場選手 データ入力・貼付'!E63=\"\",\"\",IF('出場選手 データ入力・貼付'!E63<>\"\",'出場選手 データ入力・貼付'!E63,'出場選手 データ入力・貼付'!B63))","v":""},{"$f":"IF('出場選手 データ入力・貼付'!C63<>\"\",'出場選手 データ入力・貼付'!C63,\"\")","v":""},{"$f":"IFERROR('出場選手 データ入力・貼付'!G63,\"\")","v":""}]
[null,null,null,null,null,null,null,null,null,null,null,null,null,null,null,null,null,null,null,null,null,null,{"$f":"IF('出場選手 データ入力・貼付'!B64&'出場選手 データ入力・貼付'!E64=\"\",\"\",IF('出場選手 データ入力・貼付'!E64<>\"\",'出場選手 データ入力・貼付'!E64,'出場選手 データ入力・貼付'!B64))","v":""},{"$f":"IF('出場選手 データ入力・貼付'!C64<>\"\",'出場選手 データ入力・貼付'!C64,\"\")","v":""},{"$f":"IFERROR('出場選手 データ入力・貼付'!G64,\"\")","v":""}]
[null,null,null,null,null,null,null,null,null,null,null,null,null,null,null,null,null,null,null,null,null,null,{"$f":"IF('出場選手 データ入力・貼付'!B65&'出場選手 データ入力・貼付'!E65=\"\",\"\",IF('出場選手 データ入力・貼付'!E65<>\"\",'出場選手 データ入力・貼付'!E65,'出場選手 データ入力・貼付'!B65))","v":""},{"$f":"IF('出場選手 データ入力・貼付'!C65<>\"\",'出場選手 データ入力・貼付'!C65,\"\")","v":""},{"$f":"IFERROR('出場選手 データ入力・貼付'!G65,\"\")","v":""}]
[null,null,null,null,null,null,null,null,null,null,null,null,null,null,null,null,null,null,null,null,null,null,{"$f":"IF('出場選手 データ入力・貼付'!B66&'出場選手 データ入力・貼付'!E66=\"\",\"\",IF('出場選手 データ入力・貼付'!E66<>\"\",'出場選手 データ入力・貼付'!E66,'出場選手 データ入力・貼付'!B66))","v":""},{"$f":"IF('出場選手 データ入力・貼付'!C66<>\"\",'出場選手 データ入力・貼付'!C66,\"\")","v":""},{"$f":"IFERROR('出場選手 データ入力・貼付'!G66,\"\")","v":""}]
[null,null,null,null,null,null,null,null,null,null,null,null,null,null,null,null,null,null,null,null,null,null,{"$f":"IF('出場選手 データ入力・貼付'!B67&'出場選手 データ入力・貼付'!E67=\"\",\"\",IF('出場選手 データ入力・貼付'!E67<>\"\",'出場選手 データ入力・貼付'!E67,'出場選手 データ入力・貼付'!B67))","v":""},{"$f":"IF('出場選手 データ入力・貼付'!C67<>\"\",'出場選手 データ入力・貼付'!C67,\"\")","v":""},{"$f":"IFERROR('出場選手 データ入力・貼付'!G67,\"\")","v":""}]
[null,null,null,null,null,null,null,null,null,null,null,null,null,null,null,null,null,null,null,null,null,null,{"$f":"IF('出場選手 データ入力・貼付'!B68&'出場選手 データ入力・貼付'!E68=\"\",\"\",IF('出場選手 データ入力・貼付'!E68<>\"\",'出場選手 データ入力・貼付'!E68,'出場選手 データ入力・貼付'!B68))","v":""},{"$f":"IF('出場選手 データ入力・貼付'!C68<>\"\",'出場選手 データ入力・貼付'!C68,\"\")","v":""},{"$f":"IFERROR('出場選手 データ入力・貼付'!G68,\"\")","v":""}]
[null,null,null,null,null,null,null,null,null,null,null,null,null,null,null,null,null,null,null,null,null,null,{"$f":"IF('出場選手 データ入力・貼付'!B69&'出場選手 データ入力・貼付'!E69=\"\",\"\",IF('出場選手 データ入力・貼付'!E69<>\"\",'出場選手 データ入力・貼付'!E69,'出場選手 データ入力・貼付'!B69))","v":""},{"$f":"IF('出場選手 データ入力・貼付'!C69<>\"\",'出場選手 データ入力・貼付'!C69,\"\")","v":""},{"$f":"IFERROR('出場選手 データ入力・貼付'!G69,\"\")","v":""}]
[null,null,null,null,null,null,null,null,null,null,null,null,null,null,null,null,null,null,null,null,null,null,{"$f":"IF('出場選手 データ入力・貼付'!B70&'出場選手 データ入力・貼付'!E70=\"\",\"\",IF('出場選手 データ入力・貼付'!E70<>\"\",'出場選手 データ入力・貼付'!E70,'出場選手 データ入力・貼付'!B70))","v":""},{"$f":"IF('出場選手 データ入力・貼付'!C70<>\"\",'出場選手 データ入力・貼付'!C70,\"\")","v":""},{"$f":"IFERROR('出場選手 データ入力・貼付'!G70,\"\")","v":""}]
[null,null,null,null,null,null,null,null,null,null,null,null,null,null,null,null,null,null,null,null,null,null,{"$f":"IF('出場選手 データ入力・貼付'!B71&'出場選手 データ入力・貼付'!E71=\"\",\"\",IF('出場選手 データ入力・貼付'!E71<>\"\",'出場選手 データ入力・貼付'!E71,'出場選手 データ入力・貼付'!B71))","v":""},{"$f":"IF('出場選手 データ入力・貼付'!C71<>\"\",'出場選手 データ入力・貼付'!C71,\"\")","v":""},{"$f":"IFERROR('出場選手 データ入力・貼付'!G71,\"\")","v":""}]
[null,null,null,null,null,null,null,null,null,null,null,null,null,null,null,null,null,null,null,null,null,null,{"$f":"IF('出場選手 データ入力・貼付'!B72&'出場選手 データ入力・貼付'!E72=\"\",\"\",IF('出場選手 データ入力・貼付'!E72<>\"\",'出場選手 データ入力・貼付'!E72,'出場選手 データ入力・貼付'!B72))","v":""},{"$f":"IF('出場選手 データ入力・貼付'!C72<>\"\",'出場選手 データ入力・貼付'!C72,\"\")","v":""},{"$f":"IFERROR('出場選手 データ入力・貼付'!G72,\"\")","v":""}]
[null,null,null,null,null,null,null,null,null,null,null,null,null,null,null,null,null,null,null,null,null,null,{"$f":"IF('出場選手 データ入力・貼付'!B73&'出場選手 データ入力・貼付'!E73=\"\",\"\",IF('出場選手 データ入力・貼付'!E73<>\"\",'出場選手 データ入力・貼付'!E73,'出場選手 データ入力・貼付'!B73))","v":""},{"$f":"IF('出場選手 データ入力・貼付'!C73<>\"\",'出場選手 データ入力・貼付'!C73,\"\")","v":""},{"$f":"IFERROR('出場選手 データ入力・貼付'!G73,\"\")","v":""}]
[null,null,null,null,null,null,null,null,null,null,null,null,null,null,null,null,null,null,null,null,null,null,{"$f":"IF('出場選手 データ入力・貼付'!B74&'出場選手 データ入力・貼付'!E74=\"\",\"\",IF('出場選手 データ入力・貼付'!E74<>\"\",'出場選手 データ入力・貼付'!E74,'出場選手 データ入力・貼付'!B74))","v":""},{"$f":"IF('出場選手 データ入力・貼付'!C74<>\"\",'出場選手 データ入力・貼付'!C74,\"\")","v":""},{"$f":"IFERROR('出場選手 データ入力・貼付'!G74,\"\")","v":""}]
[null,null,null,null,null,null,null,null,null,null,null,null,null,null,null,null,null,null,null,null,null,null,{"$f":"IF('出場選手 データ入力・貼付'!B75&'出場選手 データ入力・貼付'!E75=\"\",\"\",IF('出場選手 データ入力・貼付'!E75<>\"\",'出場選手 データ入力・貼付'!E75,'出場選手 データ入力・貼付'!B75))","v":""},{"$f":"IF('出場選手 データ入力・貼付'!C75<>\"\",'出場選手 データ入力・貼付'!C75,\"\")","v":""},{"$f":"IFERROR('出場選手 データ入力・貼付'!G75,\"\")","v":""}]
[null,null,null,null,null,null,null,null,null,null,null,null,null,null,null,null,null,null,null,null,null,null,{"$f":"IF('出場選手 データ入力・貼付'!B76&'出場選手 データ入力・貼付'!E76=\"\",\"\",IF('出場選手 データ入力・貼付'!E76<>\"\",'出場選手 データ入力・貼付'!E76,'出場選手 データ入力・貼付'!B76))","v":""},{"$f":"IF('出場選手 データ入力・貼付'!C76<>\"\",'出場選手 データ入力・貼付'!C76,\"\")","v":""},{"$f":"IFERROR('出場選手 データ入力・貼付'!G76,\"\")","v":""}]
[null,null,null,null,null,null,null,null,null,null,null,null,null,null,null,null,null,null,null,null,null,null,{"$f":"IF('出場選手 データ入力・貼付'!B77&'出場選手 データ入力・貼付'!E77=\"\",\"\",IF('出場選手 データ入力・貼付'!E77<>\"\",'出場選手 データ入力・貼付'!E77,'出場選手 データ入力・貼付'!B77))","v":""},{"$f":"IF('出場選手 データ入力・貼付'!C77<>\"\",'出場選手 データ入力・貼付'!C77,\"\")","v":""},{"$f":"IFERROR('出場選手 データ入力・貼付'!G77,\"\")","v":""}]
[null,null,null,null,null,null,null,null,null,null,null,null,null,null,null,null,null,null,null,null,null,null,{"$f":"IF('出場選手 データ入力・貼付'!B78&'出場選手 データ入力・貼付'!E78=\"\",\"\",IF('出場選手 データ入力・貼付'!E78<>\"\",'出場選手 データ入力・貼付'!E78,'出場選手 データ入力・貼付'!B78))","v":""},{"$f":"IF('出場選手 データ入力・貼付'!C78<>\"\",'出場選手 データ入力・貼付'!C78,\"\")","v":""},{"$f":"IFERROR('出場選手 データ入力・貼付'!G78,\"\")","v":""}]
[null,null,null,null,null,null,null,null,null,null,null,null,null,null,null,null,null,null,null,null,null,null,{"$f":"IF('出場選手 データ入力・貼付'!B79&'出場選手 データ入力・貼付'!E79=\"\",\"\",IF('出場選手 データ入力・貼付'!E79<>\"\",'出場選手 データ入力・貼付'!E79,'出場選手 データ入力・貼付'!B79))","v":""},{"$f":"IF('出場選手 データ入力・貼付'!C79<>\"\",'出場選手 データ入力・貼付'!C79,\"\")","v":""},{"$f":"IFERROR('出場選手 データ入力・貼付'!G79,\"\")","v":""}]
[null,null,null,null,null,null,null,null,null,null,null,null,null,null,null,null,null,null,null,null,null,null,{"$f":"IF('出場選手 データ入力・貼付'!B80&'出場選手 データ入力・貼付'!E80=\"\",\"\",IF('出場選手 データ入力・貼付'!E80<>\"\",'出場選手 データ入力・貼付'!E80,'出場選手 データ入力・貼付'!B80))","v":""},{"$f":"IF('出場選手 データ入力・貼付'!C80<>\"\",'出場選手 データ入力・貼付'!C80,\"\")","v":""},{"$f":"IFERROR('出場選手 データ入力・貼付'!G80,\"\")","v":""}]
[null,null,null,null,null,null,null,null,null,null,null,null,null,null,null,null,null,null,null,null,null,null,{"$f":"IF('出場選手 データ入力・貼付'!B81&'出場選手 データ入力・貼付'!E81=\"\",\"\",IF('出場選手 データ入力・貼付'!E81<>\"\",'出場選手 データ入力・貼付'!E81,'出場選手 データ入力・貼付'!B81))","v":""},{"$f":"IF('出場選手 データ入力・貼付'!C81<>\"\",'出場選手 データ入力・貼付'!C81,\"\")","v":""},{"$f":"IFERROR('出場選手 データ入力・貼付'!G81,\"\")","v":""}]
[null,null,null,null,null,null,null,null,null,null,null,null,null,null,null,null,null,null,null,null,null,null,{"$f":"IF('出場選手 データ入力・貼付'!B82&'出場選手 データ入力・貼付'!E82=\"\",\"\",IF('出場選手 データ入力・貼付'!E82<>\"\",'出場選手 データ入力・貼付'!E82,'出場選手 データ入力・貼付'!B82))","v":""},{"$f":"IF('出場選手 データ入力・貼付'!C82<>\"\",'出場選手 データ入力・貼付'!C82,\"\")","v":""},{"$f":"IFERROR('出場選手 データ入力・貼付'!G82,\"\")","v":""}]
[null,null,null,null,null,null,null,null,null,null,null,null,null,null,null,null,null,null,null,null,null,null,{"$f":"IF('出場選手 データ入力・貼付'!B83&'出場選手 データ入力・貼付'!E83=\"\",\"\",IF('出場選手 データ入力・貼付'!E83<>\"\",'出場選手 データ入力・貼付'!E83,'出場選手 データ入力・貼付'!B83))","v":""},{"$f":"IF('出場選手 データ入力・貼付'!C83<>\"\",'出場選手 データ入力・貼付'!C83,\"\")","v":""},{"$f":"IFERROR('出場選手 データ入力・貼付'!G83,\"\")","v":""}]
[null,null,null,null,null,null,null,null,null,null,null,null,null,null,null,null,null,null,null,null,null,null,{"$f":"IF('出場選手 データ入力・貼付'!B84&'出場選手 データ入力・貼付'!E84=\"\",\"\",IF('出場選手 データ入力・貼付'!E84<>\"\",'出場選手 データ入力・貼付'!E84,'出場選手 データ入力・貼付'!B84))","v":""},{"$f":"IF('出場選手 データ入力・貼付'!C84<>\"\",'出場選手 データ入力・貼付'!C84,\"\")","v":""},{"$f":"IFERROR('出場選手 データ入力・貼付'!G84,\"\")","v":""}]
[null,null,null,null,null,null,null,null,null,null,null,null,null,null,null,null,null,null,null,null,null,null,{"$f":"IF('出場選手 データ入力・貼付'!B85&'出場選手 データ入力・貼付'!E85=\"\",\"\",IF('出場選手 データ入力・貼付'!E85<>\"\",'出場選手 データ入力・貼付'!E85,'出場選手 データ入力・貼付'!B85))","v":""},{"$f":"IF('出場選手 データ入力・貼付'!C85<>\"\",'出場選手 データ入力・貼付'!C85,\"\")","v":""},{"$f":"IFERROR('出場選手 データ入力・貼付'!G85,\"\")","v":""}]
[null,null,null,null,null,null,null,null,null,null,null,null,null,null,null,null,null,null,null,null,null,null,{"$f":"IF('出場選手 データ入力・貼付'!B86&'出場選手 データ入力・貼付'!E86=\"\",\"\",IF('出場選手 データ入力・貼付'!E86<>\"\",'出場選手 データ入力・貼付'!E86,'出場選手 データ入力・貼付'!B86))","v":""},{"$f":"IF('出場選手 データ入力・貼付'!C86<>\"\",'出場選手 データ入力・貼付'!C86,\"\")","v":""},{"$f":"IFERROR('出場選手 データ入力・貼付'!G86,\"\")","v":""}]
[null,null,null,null,null,null,null,null,null,null,null,null,null,null,null,null,null,null,null,null,null,null,{"$f":"IF('出場選手 データ入力・貼付'!B87&'出場選手 データ入力・貼付'!E87=\"\",\"\",IF('出場選手 データ入力・貼付'!E87<>\"\",'出場選手 データ入力・貼付'!E87,'出場選手 データ入力・貼付'!B87))","v":""},{"$f":"IF('出場選手 データ入力・貼付'!C87<>\"\",'出場選手 データ入力・貼付'!C87,\"\")","v":""},{"$f":"IFERROR('出場選手 データ入力・貼付'!G87,\"\")","v":""}]
[null,null,null,null,null,null,null,null,null,null,null,null,null,null,null,null,null,null,null,null,null,null,{"$f":"IF('出場選手 データ入力・貼付'!B88&'出場選手 データ入力・貼付'!E88=\"\",\"\",IF('出場選手 データ入力・貼付'!E88<>\"\",'出場選手 データ入力・貼付'!E88,'出場選手 データ入力・貼付'!B88))","v":""},{"$f":"IF('出場選手 データ入力・貼付'!C88<>\"\",'出場選手 データ入力・貼付'!C88,\"\")","v":""},{"$f":"IFERROR('出場選手 データ入力・貼付'!G88,\"\")","v":""}]
[null,null,null,null,null,null,null,null,null,null,null,null,null,null,null,null,null,null,null,null,null,null,{"$f":"IF('出場選手 データ入力・貼付'!B89&'出場選手 データ入力・貼付'!E89=\"\",\"\",IF('出場選手 データ入力・貼付'!E89<>\"\",'出場選手 データ入力・貼付'!E89,'出場選手 データ入力・貼付'!B89))","v":""},{"$f":"IF('出場選手 データ入力・貼付'!C89<>\"\",'出場選手 データ入力・貼付'!C89,\"\")","v":""},{"$f":"IFERROR('出場選手 データ入力・貼付'!G89,\"\")","v":""}]
[null,null,null,null,null,null,null,null,null,null,null,null,null,null,null,null,null,null,null,null,null,null,{"$f":"IF('出場選手 データ入力・貼付'!B90&'出場選手 データ入力・貼付'!E90=\"\",\"\",IF('出場選手 データ入力・貼付'!E90<>\"\",'出場選手 データ入力・貼付'!E90,'出場選手 データ入力・貼付'!B90))","v":""},{"$f":"IF('出場選手 データ入力・貼付'!C90<>\"\",'出場選手 データ入力・貼付'!C90,\"\")","v":""},{"$f":"IFERROR('出場選手 データ入力・貼付'!G90,\"\")","v":""}]
[null,null,null,null,null,null,null,null,null,null,null,null,null,null,null,null,null,null,null,null,null,null,{"$f":"IF('出場選手 データ入力・貼付'!B91&'出場選手 データ入力・貼付'!E91=\"\",\"\",IF('出場選手 データ入力・貼付'!E91<>\"\",'出場選手 データ入力・貼付'!E91,'出場選手 データ入力・貼付'!B91))","v":""},{"$f":"IF('出場選手 データ入力・貼付'!C91<>\"\",'出場選手 データ入力・貼付'!C91,\"\")","v":""},{"$f":"IFERROR('出場選手 データ入力・貼付'!G91,\"\")","v":""}]
[null,null,null,null,null,null,null,null,null,null,null,null,null,null,null,null,null,null,null,null,null,null,{"$f":"IF('出場選手 データ入力・貼付'!B92&'出場選手 データ入力・貼付'!E92=\"\",\"\",IF('出場選手 データ入力・貼付'!E92<>\"\",'出場選手 データ入力・貼付'!E92,'出場選手 データ入力・貼付'!B92))","v":""},{"$f":"IF('出場選手 データ入力・貼付'!C92<>\"\",'出場選手 データ入力・貼付'!C92,\"\")","v":""},{"$f":"IFERROR('出場選手 データ入力・貼付'!G92,\"\")","v":""}]
[null,null,null,null,null,null,null,null,null,null,null,null,null,null,null,null,null,null,null,null,null,null,{"$f":"IF('出場選手 データ入力・貼付'!B93&'出場選手 データ入力・貼付'!E93=\"\",\"\",IF('出場選手 データ入力・貼付'!E93<>\"\",'出場選手 データ入力・貼付'!E93,'出場選手 データ入力・貼付'!B93))","v":""},{"$f":"IF('出場選手 データ入力・貼付'!C93<>\"\",'出場選手 データ入力・貼付'!C93,\"\")","v":""},{"$f":"IFERROR('出場選手 データ入力・貼付'!G93,\"\")","v":""}]
[null,null,null,null,null,null,null,null,null,null,null,null,null,null,null,null,null,null,null,null,null,null,{"$f":"IF('出場選手 データ入力・貼付'!B94&'出場選手 データ入力・貼付'!E94=\"\",\"\",IF('出場選手 データ入力・貼付'!E94<>\"\",'出場選手 データ入力・貼付'!E94,'出場選手 データ入力・貼付'!B94))","v":""},{"$f":"IF('出場選手 データ入力・貼付'!C94<>\"\",'出場選手 データ入力・貼付'!C94,\"\")","v":""},{"$f":"IFERROR('出場選手 データ入力・貼付'!G94,\"\")","v":""}]
[null,null,null,null,null,null,null,null,null,null,null,null,null,null,null,null,null,null,null,null,null,null,{"$f":"IF('出場選手 データ入力・貼付'!B95&'出場選手 データ入力・貼付'!E95=\"\",\"\",IF('出場選手 データ入力・貼付'!E95<>\"\",'出場選手 データ入力・貼付'!E95,'出場選手 データ入力・貼付'!B95))","v":""},{"$f":"IF('出場選手 データ入力・貼付'!C95<>\"\",'出場選手 データ入力・貼付'!C95,\"\")","v":""},{"$f":"IFERROR('出場選手 データ入力・貼付'!G95,\"\")","v":""}]
[null,null,null,null,null,null,null,null,null,null,null,null,null,null,null,null,null,null,null,null,null,null,{"$f":"IF('出場選手 データ入力・貼付'!B96&'出場選手 データ入力・貼付'!E96=\"\",\"\",IF('出場選手 データ入力・貼付'!E96<>\"\",'出場選手 データ入力・貼付'!E96,'出場選手 データ入力・貼付'!B96))","v":""},{"$f":"IF('出場選手 データ入力・貼付'!C96<>\"\",'出場選手 データ入力・貼付'!C96,\"\")","v":""},{"$f":"IFERROR('出場選手 データ入力・貼付'!G96,\"\")","v":""}]
[null,null,null,null,null,null,null,null,null,null,null,null,null,null,null,null,null,null,null,null,null,null,{"$f":"IF('出場選手 データ入力・貼付'!B97&'出場選手 データ入力・貼付'!E97=\"\",\"\",IF('出場選手 データ入力・貼付'!E97<>\"\",'出場選手 データ入力・貼付'!E97,'出場選手 データ入力・貼付'!B97))","v":""},{"$f":"IF('出場選手 データ入力・貼付'!C97<>\"\",'出場選手 データ入力・貼付'!C97,\"\")","v":""},{"$f":"IFERROR('出場選手 データ入力・貼付'!G97,\"\")","v":""}]
[null,null,null,null,null,null,null,null,null,null,null,null,null,null,null,null,null,null,null,null,null,null,{"$f":"IF('出場選手 データ入力・貼付'!B98&'出場選手 データ入力・貼付'!E98=\"\",\"\",IF('出場選手 データ入力・貼付'!E98<>\"\",'出場選手 データ入力・貼付'!E98,'出場選手 データ入力・貼付'!B98))","v":""},{"$f":"IF('出場選手 データ入力・貼付'!C98<>\"\",'出場選手 データ入力・貼付'!C98,\"\")","v":""},{"$f":"IFERROR('出場選手 データ入力・貼付'!G98,\"\")","v":""}]
[null,null,null,null,null,null,null,null,null,null,null,null,null,null,null,null,null,null,null,null,null,null,{"$f":"IF('出場選手 データ入力・貼付'!B99&'出場選手 データ入力・貼付'!E99=\"\",\"\",IF('出場選手 データ入力・貼付'!E99<>\"\",'出場選手 データ入力・貼付'!E99,'出場選手 データ入力・貼付'!B99))","v":""},{"$f":"IF('出場選手 データ入力・貼付'!C99<>\"\",'出場選手 データ入力・貼付'!C99,\"\")","v":""},{"$f":"IFERROR('出場選手 データ入力・貼付'!G99,\"\")","v":""}]
[null,null,null,null,null,null,null,null,null,null,null,null,null,null,null,null,null,null,null,null,null,null,{"$f":"IF('出場選手 データ入力・貼付'!B100&'出場選手 データ入力・貼付'!E100=\"\",\"\",IF('出場選手 データ入力・貼付'!E100<>\"\",'出場選手 データ入力・貼付'!E100,'出場選手 データ入力・貼付'!B100))","v":""},{"$f":"IF('出場選手 データ入力・貼付'!C100<>\"\",'出場選手 データ入力・貼付'!C100,\"\")","v":""},{"$f":"IFERROR('出場選手 データ入力・貼付'!G100,\"\")","v":""}]
[null,null,null,null,null,null,null,null,null,null,null,null,null,null,null,null,null,null,null,null,null,null,{"$f":"IF('出場選手 データ入力・貼付'!B101&'出場選手 データ入力・貼付'!E101=\"\",\"\",IF('出場選手 データ入力・貼付'!E101<>\"\",'出場選手 データ入力・貼付'!E101,'出場選手 データ入力・貼付'!B101))","v":""},{"$f":"IF('出場選手 データ入力・貼付'!C101<>\"\",'出場選手 データ入力・貼付'!C101,\"\")","v":""},{"$f":"IFERROR('出場選手 データ入力・貼付'!G101,\"\")","v":""}]
[null,null,null,null,null,null,null,null,null,null,null,null,null,null,null,null,null,null,null,null,null,null,{"$f":"IF('出場選手 データ入力・貼付'!B102&'出場選手 データ入力・貼付'!E102=\"\",\"\",IF('出場選手 データ入力・貼付'!E102<>\"\",'出場選手 データ入力・貼付'!E102,'出場選手 データ入力・貼付'!B102))","v":""},{"$f":"IF('出場選手 データ入力・貼付'!C102<>\"\",'出場選手 データ入力・貼付'!C102,\"\")","v":""},{"$f":"IFERROR('出場選手 データ入力・貼付'!G102,\"\")","v":""}]
[null,null,null,null,null,null,null,null,null,null,null,null,null,null,null,null,null,null,null,null,null,null,{"$f":"IF('出場選手 データ入力・貼付'!B103&'出場選手 データ入力・貼付'!E103=\"\",\"\",IF('出場選手 データ入力・貼付'!E103<>\"\",'出場選手 データ入力・貼付'!E103,'出場選手 データ入力・貼付'!B103))","v":""},{"$f":"IF('出場選手 データ入力・貼付'!C103<>\"\",'出場選手 データ入力・貼付'!C103,\"\")","v":""},{"$f":"IFERROR('出場選手 データ入力・貼付'!G103,\"\")","v":""}]
[null,null,null,null,null,null,null,null,null,null,null,null,null,null,null,null,null,null,null,null,null,null,{"$f":"IF('出場選手 データ入力・貼付'!B104&'出場選手 データ入力・貼付'!E104=\"\",\"\",IF('出場選手 データ入力・貼付'!E104<>\"\",'出場選手 データ入力・貼付'!E104,'出場選手 データ入力・貼付'!B104))","v":""},{"$f":"IF('出場選手 データ入力・貼付'!C104<>\"\",'出場選手 データ入力・貼付'!C104,\"\")","v":""},{"$f":"IFERROR('出場選手 データ入力・貼付'!G104,\"\")","v":""}]
[null,null,null,null,null,null,null,null,null,null,null,null,null,null,null,null,null,null,null,null,null,null,{"$f":"IF('出場選手 データ入力・貼付'!B105&'出場選手 データ入力・貼付'!E105=\"\",\"\",IF('出場選手 データ入力・貼付'!E105<>\"\",'出場選手 データ入力・貼付'!E105,'出場選手 データ入力・貼付'!B105))","v":""},{"$f":"IF('出場選手 データ入力・貼付'!C105<>\"\",'出場選手 データ入力・貼付'!C105,\"\")","v":""},{"$f":"IFERROR('出場選手 データ入力・貼付'!G105,\"\")","v":""}]
[null,null,null,null,null,null,null,null,null,null,null,null,null,null,null,null,null,null,null,null,null,null,{"$f":"IF('出場選手 データ入力・貼付'!B106&'出場選手 データ入力・貼付'!E106=\"\",\"\",IF('出場選手 データ入力・貼付'!E106<>\"\",'出場選手 データ入力・貼付'!E106,'出場選手 データ入力・貼付'!B106))","v":""},{"$f":"IF('出場選手 データ入力・貼付'!C106<>\"\",'出場選手 データ入力・貼付'!C106,\"\")","v":""},{"$f":"IFERROR('出場選手 データ入力・貼付'!G106,\"\")","v":""}]
[null,null,null,null,null,null,null,null,null,null,null,null,null,null,null,null,null,null,null,null,null,null,{"$f":"IF('出場選手 データ入力・貼付'!B107&'出場選手 データ入力・貼付'!E107=\"\",\"\",IF('出場選手 データ入力・貼付'!E107<>\"\",'出場選手 データ入力・貼付'!E107,'出場選手 データ入力・貼付'!B107))","v":""},{"$f":"IF('出場選手 データ入力・貼付'!C107<>\"\",'出場選手 データ入力・貼付'!C107,\"\")","v":""},{"$f":"IFERROR('出場選手 データ入力・貼付'!G107,\"\")","v":""}]
[null,null,null,null,null,null,null,null,null,null,null,null,null,null,null,null,null,null,null,null,null,null,{"$f":"IF('出場選手 データ入力・貼付'!B108&'出場選手 データ入力・貼付'!E108=\"\",\"\",IF('出場選手 データ入力・貼付'!E108<>\"\",'出場選手 データ入力・貼付'!E108,'出場選手 データ入力・貼付'!B108))","v":""},{"$f":"IF('出場選手 データ入力・貼付'!C108<>\"\",'出場選手 データ入力・貼付'!C108,\"\")","v":""},{"$f":"IFERROR('出場選手 データ入力・貼付'!G108,\"\")","v":""}]
[null,null,null,null,null,null,null,null,null,null,null,null,null,null,null,null,null,null,null,null,null,null,{"$f":"IF('出場選手 データ入力・貼付'!B109&'出場選手 データ入力・貼付'!E109=\"\",\"\",IF('出場選手 データ入力・貼付'!E109<>\"\",'出場選手 データ入力・貼付'!E109,'出場選手 データ入力・貼付'!B109))","v":""},{"$f":"IF('出場選手 データ入力・貼付'!C109<>\"\",'出場選手 データ入力・貼付'!C109,\"\")","v":""},{"$f":"IFERROR('出場選手 データ入力・貼付'!G109,\"\")","v":""}]
[null,null,null,null,null,null,null,null,null,null,null,null,null,null,null,null,null,null,null,null,null,null,{"$f":"IF('出場選手 データ入力・貼付'!B110&'出場選手 データ入力・貼付'!E110=\"\",\"\",IF('出場選手 データ入力・貼付'!E110<>\"\",'出場選手 データ入力・貼付'!E110,'出場選手 データ入力・貼付'!B110))","v":""},{"$f":"IF('出場選手 データ入力・貼付'!C110<>\"\",'出場選手 データ入力・貼付'!C110,\"\")","v":""},{"$f":"IFERROR('出場選手 データ入力・貼付'!G110,\"\")","v":""}]
[null,null,null,null,null,null,null,null,null,null,null,null,null,null,null,null,null,null,null,null,null,null,{"$f":"IF('出場選手 データ入力・貼付'!B111&'出場選手 データ入力・貼付'!E111=\"\",\"\",IF('出場選手 データ入力・貼付'!E111<>\"\",'出場選手 データ入力・貼付'!E111,'出場選手 データ入力・貼付'!B111))","v":""},{"$f":"IF('出場選手 データ入力・貼付'!C111<>\"\",'出場選手 データ入力・貼付'!C111,\"\")","v":""},{"$f":"IFERROR('出場選手 データ入力・貼付'!G111,\"\")","v":""}]
[null,null,null,null,null,null,null,null,null,null,null,null,null,null,null,null,null,null,null,null,null,null,{"$f":"IF('出場選手 データ入力・貼付'!B112&'出場選手 データ入力・貼付'!E112=\"\",\"\",IF('出場選手 データ入力・貼付'!E112<>\"\",'出場選手 データ入力・貼付'!E112,'出場選手 データ入力・貼付'!B112))","v":""},{"$f":"IF('出場選手 データ入力・貼付'!C112<>\"\",'出場選手 データ入力・貼付'!C112,\"\")","v":""},{"$f":"IFERROR('出場選手 データ入力・貼付'!G112,\"\")","v":""}]
[null,null,null,null,null,null,null,null,null,null,null,null,null,null,null,null,null,null,null,null,null,null,{"$f":"IF('出場選手 データ入力・貼付'!B113&'出場選手 データ入力・貼付'!E113=\"\",\"\",IF('出場選手 データ入力・貼付'!E113<>\"\",'出場選手 データ入力・貼付'!E113,'出場選手 データ入力・貼付'!B113))","v":""},{"$f":"IF('出場選手 データ入力・貼付'!C113<>\"\",'出場選手 データ入力・貼付'!C113,\"\")","v":""},{"$f":"IFERROR('出場選手 データ入力・貼付'!G113,\"\")","v":""}]
[null,null,null,null,null,null,null,null,null,null,null,null,null,null,null,null,null,null,null,null,null,null,{"$f":"IF('出場選手 データ入力・貼付'!B114&'出場選手 データ入力・貼付'!E114=\"\",\"\",IF('出場選手 データ入力・貼付'!E114<>\"\",'出場選手 データ入力・貼付'!E114,'出場選手 データ入力・貼付'!B114))","v":""},{"$f":"IF('出場選手 データ入力・貼付'!C114<>\"\",'出場選手 データ入力・貼付'!C114,\"\")","v":""},{"$f":"IFERROR('出場選手 データ入力・貼付'!G114,\"\")","v":""}]
[null,null,null,null,null,null,null,null,null,null,null,null,null,null,null,null,null,null,null,null,null,null,{"$f":"IF('出場選手 データ入力・貼付'!B115&'出場選手 データ入力・貼付'!E115=\"\",\"\",IF('出場選手 データ入力・貼付'!E115<>\"\",'出場選手 データ入力・貼付'!E115,'出場選手 データ入力・貼付'!B115))","v":""},{"$f":"IF('出場選手 データ入力・貼付'!C115<>\"\",'出場選手 データ入力・貼付'!C115,\"\")","v":""},{"$f":"IFERROR('出場選手 データ入力・貼付'!G115,\"\")","v":""}]
[null,null,null,null,null,null,null,null,null,null,null,null,null,null,null,null,null,null,null,null,null,null,{"$f":"IF('出場選手 データ入力・貼付'!B116&'出場選手 データ入力・貼付'!E116=\"\",\"\",IF('出場選手 データ入力・貼付'!E116<>\"\",'出場選手 データ入力・貼付'!E116,'出場選手 データ入力・貼付'!B116))","v":""},{"$f":"IF('出場選手 データ入力・貼付'!C116<>\"\",'出場選手 データ入力・貼付'!C116,\"\")","v":""},{"$f":"IFERROR('出場選手 データ入力・貼付'!G116,\"\")","v":""}]
[null,null,null,null,null,null,null,null,null,null,null,null,null,null,null,null,null,null,null,null,null,null,{"$f":"IF('出場選手 データ入力・貼付'!B117&'出場選手 データ入力・貼付'!E117=\"\",\"\",IF('出場選手 データ入力・貼付'!E117<>\"\",'出場選手 データ入力・貼付'!E117,'出場選手 データ入力・貼付'!B117))","v":""},{"$f":"IF('出場選手 データ入力・貼付'!C117<>\"\",'出場選手 データ入力・貼付'!C117,\"\")","v":""},{"$f":"IFERROR('出場選手 データ入力・貼付'!G117,\"\")","v":""}]
[null,null,null,null,null,null,null,null,null,null,null,null,null,null,null,null,null,null,null,null,null,null,{"$f":"IF('出場選手 データ入力・貼付'!B118&'出場選手 データ入力・貼付'!E118=\"\",\"\",IF('出場選手 データ入力・貼付'!E118<>\"\",'出場選手 データ入力・貼付'!E118,'出場選手 データ入力・貼付'!B118))","v":""},{"$f":"IF('出場選手 データ入力・貼付'!C118<>\"\",'出場選手 データ入力・貼付'!C118,\"\")","v":""},{"$f":"IFERROR('出場選手 データ入力・貼付'!G118,\"\")","v":""}]
[null,null,null,null,null,null,null,null,null,null,null,null,null,null,null,null,null,null,null,null,null,null,{"$f":"IF('出場選手 データ入力・貼付'!B119&'出場選手 データ入力・貼付'!E119=\"\",\"\",IF('出場選手 データ入力・貼付'!E119<>\"\",'出場選手 データ入力・貼付'!E119,'出場選手 データ入力・貼付'!B119))","v":""},{"$f":"IF('出場選手 データ入力・貼付'!C119<>\"\",'出場選手 データ入力・貼付'!C119,\"\")","v":""},{"$f":"IFERROR('出場選手 データ入力・貼付'!G119,\"\")","v":""}]
[null,null,null,null,null,null,null,null,null,null,null,null,null,null,null,null,null,null,null,null,null,null,{"$f":"IF('出場選手 データ入力・貼付'!B120&'出場選手 データ入力・貼付'!E120=\"\",\"\",IF('出場選手 データ入力・貼付'!E120<>\"\",'出場選手 データ入力・貼付'!E120,'出場選手 データ入力・貼付'!B120))","v":""},{"$f":"IF('出場選手 データ入力・貼付'!C120<>\"\",'出場選手 データ入力・貼付'!C120,\"\")","v":""},{"$f":"IFERROR('出場選手 データ入力・貼付'!G120,\"\")","v":""}]
[null,null,null,null,null,null,null,null,null,null,null,null,null,null,null,null,null,null,null,null,null,null,{"$f":"IF('出場選手 データ入力・貼付'!B121&'出場選手 データ入力・貼付'!E121=\"\",\"\",IF('出場選手 データ入力・貼付'!E121<>\"\",'出場選手 データ入力・貼付'!E121,'出場選手 データ入力・貼付'!B121))","v":""},{"$f":"IF('出場選手 データ入力・貼付'!C121<>\"\",'出場選手 データ入力・貼付'!C121,\"\")","v":""},{"$f":"IFERROR('出場選手 データ入力・貼付'!G121,\"\")","v":""}]
[null,null,null,null,null,null,null,null,null,null,null,null,null,null,null,null,null,null,null,null,null,null,{"$f":"IF('出場選手 データ入力・貼付'!B122&'出場選手 データ入力・貼付'!E122=\"\",\"\",IF('出場選手 データ入力・貼付'!E122<>\"\",'出場選手 データ入力・貼付'!E122,'出場選手 データ入力・貼付'!B122))","v":""},{"$f":"IF('出場選手 データ入力・貼付'!C122<>\"\",'出場選手 データ入力・貼付'!C122,\"\")","v":""},{"$f":"IFERROR('出場選手 データ入力・貼付'!G122,\"\")","v":""}]
[null,null,null,null,null,null,null,null,null,null,null,null,null,null,null,null,null,null,null,null,null,null,{"$f":"IF('出場選手 データ入力・貼付'!B123&'出場選手 データ入力・貼付'!E123=\"\",\"\",IF('出場選手 データ入力・貼付'!E123<>\"\",'出場選手 データ入力・貼付'!E123,'出場選手 データ入力・貼付'!B123))","v":""},{"$f":"IF('出場選手 データ入力・貼付'!C123<>\"\",'出場選手 データ入力・貼付'!C123,\"\")","v":""},{"$f":"IFERROR('出場選手 データ入力・貼付'!G123,\"\")","v":""}]
[null,null,null,null,null,null,null,null,null,null,null,null,null,null,null,null,null,null,null,null,null,null,{"$f":"IF('出場選手 データ入力・貼付'!B124&'出場選手 データ入力・貼付'!E124=\"\",\"\",IF('出場選手 データ入力・貼付'!E124<>\"\",'出場選手 データ入力・貼付'!E124,'出場選手 データ入力・貼付'!B124))","v":""},{"$f":"IF('出場選手 データ入力・貼付'!C124<>\"\",'出場選手 データ入力・貼付'!C124,\"\")","v":""},{"$f":"IFERROR('出場選手 データ入力・貼付'!G124,\"\")","v":""}]
[null,null,null,null,null,null,null,null,null,null,null,null,null,null,null,null,null,null,null,null,null,null,{"$f":"IF('出場選手 データ入力・貼付'!B125&'出場選手 データ入力・貼付'!E125=\"\",\"\",IF('出場選手 データ入力・貼付'!E125<>\"\",'出場選手 データ入力・貼付'!E125,'出場選手 データ入力・貼付'!B125))","v":""},{"$f":"IF('出場選手 データ入力・貼付'!C125<>\"\",'出場選手 データ入力・貼付'!C125,\"\")","v":""},{"$f":"IFERROR('出場選手 データ入力・貼付'!G125,\"\")","v":""}]
[null,null,null,null,null,null,null,null,null,null,null,null,null,null,null,null,null,null,null,null,null,null,{"$f":"IF('出場選手 データ入力・貼付'!B126&'出場選手 データ入力・貼付'!E126=\"\",\"\",IF('出場選手 データ入力・貼付'!E126<>\"\",'出場選手 データ入力・貼付'!E126,'出場選手 データ入力・貼付'!B126))","v":""},{"$f":"IF('出場選手 データ入力・貼付'!C126<>\"\",'出場選手 データ入力・貼付'!C126,\"\")","v":""},{"$f":"IFERROR('出場選手 データ入力・貼付'!G126,\"\")","v":""}]
[null,null,null,null,null,null,null,null,null,null,null,null,null,null,null,null,null,null,null,null,null,null,{"$f":"IF('出場選手 データ入力・貼付'!B127&'出場選手 データ入力・貼付'!E127=\"\",\"\",IF('出場選手 データ入力・貼付'!E127<>\"\",'出場選手 データ入力・貼付'!E127,'出場選手 データ入力・貼付'!B127))","v":""},{"$f":"IF('出場選手 データ入力・貼付'!C127<>\"\",'出場選手 データ入力・貼付'!C127,\"\")","v":""},{"$f":"IFERROR('出場選手 データ入力・貼付'!G127,\"\")","v":""}]
[null,null,null,null,null,null,null,null,null,null,null,null,null,null,null,null,null,null,null,null,null,null,{"$f":"IF('出場選手 データ入力・貼付'!B128&'出場選手 データ入力・貼付'!E128=\"\",\"\",IF('出場選手 データ入力・貼付'!E128<>\"\",'出場選手 データ入力・貼付'!E128,'出場選手 データ入力・貼付'!B128))","v":""},{"$f":"IF('出場選手 データ入力・貼付'!C128<>\"\",'出場選手 データ入力・貼付'!C128,\"\")","v":""},{"$f":"IFERROR('出場選手 データ入力・貼付'!G128,\"\")","v":""}]
[null,null,null,null,null,null,null,null,null,null,null,null,null,null,null,null,null,null,null,null,null,null,{"$f":"IF('出場選手 データ入力・貼付'!B129&'出場選手 データ入力・貼付'!E129=\"\",\"\",IF('出場選手 データ入力・貼付'!E129<>\"\",'出場選手 データ入力・貼付'!E129,'出場選手 データ入力・貼付'!B129))","v":""},{"$f":"IF('出場選手 データ入力・貼付'!C129<>\"\",'出場選手 データ入力・貼付'!C129,\"\")","v":""},{"$f":"IFERROR('出場選手 データ入力・貼付'!G129,\"\")","v":""}]
[null,null,null,null,null,null,null,null,null,null,null,null,null,null,null,null,null,null,null,null,null,null,{"$f":"IF('出場選手 データ入力・貼付'!B130&'出場選手 データ入力・貼付'!E130=\"\",\"\",IF('出場選手 データ入力・貼付'!E130<>\"\",'出場選手 データ入力・貼付'!E130,'出場選手 データ入力・貼付'!B130))","v":""},{"$f":"IF('出場選手 データ入力・貼付'!C130<>\"\",'出場選手 データ入力・貼付'!C130,\"\")","v":""},{"$f":"IFERROR('出場選手 データ入力・貼付'!G130,\"\")","v":""}]
[null,null,null,null,null,null,null,null,null,null,null,null,null,null,null,null,null,null,null,null,null,null,{"$f":"IF('出場選手 データ入力・貼付'!B131&'出場選手 データ入力・貼付'!E131=\"\",\"\",IF('出場選手 データ入力・貼付'!E131<>\"\",'出場選手 データ入力・貼付'!E131,'出場選手 データ入力・貼付'!B131))","v":""},{"$f":"IF('出場選手 データ入力・貼付'!C131<>\"\",'出場選手 データ入力・貼付'!C131,\"\")","v":""},{"$f":"IFERROR('出場選手 データ入力・貼付'!G131,\"\")","v":""}]
[null,null,null,null,null,null,null,null,null,null,null,null,null,null,null,null,null,null,null,null,null,null,{"$f":"IF('出場選手 データ入力・貼付'!B132&'出場選手 データ入力・貼付'!E132=\"\",\"\",IF('出場選手 データ入力・貼付'!E132<>\"\",'出場選手 データ入力・貼付'!E132,'出場選手 データ入力・貼付'!B132))","v":""},{"$f":"IF('出場選手 データ入力・貼付'!C132<>\"\",'出場選手 データ入力・貼付'!C132,\"\")","v":""},{"$f":"IFERROR('出場選手 データ入力・貼付'!G132,\"\")","v":""}]
[null,null,null,null,null,null,null,null,null,null,null,null,null,null,null,null,null,null,null,null,null,null,{"$f":"IF('出場選手 データ入力・貼付'!B133&'出場選手 データ入力・貼付'!E133=\"\",\"\",IF('出場選手 データ入力・貼付'!E133<>\"\",'出場選手 データ入力・貼付'!E133,'出場選手 データ入力・貼付'!B133))","v":""},{"$f":"IF('出場選手 データ入力・貼付'!C133<>\"\",'出場選手 データ入力・貼付'!C133,\"\")","v":""},{"$f":"IFERROR('出場選手 データ入力・貼付'!G133,\"\")","v":""}]
[null,null,null,null,null,null,null,null,null,null,null,null,null,null,null,null,null,null,null,null,null,null,{"$f":"IF('出場選手 データ入力・貼付'!B134&'出場選手 データ入力・貼付'!E134=\"\",\"\",IF('出場選手 データ入力・貼付'!E134<>\"\",'出場選手 データ入力・貼付'!E134,'出場選手 データ入力・貼付'!B134))","v":""},{"$f":"IF('出場選手 データ入力・貼付'!C134<>\"\",'出場選手 データ入力・貼付'!C134,\"\")","v":""},{"$f":"IFERROR('出場選手 データ入力・貼付'!G134,\"\")","v":""}]
[null,null,null,null,null,null,null,null,null,null,null,null,null,null,null,null,null,null,null,null,null,null,{"$f":"IF('出場選手 データ入力・貼付'!B135&'出場選手 データ入力・貼付'!E135=\"\",\"\",IF('出場選手 データ入力・貼付'!E135<>\"\",'出場選手 データ入力・貼付'!E135,'出場選手 データ入力・貼付'!B135))","v":""},{"$f":"IF('出場選手 データ入力・貼付'!C135<>\"\",'出場選手 データ入力・貼付'!C135,\"\")","v":""},{"$f":"IFERROR('出場選手 データ入力・貼付'!G135,\"\")","v":""}]
[null,null,null,null,null,null,null,null,null,null,null,null,null,null,null,null,null,null,null,null,null,null,{"$f":"IF('出場選手 データ入力・貼付'!B136&'出場選手 データ入力・貼付'!E136=\"\",\"\",IF('出場選手 データ入力・貼付'!E136<>\"\",'出場選手 データ入力・貼付'!E136,'出場選手 データ入力・貼付'!B136))","v":""},{"$f":"IF('出場選手 データ入力・貼付'!C136<>\"\",'出場選手 データ入力・貼付'!C136,\"\")","v":""},{"$f":"IFERROR('出場選手 データ入力・貼付'!G136,\"\")","v":""}]
[null,null,null,null,null,null,null,null,null,null,null,null,null,null,null,null,null,null,null,null,null,null,{"$f":"IF('出場選手 データ入力・貼付'!B137&'出場選手 データ入力・貼付'!E137=\"\",\"\",IF('出場選手 データ入力・貼付'!E137<>\"\",'出場選手 データ入力・貼付'!E137,'出場選手 データ入力・貼付'!B137))","v":""},{"$f":"IF('出場選手 データ入力・貼付'!C137<>\"\",'出場選手 データ入力・貼付'!C137,\"\")","v":""},{"$f":"IFERROR('出場選手 データ入力・貼付'!G137,\"\")","v":""}]
[null,null,null,null,null,null,null,null,null,null,null,null,null,null,null,null,null,null,null,null,null,null,{"$f":"IF('出場選手 データ入力・貼付'!B138&'出場選手 データ入力・貼付'!E138=\"\",\"\",IF('出場選手 データ入力・貼付'!E138<>\"\",'出場選手 データ入力・貼付'!E138,'出場選手 データ入力・貼付'!B138))","v":""},{"$f":"IF('出場選手 データ入力・貼付'!C138<>\"\",'出場選手 データ入力・貼付'!C138,\"\")","v":""},{"$f":"IFERROR('出場選手 データ入力・貼付'!G138,\"\")","v":""}]
[null,null,null,null,null,null,null,null,null,null,null,null,null,null,null,null,null,null,null,null,null,null,{"$f":"IF('出場選手 データ入力・貼付'!B139&'出場選手 データ入力・貼付'!E139=\"\",\"\",IF('出場選手 データ入力・貼付'!E139<>\"\",'出場選手 データ入力・貼付'!E139,'出場選手 データ入力・貼付'!B139))","v":""},{"$f":"IF('出場選手 データ入力・貼付'!C139<>\"\",'出場選手 データ入力・貼付'!C139,\"\")","v":""},{"$f":"IFERROR('出場選手 データ入力・貼付'!G139,\"\")","v":""}]
[null,null,null,null,null,null,null,null,null,null,null,null,null,null,null,null,null,null,null,null,null,null,{"$f":"IF('出場選手 データ入力・貼付'!B140&'出場選手 データ入力・貼付'!E140=\"\",\"\",IF('出場選手 データ入力・貼付'!E140<>\"\",'出場選手 データ入力・貼付'!E140,'出場選手 データ入力・貼付'!B140))","v":""},{"$f":"IF('出場選手 データ入力・貼付'!C140<>\"\",'出場選手 データ入力・貼付'!C140,\"\")","v":""},{"$f":"IFERROR('出場選手 データ入力・貼付'!G140,\"\")","v":""}]
[null,null,null,null,null,null,null,null,null,null,null,null,null,null,null,null,null,null,null,null,null,null,{"$f":"IF('出場選手 データ入力・貼付'!B141&'出場選手 データ入力・貼付'!E141=\"\",\"\",IF('出場選手 データ入力・貼付'!E141<>\"\",'出場選手 データ入力・貼付'!E141,'出場選手 データ入力・貼付'!B141))","v":""},{"$f":"IF('出場選手 データ入力・貼付'!C141<>\"\",'出場選手 データ入力・貼付'!C141,\"\")","v":""},{"$f":"IFERROR('出場選手 データ入力・貼付'!G141,\"\")","v":""}]
[null,null,null,null,null,null,null,null,null,null,null,null,null,null,null,null,null,null,null,null,null,null,{"$f":"IF('出場選手 データ入力・貼付'!B142&'出場選手 データ入力・貼付'!E142=\"\",\"\",IF('出場選手 データ入力・貼付'!E142<>\"\",'出場選手 データ入力・貼付'!E142,'出場選手 データ入力・貼付'!B142))","v":""},{"$f":"IF('出場選手 データ入力・貼付'!C142<>\"\",'出場選手 データ入力・貼付'!C142,\"\")","v":""},{"$f":"IFERROR('出場選手 データ入力・貼付'!G142,\"\")","v":""}]
[null,null,null,null,null,null,null,null,null,null,null,null,null,null,null,null,null,null,null,null,null,null,{"$f":"IF('出場選手 データ入力・貼付'!B143&'出場選手 データ入力・貼付'!E143=\"\",\"\",IF('出場選手 データ入力・貼付'!E143<>\"\",'出場選手 データ入力・貼付'!E143,'出場選手 データ入力・貼付'!B143))","v":""},{"$f":"IF('出場選手 データ入力・貼付'!C143<>\"\",'出場選手 データ入力・貼付'!C143,\"\")","v":""},{"$f":"IFERROR('出場選手 データ入力・貼付'!G143,\"\")","v":""}]
[null,null,null,null,null,null,null,null,null,null,null,null,null,null,null,null,null,null,null,null,null,null,{"$f":"IF('出場選手 データ入力・貼付'!B144&'出場選手 データ入力・貼付'!E144=\"\",\"\",IF('出場選手 データ入力・貼付'!E144<>\"\",'出場選手 データ入力・貼付'!E144,'出場選手 データ入力・貼付'!B144))","v":""},{"$f":"IF('出場選手 データ入力・貼付'!C144<>\"\",'出場選手 データ入力・貼付'!C144,\"\")","v":""},{"$f":"IFERROR('出場選手 データ入力・貼付'!G144,\"\")","v":""}]
[null,null,null,null,null,null,null,null,null,null,null,null,null,null,null,null,null,null,null,null,null,null,{"$f":"IF('出場選手 データ入力・貼付'!B145&'出場選手 データ入力・貼付'!E145=\"\",\"\",IF('出場選手 データ入力・貼付'!E145<>\"\",'出場選手 データ入力・貼付'!E145,'出場選手 データ入力・貼付'!B145))","v":""},{"$f":"IF('出場選手 データ入力・貼付'!C145<>\"\",'出場選手 データ入力・貼付'!C145,\"\")","v":""},{"$f":"IFERROR('出場選手 データ入力・貼付'!G145,\"\")","v":""}]
[null,null,null,null,null,null,null,null,null,null,null,null,null,null,null,null,null,null,null,null,null,null,{"$f":"IF('出場選手 データ入力・貼付'!B146&'出場選手 データ入力・貼付'!E146=\"\",\"\",IF('出場選手 データ入力・貼付'!E146<>\"\",'出場選手 データ入力・貼付'!E146,'出場選手 データ入力・貼付'!B146))","v":""},{"$f":"IF('出場選手 データ入力・貼付'!C146<>\"\",'出場選手 データ入力・貼付'!C146,\"\")","v":""},{"$f":"IFERROR('出場選手 データ入力・貼付'!G146,\"\")","v":""}]
[null,null,null,null,null,null,null,null,null,null,null,null,null,null,null,null,null,null,null,null,null,null,{"$f":"IF('出場選手 データ入力・貼付'!B147&'出場選手 データ入力・貼付'!E147=\"\",\"\",IF('出場選手 データ入力・貼付'!E147<>\"\",'出場選手 データ入力・貼付'!E147,'出場選手 データ入力・貼付'!B147))","v":""},{"$f":"IF('出場選手 データ入力・貼付'!C147<>\"\",'出場選手 データ入力・貼付'!C147,\"\")","v":""},{"$f":"IFERROR('出場選手 データ入力・貼付'!G147,\"\")","v":""}]
[null,null,null,null,null,null,null,null,null,null,null,null,null,null,null,null,null,null,null,null,null,null,{"$f":"IF('出場選手 データ入力・貼付'!B148&'出場選手 データ入力・貼付'!E148=\"\",\"\",IF('出場選手 データ入力・貼付'!E148<>\"\",'出場選手 データ入力・貼付'!E148,'出場選手 データ入力・貼付'!B148))","v":""},{"$f":"IF('出場選手 データ入力・貼付'!C148<>\"\",'出場選手 データ入力・貼付'!C148,\"\")","v":""},{"$f":"IFERROR('出場選手 データ入力・貼付'!G148,\"\")","v":""}]
[null,null,null,null,null,null,null,null,null,null,null,null,null,null,null,null,null,null,null,null,null,null,{"$f":"IF('出場選手 データ入力・貼付'!B149&'出場選手 データ入力・貼付'!E149=\"\",\"\",IF('出場選手 データ入力・貼付'!E149<>\"\",'出場選手 データ入力・貼付'!E149,'出場選手 データ入力・貼付'!B149))","v":""},{"$f":"IF('出場選手 データ入力・貼付'!C149<>\"\",'出場選手 データ入力・貼付'!C149,\"\")","v":""},{"$f":"IFERROR('出場選手 データ入力・貼付'!G149,\"\")","v":""}]
[null,null,null,null,null,null,null,null,null,null,null,null,null,null,null,null,null,null,null,null,null,null,{"$f":"IF('出場選手 データ入力・貼付'!B150&'出場選手 データ入力・貼付'!E150=\"\",\"\",IF('出場選手 データ入力・貼付'!E150<>\"\",'出場選手 データ入力・貼付'!E150,'出場選手 データ入力・貼付'!B150))","v":""},{"$f":"IF('出場選手 データ入力・貼付'!C150<>\"\",'出場選手 データ入力・貼付'!C150,\"\")","v":""},{"$f":"IFERROR('出場選手 データ入力・貼付'!G150,\"\")","v":""}]
[null,null,null,null,null,null,null,null,null,null,null,null,null,null,null,null,null,null,null,null,null,null,{"$f":"IF('出場選手 データ入力・貼付'!B151&'出場選手 データ入力・貼付'!E151=\"\",\"\",IF('出場選手 データ入力・貼付'!E151<>\"\",'出場選手 データ入力・貼付'!E151,'出場選手 データ入力・貼付'!B151))","v":""},{"$f":"IF('出場選手 データ入力・貼付'!C151<>\"\",'出場選手 データ入力・貼付'!C151,\"\")","v":""},{"$f":"IFERROR('出場選手 データ入力・貼付'!G151,\"\")","v":""}]
[null,null,null,null,null,null,null,null,null,null,null,null,null,null,null,null,null,null,null,null,null,null,{"$f":"IF('出場選手 データ入力・貼付'!B152&'出場選手 データ入力・貼付'!E152=\"\",\"\",IF('出場選手 データ入力・貼付'!E152<>\"\",'出場選手 データ入力・貼付'!E152,'出場選手 データ入力・貼付'!B152))","v":""},{"$f":"IF('出場選手 データ入力・貼付'!C152<>\"\",'出場選手 データ入力・貼付'!C152,\"\")","v":""},{"$f":"IFERROR('出場選手 データ入力・貼付'!G152,\"\")","v":""}]
[null,null,null,null,null,null,null,null,null,null,null,null,null,null,null,null,null,null,null,null,null,null,{"$f":"IF('出場選手 データ入力・貼付'!B153&'出場選手 データ入力・貼付'!E153=\"\",\"\",IF('出場選手 データ入力・貼付'!E153<>\"\",'出場選手 データ入力・貼付'!E153,'出場選手 データ入力・貼付'!B153))","v":""},{"$f":"IF('出場選手 データ入力・貼付'!C153<>\"\",'出場選手 データ入力・貼付'!C153,\"\")","v":""},{"$f":"IFERROR('出場選手 データ入力・貼付'!G153,\"\")","v":""}]
[null,null,null,null,null,null,null,null,null,null,null,null,null,null,null,null,null,null,null,null,null,null,{"$f":"IF('出場選手 データ入力・貼付'!B154&'出場選手 データ入力・貼付'!E154=\"\",\"\",IF('出場選手 データ入力・貼付'!E154<>\"\",'出場選手 データ入力・貼付'!E154,'出場選手 データ入力・貼付'!B154))","v":""},{"$f":"IF('出場選手 データ入力・貼付'!C154<>\"\",'出場選手 データ入力・貼付'!C154,\"\")","v":""},{"$f":"IFERROR('出場選手 データ入力・貼付'!G154,\"\")","v":""}]
[null,null,null,null,null,null,null,null,null,null,null,null,null,null,null,null,null,null,null,null,null,null,{"$f":"IF('出場選手 データ入力・貼付'!B155&'出場選手 データ入力・貼付'!E155=\"\",\"\",IF('出場選手 データ入力・貼付'!E155<>\"\",'出場選手 データ入力・貼付'!E155,'出場選手 データ入力・貼付'!B155))","v":""},{"$f":"IF('出場選手 データ入力・貼付'!C155<>\"\",'出場選手 データ入力・貼付'!C155,\"\")","v":""},{"$f":"IFERROR('出場選手 データ入力・貼付'!G155,\"\")","v":""}]
[null,null,null,null,null,null,null,null,null,null,null,null,null,null,null,null,null,null,null,null,null,null,{"$f":"IF('出場選手 データ入力・貼付'!B156&'出場選手 データ入力・貼付'!E156=\"\",\"\",IF('出場選手 データ入力・貼付'!E156<>\"\",'出場選手 データ入力・貼付'!E156,'出場選手 データ入力・貼付'!B156))","v":""},{"$f":"IF('出場選手 データ入力・貼付'!C156<>\"\",'出場選手 データ入力・貼付'!C156,\"\")","v":""},{"$f":"IFERROR('出場選手 データ入力・貼付'!G156,\"\")","v":""}]
[null,null,null,null,null,null,null,null,null,null,null,null,null,null,null,null,null,null,null,null,null,null,{"$f":"IF('出場選手 データ入力・貼付'!B157&'出場選手 データ入力・貼付'!E157=\"\",\"\",IF('出場選手 データ入力・貼付'!E157<>\"\",'出場選手 データ入力・貼付'!E157,'出場選手 データ入力・貼付'!B157))","v":""},{"$f":"IF('出場選手 データ入力・貼付'!C157<>\"\",'出場選手 データ入力・貼付'!C157,\"\")","v":""},{"$f":"IFERROR('出場選手 データ入力・貼付'!G157,\"\")","v":""}]
[null,null,null,null,null,null,null,null,null,null,null,null,null,null,null,null,null,null,null,null,null,null,{"$f":"IF('出場選手 データ入力・貼付'!B158&'出場選手 データ入力・貼付'!E158=\"\",\"\",IF('出場選手 データ入力・貼付'!E158<>\"\",'出場選手 データ入力・貼付'!E158,'出場選手 データ入力・貼付'!B158))","v":""},{"$f":"IF('出場選手 データ入力・貼付'!C158<>\"\",'出場選手 データ入力・貼付'!C158,\"\")","v":""},{"$f":"IFERROR('出場選手 データ入力・貼付'!G158,\"\")","v":""}]
[null,null,null,null,null,null,null,null,null,null,null,null,null,null,null,null,null,null,null,null,null,null,{"$f":"IF('出場選手 データ入力・貼付'!B159&'出場選手 データ入力・貼付'!E159=\"\",\"\",IF('出場選手 データ入力・貼付'!E159<>\"\",'出場選手 データ入力・貼付'!E159,'出場選手 データ入力・貼付'!B159))","v":""},{"$f":"IF('出場選手 データ入力・貼付'!C159<>\"\",'出場選手 データ入力・貼付'!C159,\"\")","v":""},{"$f":"IFERROR('出場選手 データ入力・貼付'!G159,\"\")","v":""}]
[null,null,null,null,null,null,null,null,null,null,null,null,null,null,null,null,null,null,null,null,null,null,{"$f":"IF('出場選手 データ入力・貼付'!B160&'出場選手 データ入力・貼付'!E160=\"\",\"\",IF('出場選手 データ入力・貼付'!E160<>\"\",'出場選手 データ入力・貼付'!E160,'出場選手 データ入力・貼付'!B160))","v":""},{"$f":"IF('出場選手 データ入力・貼付'!C160<>\"\",'出場選手 データ入力・貼付'!C160,\"\")","v":""},{"$f":"IFERROR('出場選手 データ入力・貼付'!G160,\"\")","v":""}]
[null,null,null,null,null,null,null,null,null,null,null,null,null,null,null,null,null,null,null,null,null,null,{"$f":"IF('出場選手 データ入力・貼付'!B161&'出場選手 データ入力・貼付'!E161=\"\",\"\",IF('出場選手 データ入力・貼付'!E161<>\"\",'出場選手 データ入力・貼付'!E161,'出場選手 データ入力・貼付'!B161))","v":""},{"$f":"IF('出場選手 データ入力・貼付'!C161<>\"\",'出場選手 データ入力・貼付'!C161,\"\")","v":""},{"$f":"IFERROR('出場選手 データ入力・貼付'!G161,\"\")","v":""}]
[null,null,null,null,null,null,null,null,null,null,null,null,null,null,null,null,null,null,null,null,null,null,{"$f":"IF('出場選手 データ入力・貼付'!B162&'出場選手 データ入力・貼付'!E162=\"\",\"\",IF('出場選手 データ入力・貼付'!E162<>\"\",'出場選手 データ入力・貼付'!E162,'出場選手 データ入力・貼付'!B162))","v":""},{"$f":"IF('出場選手 データ入力・貼付'!C162<>\"\",'出場選手 データ入力・貼付'!C162,\"\")","v":""},{"$f":"IFERROR('出場選手 データ入力・貼付'!G162,\"\")","v":""}]
[null,null,null,null,null,null,null,null,null,null,null,null,null,null,null,null,null,null,null,null,null,null,{"$f":"IF('出場選手 データ入力・貼付'!B163&'出場選手 データ入力・貼付'!E163=\"\",\"\",IF('出場選手 データ入力・貼付'!E163<>\"\",'出場選手 データ入力・貼付'!E163,'出場選手 データ入力・貼付'!B163))","v":""},{"$f":"IF('出場選手 データ入力・貼付'!C163<>\"\",'出場選手 データ入力・貼付'!C163,\"\")","v":""},{"$f":"IFERROR('出場選手 データ入力・貼付'!G163,\"\")","v":""}]
[null,null,null,null,null,null,null,null,null,null,null,null,null,null,null,null,null,null,null,null,null,null,{"$f":"IF('出場選手 データ入力・貼付'!B164&'出場選手 データ入力・貼付'!E164=\"\",\"\",IF('出場選手 データ入力・貼付'!E164<>\"\",'出場選手 データ入力・貼付'!E164,'出場選手 データ入力・貼付'!B164))","v":""},{"$f":"IF('出場選手 データ入力・貼付'!C164<>\"\",'出場選手 データ入力・貼付'!C164,\"\")","v":""},{"$f":"IFERROR('出場選手 データ入力・貼付'!G164,\"\")","v":""}]
[null,null,null,null,null,null,null,null,null,null,null,null,null,null,null,null,null,null,null,null,null,null,{"$f":"IF('出場選手 データ入力・貼付'!B165&'出場選手 データ入力・貼付'!E165=\"\",\"\",IF('出場選手 データ入力・貼付'!E165<>\"\",'出場選手 データ入力・貼付'!E165,'出場選手 データ入力・貼付'!B165))","v":""},{"$f":"IF('出場選手 データ入力・貼付'!C165<>\"\",'出場選手 データ入力・貼付'!C165,\"\")","v":""},{"$f":"IFERROR('出場選手 データ入力・貼付'!G165,\"\")","v":""}]
[null,null,null,null,null,null,null,null,null,null,null,null,null,null,null,null,null,null,null,null,null,null,{"$f":"IF('出場選手 データ入力・貼付'!B166&'出場選手 データ入力・貼付'!E166=\"\",\"\",IF('出場選手 データ入力・貼付'!E166<>\"\",'出場選手 データ入力・貼付'!E166,'出場選手 データ入力・貼付'!B166))","v":""},{"$f":"IF('出場選手 データ入力・貼付'!C166<>\"\",'出場選手 データ入力・貼付'!C166,\"\")","v":""},{"$f":"IFERROR('出場選手 データ入力・貼付'!G166,\"\")","v":""}]
[null,null,null,null,null,null,null,null,null,null,null,null,null,null,null,null,null,null,null,null,null,null,{"$f":"IF('出場選手 データ入力・貼付'!B167&'出場選手 データ入力・貼付'!E167=\"\",\"\",IF('出場選手 データ入力・貼付'!E167<>\"\",'出場選手 データ入力・貼付'!E167,'出場選手 データ入力・貼付'!B167))","v":""},{"$f":"IF('出場選手 データ入力・貼付'!C167<>\"\",'出場選手 データ入力・貼付'!C167,\"\")","v":""},{"$f":"IFERROR('出場選手 データ入力・貼付'!G167,\"\")","v":""}]
[null,null,null,null,null,null,null,null,null,null,null,null,null,null,null,null,null,null,null,null,null,null,{"$f":"IF('出場選手 データ入力・貼付'!B168&'出場選手 データ入力・貼付'!E168=\"\",\"\",IF('出場選手 データ入力・貼付'!E168<>\"\",'出場選手 データ入力・貼付'!E168,'出場選手 データ入力・貼付'!B168))","v":""},{"$f":"IF('出場選手 データ入力・貼付'!C168<>\"\",'出場選手 データ入力・貼付'!C168,\"\")","v":""},{"$f":"IFERROR('出場選手 データ入力・貼付'!G168,\"\")","v":""}]
[null,null,null,null,null,null,null,null,null,null,null,null,null,null,null,null,null,null,null,null,null,null,{"$f":"IF('出場選手 データ入力・貼付'!B169&'出場選手 データ入力・貼付'!E169=\"\",\"\",IF('出場選手 データ入力・貼付'!E169<>\"\",'出場選手 データ入力・貼付'!E169,'出場選手 データ入力・貼付'!B169))","v":""},{"$f":"IF('出場選手 データ入力・貼付'!C169<>\"\",'出場選手 データ入力・貼付'!C169,\"\")","v":""},{"$f":"IFERROR('出場選手 データ入力・貼付'!G169,\"\")","v":""}]
[null,null,null,null,null,null,null,null,null,null,null,null,null,null,null,null,null,null,null,null,null,null,{"$f":"IF('出場選手 データ入力・貼付'!B170&'出場選手 データ入力・貼付'!E170=\"\",\"\",IF('出場選手 データ入力・貼付'!E170<>\"\",'出場選手 データ入力・貼付'!E170,'出場選手 データ入力・貼付'!B170))","v":""},{"$f":"IF('出場選手 データ入力・貼付'!C170<>\"\",'出場選手 データ入力・貼付'!C170,\"\")","v":""},{"$f":"IFERROR('出場選手 データ入力・貼付'!G170,\"\")","v":""}]
[null,null,null,null,null,null,null,null,null,null,null,null,null,null,null,null,null,null,null,null,null,null,{"$f":"IF('出場選手 データ入力・貼付'!B171&'出場選手 データ入力・貼付'!E171=\"\",\"\",IF('出場選手 データ入力・貼付'!E171<>\"\",'出場選手 データ入力・貼付'!E171,'出場選手 データ入力・貼付'!B171))","v":""},{"$f":"IF('出場選手 データ入力・貼付'!C171<>\"\",'出場選手 データ入力・貼付'!C171,\"\")","v":""},{"$f":"IFERROR('出場選手 データ入力・貼付'!G171,\"\")","v":""}]
[null,null,null,null,null,null,null,null,null,null,null,null,null,null,null,null,null,null,null,null,null,null,{"$f":"IF('出場選手 データ入力・貼付'!B172&'出場選手 データ入力・貼付'!E172=\"\",\"\",IF('出場選手 データ入力・貼付'!E172<>\"\",'出場選手 データ入力・貼付'!E172,'出場選手 データ入力・貼付'!B172))","v":""},{"$f":"IF('出場選手 データ入力・貼付'!C172<>\"\",'出場選手 データ入力・貼付'!C172,\"\")","v":""},{"$f":"IFERROR('出場選手 データ入力・貼付'!G172,\"\")","v":""}]
[null,null,null,null,null,null,null,null,null,null,null,null,null,null,null,null,null,null,null,null,null,null,{"$f":"IF('出場選手 データ入力・貼付'!B173&'出場選手 データ入力・貼付'!E173=\"\",\"\",IF('出場選手 データ入力・貼付'!E173<>\"\",'出場選手 データ入力・貼付'!E173,'出場選手 データ入力・貼付'!B173))","v":""},{"$f":"IF('出場選手 データ入力・貼付'!C173<>\"\",'出場選手 データ入力・貼付'!C173,\"\")","v":""},{"$f":"IFERROR('出場選手 データ入力・貼付'!G173,\"\")","v":""}]
[null,null,null,null,null,null,null,null,null,null,null,null,null,null,null,null,null,null,null,null,null,null,{"$f":"IF('出場選手 データ入力・貼付'!B174&'出場選手 データ入力・貼付'!E174=\"\",\"\",IF('出場選手 データ入力・貼付'!E174<>\"\",'出場選手 データ入力・貼付'!E174,'出場選手 データ入力・貼付'!B174))","v":""},{"$f":"IF('出場選手 データ入力・貼付'!C174<>\"\",'出場選手 データ入力・貼付'!C174,\"\")","v":""},{"$f":"IFERROR('出場選手 データ入力・貼付'!G174,\"\")","v":""}]
[null,null,null,null,null,null,null,null,null,null,null,null,null,null,null,null,null,null,null,null,null,null,{"$f":"IF('出場選手 データ入力・貼付'!B175&'出場選手 データ入力・貼付'!E175=\"\",\"\",IF('出場選手 データ入力・貼付'!E175<>\"\",'出場選手 データ入力・貼付'!E175,'出場選手 データ入力・貼付'!B175))","v":""},{"$f":"IF('出場選手 データ入力・貼付'!C175<>\"\",'出場選手 データ入力・貼付'!C175,\"\")","v":""},{"$f":"IFERROR('出場選手 データ入力・貼付'!G175,\"\")","v":""}]
[null,null,null,null,null,null,null,null,null,null,null,null,null,null,null,null,null,null,null,null,null,null,{"$f":"IF('出場選手 データ入力・貼付'!B176&'出場選手 データ入力・貼付'!E176=\"\",\"\",IF('出場選手 データ入力・貼付'!E176<>\"\",'出場選手 データ入力・貼付'!E176,'出場選手 データ入力・貼付'!B176))","v":""},{"$f":"IF('出場選手 データ入力・貼付'!C176<>\"\",'出場選手 データ入力・貼付'!C176,\"\")","v":""},{"$f":"IFERROR('出場選手 データ入力・貼付'!G176,\"\")","v":""}]
[null,null,null,null,null,null,null,null,null,null,null,null,null,null,null,null,null,null,null,null,null,null,{"$f":"IF('出場選手 データ入力・貼付'!B177&'出場選手 データ入力・貼付'!E177=\"\",\"\",IF('出場選手 データ入力・貼付'!E177<>\"\",'出場選手 データ入力・貼付'!E177,'出場選手 データ入力・貼付'!B177))","v":""},{"$f":"IF('出場選手 データ入力・貼付'!C177<>\"\",'出場選手 データ入力・貼付'!C177,\"\")","v":""},{"$f":"IFERROR('出場選手 データ入力・貼付'!G177,\"\")","v":""}]
[null,null,null,null,null,null,null,null,null,null,null,null,null,null,null,null,null,null,null,null,null,null,{"$f":"IF('出場選手 データ入力・貼付'!B178&'出場選手 データ入力・貼付'!E178=\"\",\"\",IF('出場選手 データ入力・貼付'!E178<>\"\",'出場選手 データ入力・貼付'!E178,'出場選手 データ入力・貼付'!B178))","v":""},{"$f":"IF('出場選手 データ入力・貼付'!C178<>\"\",'出場選手 データ入力・貼付'!C178,\"\")","v":""},{"$f":"IFERROR('出場選手 データ入力・貼付'!G178,\"\")","v":""}]
[null,null,null,null,null,null,null,null,null,null,null,null,null,null,null,null,null,null,null,null,null,null,{"$f":"IF('出場選手 データ入力・貼付'!B179&'出場選手 データ入力・貼付'!E179=\"\",\"\",IF('出場選手 データ入力・貼付'!E179<>\"\",'出場選手 データ入力・貼付'!E179,'出場選手 データ入力・貼付'!B179))","v":""},{"$f":"IF('出場選手 データ入力・貼付'!C179<>\"\",'出場選手 データ入力・貼付'!C179,\"\")","v":""},{"$f":"IFERROR('出場選手 データ入力・貼付'!G179,\"\")","v":""}]
[null,null,null,null,null,null,null,null,null,null,null,null,null,null,null,null,null,null,null,null,null,null,{"$f":"IF('出場選手 データ入力・貼付'!B180&'出場選手 データ入力・貼付'!E180=\"\",\"\",IF('出場選手 データ入力・貼付'!E180<>\"\",'出場選手 データ入力・貼付'!E180,'出場選手 データ入力・貼付'!B180))","v":""},{"$f":"IF('出場選手 データ入力・貼付'!C180<>\"\",'出場選手 データ入力・貼付'!C180,\"\")","v":""},{"$f":"IFERROR('出場選手 データ入力・貼付'!G180,\"\")","v":""}]
[null,null,null,null,null,null,null,null,null,null,null,null,null,null,null,null,null,null,null,null,null,null,{"$f":"IF('出場選手 データ入力・貼付'!B181&'出場選手 データ入力・貼付'!E181=\"\",\"\",IF('出場選手 データ入力・貼付'!E181<>\"\",'出場選手 データ入力・貼付'!E181,'出場選手 データ入力・貼付'!B181))","v":""},{"$f":"IF('出場選手 データ入力・貼付'!C181<>\"\",'出場選手 データ入力・貼付'!C181,\"\")","v":""},{"$f":"IFERROR('出場選手 データ入力・貼付'!G181,\"\")","v":""}]
[null,null,null,null,null,null,null,null,null,null,null,null,null,null,null,null,null,null,null,null,null,null,{"$f":"IF('出場選手 データ入力・貼付'!B182&'出場選手 データ入力・貼付'!E182=\"\",\"\",IF('出場選手 データ入力・貼付'!E182<>\"\",'出場選手 データ入力・貼付'!E182,'出場選手 データ入力・貼付'!B182))","v":""},{"$f":"IF('出場選手 データ入力・貼付'!C182<>\"\",'出場選手 データ入力・貼付'!C182,\"\")","v":""},{"$f":"IFERROR('出場選手 データ入力・貼付'!G182,\"\")","v":""}]
[null,null,null,null,null,null,null,null,null,null,null,null,null,null,null,null,null,null,null,null,null,null,{"$f":"IF('出場選手 データ入力・貼付'!B183&'出場選手 データ入力・貼付'!E183=\"\",\"\",IF('出場選手 データ入力・貼付'!E183<>\"\",'出場選手 データ入力・貼付'!E183,'出場選手 データ入力・貼付'!B183))","v":""},{"$f":"IF('出場選手 データ入力・貼付'!C183<>\"\",'出場選手 データ入力・貼付'!C183,\"\")","v":""},{"$f":"IFERROR('出場選手 データ入力・貼付'!G183,\"\")","v":""}]
[null,null,null,null,null,null,null,null,null,null,null,null,null,null,null,null,null,null,null,null,null,null,{"$f":"IF('出場選手 データ入力・貼付'!B184&'出場選手 データ入力・貼付'!E184=\"\",\"\",IF('出場選手 データ入力・貼付'!E184<>\"\",'出場選手 データ入力・貼付'!E184,'出場選手 データ入力・貼付'!B184))","v":""},{"$f":"IF('出場選手 データ入力・貼付'!C184<>\"\",'出場選手 データ入力・貼付'!C184,\"\")","v":""},{"$f":"IFERROR('出場選手 データ入力・貼付'!G184,\"\")","v":""}]
[null,null,null,null,null,null,null,null,null,null,null,null,null,null,null,null,null,null,null,null,null,null,{"$f":"IF('出場選手 データ入力・貼付'!B185&'出場選手 データ入力・貼付'!E185=\"\",\"\",IF('出場選手 データ入力・貼付'!E185<>\"\",'出場選手 データ入力・貼付'!E185,'出場選手 データ入力・貼付'!B185))","v":""},{"$f":"IF('出場選手 データ入力・貼付'!C185<>\"\",'出場選手 データ入力・貼付'!C185,\"\")","v":""},{"$f":"IFERROR('出場選手 データ入力・貼付'!G185,\"\")","v":""}]
[null,null,null,null,null,null,null,null,null,null,null,null,null,null,null,null,null,null,null,null,null,null,{"$f":"IF('出場選手 データ入力・貼付'!B186&'出場選手 データ入力・貼付'!E186=\"\",\"\",IF('出場選手 データ入力・貼付'!E186<>\"\",'出場選手 データ入力・貼付'!E186,'出場選手 データ入力・貼付'!B186))","v":""},{"$f":"IF('出場選手 データ入力・貼付'!C186<>\"\",'出場選手 データ入力・貼付'!C186,\"\")","v":""},{"$f":"IFERROR('出場選手 データ入力・貼付'!G186,\"\")","v":""}]
[null,null,null,null,null,null,null,null,null,null,null,null,null,null,null,null,null,null,null,null,null,null,{"$f":"IF('出場選手 データ入力・貼付'!B187&'出場選手 データ入力・貼付'!E187=\"\",\"\",IF('出場選手 データ入力・貼付'!E187<>\"\",'出場選手 データ入力・貼付'!E187,'出場選手 データ入力・貼付'!B187))","v":""},{"$f":"IF('出場選手 データ入力・貼付'!C187<>\"\",'出場選手 データ入力・貼付'!C187,\"\")","v":""},{"$f":"IFERROR('出場選手 データ入力・貼付'!G187,\"\")","v":""}]
[null,null,null,null,null,null,null,null,null,null,null,null,null,null,null,null,null,null,null,null,null,null,{"$f":"IF('出場選手 データ入力・貼付'!B188&'出場選手 データ入力・貼付'!E188=\"\",\"\",IF('出場選手 データ入力・貼付'!E188<>\"\",'出場選手 データ入力・貼付'!E188,'出場選手 データ入力・貼付'!B188))","v":""},{"$f":"IF('出場選手 データ入力・貼付'!C188<>\"\",'出場選手 データ入力・貼付'!C188,\"\")","v":""},{"$f":"IFERROR('出場選手 データ入力・貼付'!G188,\"\")","v":""}]
[null,null,null,null,null,null,null,null,null,null,null,null,null,null,null,null,null,null,null,null,null,null,{"$f":"IF('出場選手 データ入力・貼付'!B189&'出場選手 データ入力・貼付'!E189=\"\",\"\",IF('出場選手 データ入力・貼付'!E189<>\"\",'出場選手 データ入力・貼付'!E189,'出場選手 データ入力・貼付'!B189))","v":""},{"$f":"IF('出場選手 データ入力・貼付'!C189<>\"\",'出場選手 データ入力・貼付'!C189,\"\")","v":""},{"$f":"IFERROR('出場選手 データ入力・貼付'!G189,\"\")","v":""}]
[null,null,null,null,null,null,null,null,null,null,null,null,null,null,null,null,null,null,null,null,null,null,{"$f":"IF('出場選手 データ入力・貼付'!B190&'出場選手 データ入力・貼付'!E190=\"\",\"\",IF('出場選手 データ入力・貼付'!E190<>\"\",'出場選手 データ入力・貼付'!E190,'出場選手 データ入力・貼付'!B190))","v":""},{"$f":"IF('出場選手 データ入力・貼付'!C190<>\"\",'出場選手 データ入力・貼付'!C190,\"\")","v":""},{"$f":"IFERROR('出場選手 データ入力・貼付'!G190,\"\")","v":""}]
[null,null,null,null,null,null,null,null,null,null,null,null,null,null,null,null,null,null,null,null,null,null,{"$f":"IF('出場選手 データ入力・貼付'!B191&'出場選手 データ入力・貼付'!E191=\"\",\"\",IF('出場選手 データ入力・貼付'!E191<>\"\",'出場選手 データ入力・貼付'!E191,'出場選手 データ入力・貼付'!B191))","v":""},{"$f":"IF('出場選手 データ入力・貼付'!C191<>\"\",'出場選手 データ入力・貼付'!C191,\"\")","v":""},{"$f":"IFERROR('出場選手 データ入力・貼付'!G191,\"\")","v":""}]
[null,null,null,null,null,null,null,null,null,null,null,null,null,null,null,null,null,null,null,null,null,null,{"$f":"IF('出場選手 データ入力・貼付'!B192&'出場選手 データ入力・貼付'!E192=\"\",\"\",IF('出場選手 データ入力・貼付'!E192<>\"\",'出場選手 データ入力・貼付'!E192,'出場選手 データ入力・貼付'!B192))","v":""},{"$f":"IF('出場選手 データ入力・貼付'!C192<>\"\",'出場選手 データ入力・貼付'!C192,\"\")","v":""},{"$f":"IFERROR('出場選手 データ入力・貼付'!G192,\"\")","v":""}]
[null,null,null,null,null,null,null,null,null,null,null,null,null,null,null,null,null,null,null,null,null,null,{"$f":"IF('出場選手 データ入力・貼付'!B193&'出場選手 データ入力・貼付'!E193=\"\",\"\",IF('出場選手 データ入力・貼付'!E193<>\"\",'出場選手 データ入力・貼付'!E193,'出場選手 データ入力・貼付'!B193))","v":""},{"$f":"IF('出場選手 データ入力・貼付'!C193<>\"\",'出場選手 データ入力・貼付'!C193,\"\")","v":""},{"$f":"IFERROR('出場選手 データ入力・貼付'!G193,\"\")","v":""}]
[null,null,null,null,null,null,null,null,null,null,null,null,null,null,null,null,null,null,null,null,null,null,{"$f":"IF('出場選手 データ入力・貼付'!B194&'出場選手 データ入力・貼付'!E194=\"\",\"\",IF('出場選手 データ入力・貼付'!E194<>\"\",'出場選手 データ入力・貼付'!E194,'出場選手 データ入力・貼付'!B194))","v":""},{"$f":"IF('出場選手 データ入力・貼付'!C194<>\"\",'出場選手 データ入力・貼付'!C194,\"\")","v":""},{"$f":"IFERROR('出場選手 データ入力・貼付'!G194,\"\")","v":""}]
[null,null,null,null,null,null,null,null,null,null,null,null,null,null,null,null,null,null,null,null,null,null,{"$f":"IF('出場選手 データ入力・貼付'!B195&'出場選手 データ入力・貼付'!E195=\"\",\"\",IF('出場選手 データ入力・貼付'!E195<>\"\",'出場選手 データ入力・貼付'!E195,'出場選手 データ入力・貼付'!B195))","v":""},{"$f":"IF('出場選手 データ入力・貼付'!C195<>\"\",'出場選手 データ入力・貼付'!C195,\"\")","v":""},{"$f":"IFERROR('出場選手 データ入力・貼付'!G195,\"\")","v":""}]
["男子",null,null,null,null,null,null,null,null,null,null,null,null,null,null,null,null,null,null,null,null,null,{"$f":"IF('出場選手 データ入力・貼付'!B196&'出場選手 データ入力・貼付'!E196=\"\",\"\",IF('出場選手 データ入力・貼付'!E196<>\"\",'出場選手 データ入力・貼付'!E196,'出場選手 データ入力・貼付'!B196))","v":""},{"$f":"IF('出場選手 データ入力・貼付'!C196<>\"\",'出場選手 データ入力・貼付'!C196,\"\")","v":""},{"$f":"IFERROR('出場選手 データ入力・貼付'!G196,\"\")","v":""}]
["女子",null,null,null,null,null,null,null,null,null,null,null,null,null,null,null,null,null,null,null,null,null,{"$f":"IF('出場選手 データ入力・貼付'!B197&'出場選手 データ入力・貼付'!E197=\"\",\"\",IF('出場選手 データ入力・貼付'!E197<>\"\",'出場選手 データ入力・貼付'!E197,'出場選手 データ入力・貼付'!B197))","v":""},{"$f":"IF('出場選手 データ入力・貼付'!C197<>\"\",'出場選手 データ入力・貼付'!C197,\"\")","v":""},{"$f":"IFERROR('出場選手 データ入力・貼付'!G197,\"\")","v":""}]
[null,null,null,null,null,null,null,null,null,null,null,null,null,null,null,null,null,null,null,null,null,null,{"$f":"IF('出場選手 データ入力・貼付'!B198&'出場選手 データ入力・貼付'!E198=\"\",\"\",IF('出場選手 データ入力・貼付'!E198<>\"\",'出場選手 データ入力・貼付'!E198,'出場選手 データ入力・貼付'!B198))","v":""},{"$f":"IF('出場選手 データ入力・貼付'!C198<>\"\",'出場選手 データ入力・貼付'!C198,\"\")","v":""},{"$f":"IFERROR('出場選手 データ入力・貼付'!G198,\"\")","v":""}]
[null,null,null,null,null,null,null,null,null,null,null,null,null,null,null,null,null,null,null,null,null,null,{"$f":"IF('出場選手 データ入力・貼付'!B199&'出場選手 データ入力・貼付'!E199=\"\",\"\",IF('出場選手 データ入力・貼付'!E199<>\"\",'出場選手 データ入力・貼付'!E199,'出場選手 データ入力・貼付'!B199))","v":""},{"$f":"IF('出場選手 データ入力・貼付'!C199<>\"\",'出場選手 データ入力・貼付'!C199,\"\")","v":""},{"$f":"IFERROR('出場選手 データ入力・貼付'!G199,\"\")","v":""}]
["第  １  回戦",null,null,null,null,null,null,null,null,null,null,null,null,null,null,null,null,null,null,null,null,null,{"$f":"IF('出場選手 データ入力・貼付'!B200&'出場選手 データ入力・貼付'!E200=\"\",\"\",IF('出場選手 データ入力・貼付'!E200<>\"\",'出場選手 データ入力・貼付'!E200,'出場選手 データ入力・貼付'!B200))","v":""},{"$f":"IF('出場選手 データ入力・貼付'!C200<>\"\",'出場選手 データ入力・貼付'!C200,\"\")","v":""},{"$f":"IFERROR('出場選手 データ入力・貼付'!G200,\"\")","v":""}]
["第  ２  回戦",null,null,null,null,null,null,null,null,null,null,null,null,null,null,null,null,null,null,null,null,null,{"$f":"IF('出場選手 データ入力・貼付'!B201&'出場選手 データ入力・貼付'!E201=\"\",\"\",IF('出場選手 データ入力・貼付'!E201<>\"\",'出場選手 データ入力・貼付'!E201,'出場選手 データ入力・貼付'!B201))","v":""},{"$f":"IF('出場選手 データ入力・貼付'!C201<>\"\",'出場選手 データ入力・貼付'!C201,\"\")","v":""},{"$f":"IFERROR('出場選手 データ入力・貼付'!G201,\"\")","v":""}]
["第  ３  回戦",null,null,null,null,null,null,null,null,null,null,null,null,null,null,null,null,null,null,null,null,null,{"$f":"IF('出場選手 データ入力・貼付'!B202&'出場選手 データ入力・貼付'!E202=\"\",\"\",IF('出場選手 データ入力・貼付'!E202<>\"\",'出場選手 データ入力・貼付'!E202,'出場選手 データ入力・貼付'!B202))","v":""},{"$f":"IF('出場選手 データ入力・貼付'!C202<>\"\",'出場選手 データ入力・貼付'!C202,\"\")","v":""},{"$f":"IFERROR('出場選手 データ入力・貼付'!G202,\"\")","v":""}]
["第  ４  回戦",null,null,null,null,null,null,null,null,null,null,null,null,null,null,null,null,null,null,null,null,null,{"$f":"IF('出場選手 データ入力・貼付'!B203&'出場選手 データ入力・貼付'!E203=\"\",\"\",IF('出場選手 データ入力・貼付'!E203<>\"\",'出場選手 データ入力・貼付'!E203,'出場選手 データ入力・貼付'!B203))","v":""},{"$f":"IF('出場選手 データ入力・貼付'!C203<>\"\",'出場選手 データ入力・貼付'!C203,\"\")","v":""},{"$f":"IFERROR('出場選手 データ入力・貼付'!G203,\"\")","v":""}]
["第  ５  回戦",null,null,null,null,null,null,null,null,null,null,null,null,null,null,null,null,null,null,null,null,null,{"$f":"IF('出場選手 データ入力・貼付'!B204&'出場選手 データ入力・貼付'!E204=\"\",\"\",IF('出場選手 データ入力・貼付'!E204<>\"\",'出場選手 データ入力・貼付'!E204,'出場選手 データ入力・貼付'!B204))","v":""},{"$f":"IF('出場選手 データ入力・貼付'!C204<>\"\",'出場選手 データ入力・貼付'!C204,\"\")","v":""},{"$f":"IFERROR('出場選手 データ入力・貼付'!G204,\"\")","v":""}]
["第  ６  回戦 ",null,null,null,null,null,null,null,null,null,null,null,null,null,null,null,null,null,null,null,null,null,{"$f":"IF('出場選手 データ入力・貼付'!B205&'出場選手 データ入力・貼付'!E205=\"\",\"\",IF('出場選手 データ入力・貼付'!E205<>\"\",'出場選手 データ入力・貼付'!E205,'出場選手 データ入力・貼付'!B205))","v":""},{"$f":"IF('出場選手 データ入力・貼付'!C205<>\"\",'出場選手 データ入力・貼付'!C205,\"\")","v":""},{"$f":"IFERROR('出場選手 データ入力・貼付'!G205,\"\")","v":""}]
["準 々 決 勝",null,null,null,null,null,null,null,null,null,null,null,null,null,null,null,null,null,null,null,null,null,{"$f":"IF('出場選手 データ入力・貼付'!B206&'出場選手 データ入力・貼付'!E206=\"\",\"\",IF('出場選手 データ入力・貼付'!E206<>\"\",'出場選手 データ入力・貼付'!E206,'出場選手 データ入力・貼付'!B206))","v":""},{"$f":"IF('出場選手 データ入力・貼付'!C206<>\"\",'出場選手 データ入力・貼付'!C206,\"\")","v":""},{"$f":"IFERROR('出場選手 データ入力・貼付'!G206,\"\")","v":""}]
["準 決 勝",null,null,null,null,null,null,null,null,null,null,null,null,null,null,null,null,null,null,null,null,null,{"$f":"IF('出場選手 データ入力・貼付'!B207&'出場選手 データ入力・貼付'!E207=\"\",\"\",IF('出場選手 データ入力・貼付'!E207<>\"\",'出場選手 データ入力・貼付'!E207,'出場選手 データ入力・貼付'!B207))","v":""},{"$f":"IF('出場選手 データ入力・貼付'!C207<>\"\",'出場選手 データ入力・貼付'!C207,\"\")","v":""},{"$f":"IFERROR('出場選手 データ入力・貼付'!G207,\"\")","v":""}]
["決  勝",null,null,null,null,null,null,null,null,null,null,null,null,null,null,null,null,null,null,null,null,null,{"$f":"IF('出場選手 データ入力・貼付'!B208&'出場選手 データ入力・貼付'!E208=\"\",\"\",IF('出場選手 データ入力・貼付'!E208<>\"\",'出場選手 データ入力・貼付'!E208,'出場選手 データ入力・貼付'!B208))","v":""},{"$f":"IF('出場選手 データ入力・貼付'!C208<>\"\",'出場選手 データ入力・貼付'!C208,\"\")","v":""},{"$f":"IFERROR('出場選手 データ入力・貼付'!G208,\"\")","v":""}]
[null,null,null,null,null,null,null,null,null,null,null,null,null,null,null,null,null,null,null,null,null,null,{"$f":"IF('出場選手 データ入力・貼付'!B209&'出場選手 データ入力・貼付'!E209=\"\",\"\",IF('出場選手 データ入力・貼付'!E209<>\"\",'出場選手 データ入力・貼付'!E209,'出場選手 データ入力・貼付'!B209))","v":""},{"$f":"IF('出場選手 データ入力・貼付'!C209<>\"\",'出場選手 データ入力・貼付'!C209,\"\")","v":""},{"$f":"IFERROR('出場選手 データ入力・貼付'!G209,\"\")","v":""}]
[null,null,null,null,null,null,null,null,null,null,null,null,null,null,null,null,null,null,null,null,null,null,{"$f":"IF('出場選手 データ入力・貼付'!B210&'出場選手 データ入力・貼付'!E210=\"\",\"\",IF('出場選手 データ入力・貼付'!E210<>\"\",'出場選手 データ入力・貼付'!E210,'出場選手 データ入力・貼付'!B210))","v":""},{"$f":"IF('出場選手 データ入力・貼付'!C210<>\"\",'出場選手 データ入力・貼付'!C210,\"\")","v":""},{"$f":"IFERROR('出場選手 データ入力・貼付'!G210,\"\")","v":""}]
[null,null,null,null,null,null,null,null,null,null,null,null,null,null,null,null,null,null,null,null,null,null,{"$f":"IF('出場選手 データ入力・貼付'!B211&'出場選手 データ入力・貼付'!E211=\"\",\"\",IF('出場選手 データ入力・貼付'!E211<>\"\",'出場選手 データ入力・貼付'!E211,'出場選手 データ入力・貼付'!B211))","v":""},{"$f":"IF('出場選手 データ入力・貼付'!C211<>\"\",'出場選手 データ入力・貼付'!C211,\"\")","v":""},{"$f":"IFERROR('出場選手 データ入力・貼付'!G211,\"\")","v":""}]
[null,null,null,null,null,null,null,null,null,null,null,null,null,null,null,null,null,null,null,null,null,null,{"$f":"IF('出場選手 データ入力・貼付'!B212&'出場選手 データ入力・貼付'!E212=\"\",\"\",IF('出場選手 データ入力・貼付'!E212<>\"\",'出場選手 データ入力・貼付'!E212,'出場選手 データ入力・貼付'!B212))","v":""},{"$f":"IF('出場選手 データ入力・貼付'!C212<>\"\",'出場選手 データ入力・貼付'!C212,\"\")","v":""},{"$f":"IFERROR('出場選手 データ入力・貼付'!G212,\"\")","v":""}]
[null,null,null,null,null,null,null,null,null,null,null,null,null,null,null,null,null,null,null,null,null,null,{"$f":"IF('出場選手 データ入力・貼付'!B213&'出場選手 データ入力・貼付'!E213=\"\",\"\",IF('出場選手 データ入力・貼付'!E213<>\"\",'出場選手 データ入力・貼付'!E213,'出場選手 データ入力・貼付'!B213))","v":""},{"$f":"IF('出場選手 データ入力・貼付'!C213<>\"\",'出場選手 データ入力・貼付'!C213,\"\")","v":""},{"$f":"IFERROR('出場選手 データ入力・貼付'!G213,\"\")","v":""}]
[null,null,null,null,null,null,null,null,null,null,null,null,null,null,null,null,null,null,null,null,null,null,{"$f":"IF('出場選手 データ入力・貼付'!B214&'出場選手 データ入力・貼付'!E214=\"\",\"\",IF('出場選手 データ入力・貼付'!E214<>\"\",'出場選手 データ入力・貼付'!E214,'出場選手 データ入力・貼付'!B214))","v":""},{"$f":"IF('出場選手 データ入力・貼付'!C214<>\"\",'出場選手 データ入力・貼付'!C214,\"\")","v":""},{"$f":"IFERROR('出場選手 データ入力・貼付'!G214,\"\")","v":""}]
[null,null,null,null,null,null,null,null,null,null,null,null,null,null,null,null,null,null,null,null,null,null,{"$f":"IF('出場選手 データ入力・貼付'!B215&'出場選手 データ入力・貼付'!E215=\"\",\"\",IF('出場選手 データ入力・貼付'!E215<>\"\",'出場選手 データ入力・貼付'!E215,'出場選手 データ入力・貼付'!B215))","v":""},{"$f":"IF('出場選手 データ入力・貼付'!C215<>\"\",'出場選手 データ入力・貼付'!C215,\"\")","v":""},{"$f":"IFERROR('出場選手 データ入力・貼付'!G215,\"\")","v":""}]
[null,null,null,null,null,null,null,null,null,null,null,null,null,null,null,null,null,null,null,null,null,null,{"$f":"IF('出場選手 データ入力・貼付'!B216&'出場選手 データ入力・貼付'!E216=\"\",\"\",IF('出場選手 データ入力・貼付'!E216<>\"\",'出場選手 データ入力・貼付'!E216,'出場選手 データ入力・貼付'!B216))","v":""},{"$f":"IF('出場選手 データ入力・貼付'!C216<>\"\",'出場選手 データ入力・貼付'!C216,\"\")","v":""},{"$f":"IFERROR('出場選手 データ入力・貼付'!G216,\"\")","v":""}]
[null,null,null,null,null,null,null,null,null,null,null,null,null,null,null,null,null,null,null,null,null,null,{"$f":"IF('出場選手 データ入力・貼付'!B217&'出場選手 データ入力・貼付'!E217=\"\",\"\",IF('出場選手 データ入力・貼付'!E217<>\"\",'出場選手 データ入力・貼付'!E217,'出場選手 データ入力・貼付'!B217))","v":""},{"$f":"IF('出場選手 データ入力・貼付'!C217<>\"\",'出場選手 データ入力・貼付'!C217,\"\")","v":""},{"$f":"IFERROR('出場選手 データ入力・貼付'!G217,\"\")","v":""}]
[null,null,null,null,null,null,null,null,null,null,null,null,null,null,null,null,null,null,null,null,null,null,{"$f":"IF('出場選手 データ入力・貼付'!B218&'出場選手 データ入力・貼付'!E218=\"\",\"\",IF('出場選手 データ入力・貼付'!E218<>\"\",'出場選手 データ入力・貼付'!E218,'出場選手 データ入力・貼付'!B218))","v":""},{"$f":"IF('出場選手 データ入力・貼付'!C218<>\"\",'出場選手 データ入力・貼付'!C218,\"\")","v":""},{"$f":"IFERROR('出場選手 データ入力・貼付'!G218,\"\")","v":""}]
[null,null,null,null,null,null,null,null,null,null,null,null,null,null,null,null,null,null,null,null,null,null,{"$f":"IF('出場選手 データ入力・貼付'!B219&'出場選手 データ入力・貼付'!E219=\"\",\"\",IF('出場選手 データ入力・貼付'!E219<>\"\",'出場選手 データ入力・貼付'!E219,'出場選手 データ入力・貼付'!B219))","v":""},{"$f":"IF('出場選手 データ入力・貼付'!C219<>\"\",'出場選手 データ入力・貼付'!C219,\"\")","v":""},{"$f":"IFERROR('出場選手 データ入力・貼付'!G219,\"\")","v":""}]
[null,null,null,null,null,null,null,null,null,null,null,null,null,null,null,null,null,null,null,null,null,null,{"$f":"IF('出場選手 データ入力・貼付'!B220&'出場選手 データ入力・貼付'!E220=\"\",\"\",IF('出場選手 データ入力・貼付'!E220<>\"\",'出場選手 データ入力・貼付'!E220,'出場選手 データ入力・貼付'!B220))","v":""},{"$f":"IF('出場選手 データ入力・貼付'!C220<>\"\",'出場選手 データ入力・貼付'!C220,\"\")","v":""},{"$f":"IFERROR('出場選手 データ入力・貼付'!G220,\"\")","v":""}]
[null,null,null,null,null,null,null,null,null,null,null,null,null,null,null,null,null,null,null,null,null,null,{"$f":"IF('出場選手 データ入力・貼付'!B221&'出場選手 データ入力・貼付'!E221=\"\",\"\",IF('出場選手 データ入力・貼付'!E221<>\"\",'出場選手 データ入力・貼付'!E221,'出場選手 データ入力・貼付'!B221))","v":""},{"$f":"IF('出場選手 データ入力・貼付'!C221<>\"\",'出場選手 データ入力・貼付'!C221,\"\")","v":""},{"$f":"IFERROR('出場選手 データ入力・貼付'!G221,\"\")","v":""}]
[null,null,null,null,null,null,null,null,null,null,null,null,null,null,null,null,null,null,null,null,null,null,{"$f":"IF('出場選手 データ入力・貼付'!B222&'出場選手 データ入力・貼付'!E222=\"\",\"\",IF('出場選手 データ入力・貼付'!E222<>\"\",'出場選手 データ入力・貼付'!E222,'出場選手 データ入力・貼付'!B222))","v":""},{"$f":"IF('出場選手 データ入力・貼付'!C222<>\"\",'出場選手 データ入力・貼付'!C222,\"\")","v":""},{"$f":"IFERROR('出場選手 データ入力・貼付'!G222,\"\")","v":""}]
[null,null,null,null,null,null,null,null,null,null,null,null,null,null,null,null,null,null,null,null,null,null,{"$f":"IF('出場選手 データ入力・貼付'!B223&'出場選手 データ入力・貼付'!E223=\"\",\"\",IF('出場選手 データ入力・貼付'!E223<>\"\",'出場選手 データ入力・貼付'!E223,'出場選手 データ入力・貼付'!B223))","v":""},{"$f":"IF('出場選手 データ入力・貼付'!C223<>\"\",'出場選手 データ入力・貼付'!C223,\"\")","v":""},{"$f":"IFERROR('出場選手 データ入力・貼付'!G223,\"\")","v":""}]
[null,null,null,null,null,null,null,null,null,null,null,null,null,null,null,null,null,null,null,null,null,null,{"$f":"IF('出場選手 データ入力・貼付'!B224&'出場選手 データ入力・貼付'!E224=\"\",\"\",IF('出場選手 データ入力・貼付'!E224<>\"\",'出場選手 データ入力・貼付'!E224,'出場選手 データ入力・貼付'!B224))","v":""},{"$f":"IF('出場選手 データ入力・貼付'!C224<>\"\",'出場選手 データ入力・貼付'!C224,\"\")","v":""},{"$f":"IFERROR('出場選手 データ入力・貼付'!G224,\"\")","v":""}]
[null,null,null,null,null,null,null,null,null,null,null,null,null,null,null,null,null,null,null,null,null,null,{"$f":"IF('出場選手 データ入力・貼付'!B225&'出場選手 データ入力・貼付'!E225=\"\",\"\",IF('出場選手 データ入力・貼付'!E225<>\"\",'出場選手 データ入力・貼付'!E225,'出場選手 データ入力・貼付'!B225))","v":""},{"$f":"IF('出場選手 データ入力・貼付'!C225<>\"\",'出場選手 データ入力・貼付'!C225,\"\")","v":""},{"$f":"IFERROR('出場選手 データ入力・貼付'!G225,\"\")","v":""}]
[null,null,null,null,null,null,null,null,null,null,null,null,null,null,null,null,null,null,null,null,null,null,{"$f":"IF('出場選手 データ入力・貼付'!B226&'出場選手 データ入力・貼付'!E226=\"\",\"\",IF('出場選手 データ入力・貼付'!E226<>\"\",'出場選手 データ入力・貼付'!E226,'出場選手 データ入力・貼付'!B226))","v":""},{"$f":"IF('出場選手 データ入力・貼付'!C226<>\"\",'出場選手 データ入力・貼付'!C226,\"\")","v":""},{"$f":"IFERROR('出場選手 データ入力・貼付'!G226,\"\")","v":""}]
[null,null,null,null,null,null,null,null,null,null,null,null,null,null,null,null,null,null,null,null,null,null,{"$f":"IF('出場選手 データ入力・貼付'!B227&'出場選手 データ入力・貼付'!E227=\"\",\"\",IF('出場選手 データ入力・貼付'!E227<>\"\",'出場選手 データ入力・貼付'!E227,'出場選手 データ入力・貼付'!B227))","v":""},{"$f":"IF('出場選手 データ入力・貼付'!C227<>\"\",'出場選手 データ入力・貼付'!C227,\"\")","v":""},{"$f":"IFERROR('出場選手 データ入力・貼付'!G227,\"\")","v":""}]
[null,null,null,null,null,null,null,null,null,null,null,null,null,null,null,null,null,null,null,null,null,null,{"$f":"IF('出場選手 データ入力・貼付'!B228&'出場選手 データ入力・貼付'!E228=\"\",\"\",IF('出場選手 データ入力・貼付'!E228<>\"\",'出場選手 データ入力・貼付'!E228,'出場選手 データ入力・貼付'!B228))","v":""},{"$f":"IF('出場選手 データ入力・貼付'!C228<>\"\",'出場選手 データ入力・貼付'!C228,\"\")","v":""},{"$f":"IFERROR('出場選手 データ入力・貼付'!G228,\"\")","v":""}]
[null,null,null,null,null,null,null,null,null,null,null,null,null,null,null,null,null,null,null,null,null,null,{"$f":"IF('出場選手 データ入力・貼付'!B229&'出場選手 データ入力・貼付'!E229=\"\",\"\",IF('出場選手 データ入力・貼付'!E229<>\"\",'出場選手 データ入力・貼付'!E229,'出場選手 データ入力・貼付'!B229))","v":""},{"$f":"IF('出場選手 データ入力・貼付'!C229<>\"\",'出場選手 データ入力・貼付'!C229,\"\")","v":""},{"$f":"IFERROR('出場選手 データ入力・貼付'!G229,\"\")","v":""}]
[null,null,null,null,null,null,null,null,null,null,null,null,null,null,null,null,null,null,null,null,null,null,{"$f":"IF('出場選手 データ入力・貼付'!B230&'出場選手 データ入力・貼付'!E230=\"\",\"\",IF('出場選手 データ入力・貼付'!E230<>\"\",'出場選手 データ入力・貼付'!E230,'出場選手 データ入力・貼付'!B230))","v":""},{"$f":"IF('出場選手 データ入力・貼付'!C230<>\"\",'出場選手 データ入力・貼付'!C230,\"\")","v":""},{"$f":"IFERROR('出場選手 データ入力・貼付'!G230,\"\")","v":""}]
[null,null,null,null,null,null,null,null,null,null,null,null,null,null,null,null,null,null,null,null,null,null,{"$f":"IF('出場選手 データ入力・貼付'!B231&'出場選手 データ入力・貼付'!E231=\"\",\"\",IF('出場選手 データ入力・貼付'!E231<>\"\",'出場選手 データ入力・貼付'!E231,'出場選手 データ入力・貼付'!B231))","v":""},{"$f":"IF('出場選手 データ入力・貼付'!C231<>\"\",'出場選手 データ入力・貼付'!C231,\"\")","v":""},{"$f":"IFERROR('出場選手 データ入力・貼付'!G231,\"\")","v":""}]
[null,null,null,null,null,null,null,null,null,null,null,null,null,null,null,null,null,null,null,null,null,null,{"$f":"IF('出場選手 データ入力・貼付'!B232&'出場選手 データ入力・貼付'!E232=\"\",\"\",IF('出場選手 データ入力・貼付'!E232<>\"\",'出場選手 データ入力・貼付'!E232,'出場選手 データ入力・貼付'!B232))","v":""},{"$f":"IF('出場選手 データ入力・貼付'!C232<>\"\",'出場選手 データ入力・貼付'!C232,\"\")","v":""},{"$f":"IFERROR('出場選手 データ入力・貼付'!G232,\"\")","v":""}]
[null,null,null,null,null,null,null,null,null,null,null,null,null,null,null,null,null,null,null,null,null,null,{"$f":"IF('出場選手 データ入力・貼付'!B233&'出場選手 データ入力・貼付'!E233=\"\",\"\",IF('出場選手 データ入力・貼付'!E233<>\"\",'出場選手 データ入力・貼付'!E233,'出場選手 データ入力・貼付'!B233))","v":""},{"$f":"IF('出場選手 データ入力・貼付'!C233<>\"\",'出場選手 データ入力・貼付'!C233,\"\")","v":""},{"$f":"IFERROR('出場選手 データ入力・貼付'!G233,\"\")","v":""}]
[null,null,null,null,null,null,null,null,null,null,null,null,null,null,null,null,null,null,null,null,null,null,{"$f":"IF('出場選手 データ入力・貼付'!B234&'出場選手 データ入力・貼付'!E234=\"\",\"\",IF('出場選手 データ入力・貼付'!E234<>\"\",'出場選手 データ入力・貼付'!E234,'出場選手 データ入力・貼付'!B234))","v":""},{"$f":"IF('出場選手 データ入力・貼付'!C234<>\"\",'出場選手 データ入力・貼付'!C234,\"\")","v":""},{"$f":"IFERROR('出場選手 データ入力・貼付'!G234,\"\")","v":""}]
[null,null,null,null,null,null,null,null,null,null,null,null,null,null,null,null,null,null,null,null,null,null,{"$f":"IF('出場選手 データ入力・貼付'!B235&'出場選手 データ入力・貼付'!E235=\"\",\"\",IF('出場選手 データ入力・貼付'!E235<>\"\",'出場選手 データ入力・貼付'!E235,'出場選手 データ入力・貼付'!B235))","v":""},{"$f":"IF('出場選手 データ入力・貼付'!C235<>\"\",'出場選手 データ入力・貼付'!C235,\"\")","v":""},{"$f":"IFERROR('出場選手 データ入力・貼付'!G235,\"\")","v":""}]
[null,null,null,null,null,null,null,null,null,null,null,null,null,null,null,null,null,null,null,null,null,null,{"$f":"IF('出場選手 データ入力・貼付'!B236&'出場選手 データ入力・貼付'!E236=\"\",\"\",IF('出場選手 データ入力・貼付'!E236<>\"\",'出場選手 データ入力・貼付'!E236,'出場選手 データ入力・貼付'!B236))","v":""},{"$f":"IF('出場選手 データ入力・貼付'!C236<>\"\",'出場選手 データ入力・貼付'!C236,\"\")","v":""},{"$f":"IFERROR('出場選手 データ入力・貼付'!G236,\"\")","v":""}]
[null,null,null,null,null,null,null,null,null,null,null,null,null,null,null,null,null,null,null,null,null,null,{"$f":"IF('出場選手 データ入力・貼付'!B237&'出場選手 データ入力・貼付'!E237=\"\",\"\",IF('出場選手 データ入力・貼付'!E237<>\"\",'出場選手 データ入力・貼付'!E237,'出場選手 データ入力・貼付'!B237))","v":""},{"$f":"IF('出場選手 データ入力・貼付'!C237<>\"\",'出場選手 データ入力・貼付'!C237,\"\")","v":""},{"$f":"IFERROR('出場選手 データ入力・貼付'!G237,\"\")","v":""}]
[null,null,null,null,null,null,null,null,null,null,null,null,null,null,null,null,null,null,null,null,null,null,{"$f":"IF('出場選手 データ入力・貼付'!B238&'出場選手 データ入力・貼付'!E238=\"\",\"\",IF('出場選手 データ入力・貼付'!E238<>\"\",'出場選手 データ入力・貼付'!E238,'出場選手 データ入力・貼付'!B238))","v":""},{"$f":"IF('出場選手 データ入力・貼付'!C238<>\"\",'出場選手 データ入力・貼付'!C238,\"\")","v":""},{"$f":"IFERROR('出場選手 データ入力・貼付'!G238,\"\")","v":""}]
[null,null,null,null,null,null,null,null,null,null,null,null,null,null,null,null,null,null,null,null,null,null,{"$f":"IF('出場選手 データ入力・貼付'!B239&'出場選手 データ入力・貼付'!E239=\"\",\"\",IF('出場選手 データ入力・貼付'!E239<>\"\",'出場選手 データ入力・貼付'!E239,'出場選手 データ入力・貼付'!B239))","v":""},{"$f":"IF('出場選手 データ入力・貼付'!C239<>\"\",'出場選手 データ入力・貼付'!C239,\"\")","v":""},{"$f":"IFERROR('出場選手 データ入力・貼付'!G239,\"\")","v":""}]
[null,null,null,null,null,null,null,null,null,null,null,null,null,null,null,null,null,null,null,null,null,null,{"$f":"IF('出場選手 データ入力・貼付'!B240&'出場選手 データ入力・貼付'!E240=\"\",\"\",IF('出場選手 データ入力・貼付'!E240<>\"\",'出場選手 データ入力・貼付'!E240,'出場選手 データ入力・貼付'!B240))","v":""},{"$f":"IF('出場選手 データ入力・貼付'!C240<>\"\",'出場選手 データ入力・貼付'!C240,\"\")","v":""},{"$f":"IFERROR('出場選手 データ入力・貼付'!G240,\"\")","v":""}]
[null,null,null,null,null,null,null,null,null,null,null,null,null,null,null,null,null,null,null,null,null,null,{"$f":"IF('出場選手 データ入力・貼付'!B241&'出場選手 データ入力・貼付'!E241=\"\",\"\",IF('出場選手 データ入力・貼付'!E241<>\"\",'出場選手 データ入力・貼付'!E241,'出場選手 データ入力・貼付'!B241))","v":""},{"$f":"IF('出場選手 データ入力・貼付'!C241<>\"\",'出場選手 データ入力・貼付'!C241,\"\")","v":""},{"$f":"IFERROR('出場選手 データ入力・貼付'!G241,\"\")","v":""}]
[null,null,null,null,null,null,null,null,null,null,null,null,null,null,null,null,null,null,null,null,null,null,{"$f":"IF('出場選手 データ入力・貼付'!B242&'出場選手 データ入力・貼付'!E242=\"\",\"\",IF('出場選手 データ入力・貼付'!E242<>\"\",'出場選手 データ入力・貼付'!E242,'出場選手 データ入力・貼付'!B242))","v":""},{"$f":"IF('出場選手 データ入力・貼付'!C242<>\"\",'出場選手 データ入力・貼付'!C242,\"\")","v":""},{"$f":"IFERROR('出場選手 データ入力・貼付'!G242,\"\")","v":""}]
[null,null,null,null,null,null,null,null,null,null,null,null,null,null,null,null,null,null,null,null,null,null,{"$f":"IF('出場選手 データ入力・貼付'!B243&'出場選手 データ入力・貼付'!E243=\"\",\"\",IF('出場選手 データ入力・貼付'!E243<>\"\",'出場選手 データ入力・貼付'!E243,'出場選手 データ入力・貼付'!B243))","v":""},{"$f":"IF('出場選手 データ入力・貼付'!C243<>\"\",'出場選手 データ入力・貼付'!C243,\"\")","v":""},{"$f":"IFERROR('出場選手 データ入力・貼付'!G243,\"\")","v":""}]
[null,null,null,null,null,null,null,null,null,null,null,null,null,null,null,null,null,null,null,null,null,null,{"$f":"IF('出場選手 データ入力・貼付'!B244&'出場選手 データ入力・貼付'!E244=\"\",\"\",IF('出場選手 データ入力・貼付'!E244<>\"\",'出場選手 データ入力・貼付'!E244,'出場選手 データ入力・貼付'!B244))","v":""},{"$f":"IF('出場選手 データ入力・貼付'!C244<>\"\",'出場選手 データ入力・貼付'!C244,\"\")","v":""},{"$f":"IFERROR('出場選手 データ入力・貼付'!G244,\"\")","v":""}]
[null,null,null,null,null,null,null,null,null,null,null,null,null,null,null,null,null,null,null,null,null,null,{"$f":"IF('出場選手 データ入力・貼付'!B245&'出場選手 データ入力・貼付'!E245=\"\",\"\",IF('出場選手 データ入力・貼付'!E245<>\"\",'出場選手 データ入力・貼付'!E245,'出場選手 データ入力・貼付'!B245))","v":""},{"$f":"IF('出場選手 データ入力・貼付'!C245<>\"\",'出場選手 データ入力・貼付'!C245,\"\")","v":""},{"$f":"IFERROR('出場選手 データ入力・貼付'!G245,\"\")","v":""}]
[null,null,null,null,null,null,null,null,null,null,null,null,null,null,null,null,null,null,null,null,null,null,{"$f":"IF('出場選手 データ入力・貼付'!B246&'出場選手 データ入力・貼付'!E246=\"\",\"\",IF('出場選手 データ入力・貼付'!E246<>\"\",'出場選手 データ入力・貼付'!E246,'出場選手 データ入力・貼付'!B246))","v":""},{"$f":"IF('出場選手 データ入力・貼付'!C246<>\"\",'出場選手 データ入力・貼付'!C246,\"\")","v":""},{"$f":"IFERROR('出場選手 データ入力・貼付'!G246,\"\")","v":""}]
[null,null,null,null,null,null,null,null,null,null,null,null,null,null,null,null,null,null,null,null,null,null,{"$f":"IF('出場選手 データ入力・貼付'!B247&'出場選手 データ入力・貼付'!E247=\"\",\"\",IF('出場選手 データ入力・貼付'!E247<>\"\",'出場選手 データ入力・貼付'!E247,'出場選手 データ入力・貼付'!B247))","v":""},{"$f":"IF('出場選手 データ入力・貼付'!C247<>\"\",'出場選手 データ入力・貼付'!C247,\"\")","v":""},{"$f":"IFERROR('出場選手 データ入力・貼付'!G247,\"\")","v":""}]
[null,null,null,null,null,null,null,null,null,null,null,null,null,null,null,null,null,null,null,null,null,null,{"$f":"IF('出場選手 データ入力・貼付'!B248&'出場選手 データ入力・貼付'!E248=\"\",\"\",IF('出場選手 データ入力・貼付'!E248<>\"\",'出場選手 データ入力・貼付'!E248,'出場選手 データ入力・貼付'!B248))","v":""},{"$f":"IF('出場選手 データ入力・貼付'!C248<>\"\",'出場選手 データ入力・貼付'!C248,\"\")","v":""},{"$f":"IFERROR('出場選手 データ入力・貼付'!G248,\"\")","v":""}]
[null,null,null,null,null,null,null,null,null,null,null,null,null,null,null,null,null,null,null,null,null,null,{"$f":"IF('出場選手 データ入力・貼付'!B249&'出場選手 データ入力・貼付'!E249=\"\",\"\",IF('出場選手 データ入力・貼付'!E249<>\"\",'出場選手 データ入力・貼付'!E249,'出場選手 データ入力・貼付'!B249))","v":""},{"$f":"IF('出場選手 データ入力・貼付'!C249<>\"\",'出場選手 データ入力・貼付'!C249,\"\")","v":""},{"$f":"IFERROR('出場選手 データ入力・貼付'!G249,\"\")","v":""}]
[null,null,null,null,null,null,null,null,null,null,null,null,null,null,null,null,null,null,null,null,null,null,{"$f":"IF('出場選手 データ入力・貼付'!B250&'出場選手 データ入力・貼付'!E250=\"\",\"\",IF('出場選手 データ入力・貼付'!E250<>\"\",'出場選手 データ入力・貼付'!E250,'出場選手 データ入力・貼付'!B250))","v":""},{"$f":"IF('出場選手 データ入力・貼付'!C250<>\"\",'出場選手 データ入力・貼付'!C250,\"\")","v":""},{"$f":"IFERROR('出場選手 データ入力・貼付'!G250,\"\")","v":""}]
[null,null,null,null,null,null,null,null,null,null,null,null,null,null,null,null,null,null,null,null,null,null,{"$f":"IF('出場選手 データ入力・貼付'!B251&'出場選手 データ入力・貼付'!E251=\"\",\"\",IF('出場選手 データ入力・貼付'!E251<>\"\",'出場選手 データ入力・貼付'!E251,'出場選手 データ入力・貼付'!B251))","v":""},{"$f":"IF('出場選手 データ入力・貼付'!C251<>\"\",'出場選手 データ入力・貼付'!C251,\"\")","v":""},{"$f":"IFERROR('出場選手 データ入力・貼付'!G251,\"\")","v":""}]
[null,null,null,null,null,null,null,null,null,null,null,null,null,null,null,null,null,null,null,null,null,null,{"$f":"IF('出場選手 データ入力・貼付'!B252&'出場選手 データ入力・貼付'!E252=\"\",\"\",IF('出場選手 データ入力・貼付'!E252<>\"\",'出場選手 データ入力・貼付'!E252,'出場選手 データ入力・貼付'!B252))","v":""},{"$f":"IF('出場選手 データ入力・貼付'!C252<>\"\",'出場選手 データ入力・貼付'!C252,\"\")","v":""},{"$f":"IFERROR('出場選手 データ入力・貼付'!G252,\"\")","v":""}]
[null,null,null,null,null,null,null,null,null,null,null,null,null,null,null,null,null,null,null,null,null,null,{"$f":"IF('出場選手 データ入力・貼付'!B253&'出場選手 データ入力・貼付'!E253=\"\",\"\",IF('出場選手 データ入力・貼付'!E253<>\"\",'出場選手 データ入力・貼付'!E253,'出場選手 データ入力・貼付'!B253))","v":""},{"$f":"IF('出場選手 データ入力・貼付'!C253<>\"\",'出場選手 データ入力・貼付'!C253,\"\")","v":""},{"$f":"IFERROR('出場選手 データ入力・貼付'!G253,\"\")","v":""}]
[null,null,null,null,null,null,null,null,null,null,null,null,null,null,null,null,null,null,null,null,null,null,{"$f":"IF('出場選手 データ入力・貼付'!B254&'出場選手 データ入力・貼付'!E254=\"\",\"\",IF('出場選手 データ入力・貼付'!E254<>\"\",'出場選手 データ入力・貼付'!E254,'出場選手 データ入力・貼付'!B254))","v":""},{"$f":"IF('出場選手 データ入力・貼付'!C254<>\"\",'出場選手 データ入力・貼付'!C254,\"\")","v":""},{"$f":"IFERROR('出場選手 データ入力・貼付'!G254,\"\")","v":""}]
[null,null,null,null,null,null,null,null,null,null,null,null,null,null,null,null,null,null,null,null,null,null,{"$f":"IF('出場選手 データ入力・貼付'!B255&'出場選手 データ入力・貼付'!E255=\"\",\"\",IF('出場選手 データ入力・貼付'!E255<>\"\",'出場選手 データ入力・貼付'!E255,'出場選手 データ入力・貼付'!B255))","v":""},{"$f":"IF('出場選手 データ入力・貼付'!C255<>\"\",'出場選手 データ入力・貼付'!C255,\"\")","v":""},{"$f":"IFERROR('出場選手 データ入力・貼付'!G255,\"\")","v":""}]
[null,null,null,null,null,null,null,null,null,null,null,null,null,null,null,null,null,null,null,null,null,null,{"$f":"IF('出場選手 データ入力・貼付'!B256&'出場選手 データ入力・貼付'!E256=\"\",\"\",IF('出場選手 データ入力・貼付'!E256<>\"\",'出場選手 データ入力・貼付'!E256,'出場選手 データ入力・貼付'!B256))","v":""},{"$f":"IF('出場選手 データ入力・貼付'!C256<>\"\",'出場選手 データ入力・貼付'!C256,\"\")","v":""},{"$f":"IFERROR('出場選手 データ入力・貼付'!G256,\"\")","v":""}]
[null,null,null,null,null,null,null,null,null,null,null,null,null,null,null,null,null,null,null,null,null,null,{"$f":"IF('出場選手 データ入力・貼付'!B257&'出場選手 データ入力・貼付'!E257=\"\",\"\",IF('出場選手 データ入力・貼付'!E257<>\"\",'出場選手 データ入力・貼付'!E257,'出場選手 データ入力・貼付'!B257))","v":""},{"$f":"IF('出場選手 データ入力・貼付'!C257<>\"\",'出場選手 データ入力・貼付'!C257,\"\")","v":""},{"$f":"IFERROR('出場選手 データ入力・貼付'!G257,\"\")","v":""}]
[null,null,null,null,null,null,null,null,null,null,null,null,null,null,null,null,null,null,null,null,null,null,{"$f":"IF('出場選手 データ入力・貼付'!B258&'出場選手 データ入力・貼付'!E258=\"\",\"\",IF('出場選手 データ入力・貼付'!E258<>\"\",'出場選手 データ入力・貼付'!E258,'出場選手 データ入力・貼付'!B258))","v":""},{"$f":"IF('出場選手 データ入力・貼付'!C258<>\"\",'出場選手 データ入力・貼付'!C258,\"\")","v":""},{"$f":"IFERROR('出場選手 データ入力・貼付'!G258,\"\")","v":""}]
[null,null,null,null,null,null,null,null,null,null,null,null,null,null,null,null,null,null,null,null,null,null,{"$f":"IF('出場選手 データ入力・貼付'!B259&'出場選手 データ入力・貼付'!E259=\"\",\"\",IF('出場選手 データ入力・貼付'!E259<>\"\",'出場選手 データ入力・貼付'!E259,'出場選手 データ入力・貼付'!B259))","v":""},{"$f":"IF('出場選手 データ入力・貼付'!C259<>\"\",'出場選手 データ入力・貼付'!C259,\"\")","v":""},{"$f":"IFERROR('出場選手 データ入力・貼付'!G259,\"\")","v":""}]
[null,null,null,null,null,null,null,null,null,null,null,null,null,null,null,null,null,null,null,null,null,null,{"$f":"IF('出場選手 データ入力・貼付'!B260&'出場選手 データ入力・貼付'!E260=\"\",\"\",IF('出場選手 データ入力・貼付'!E260<>\"\",'出場選手 データ入力・貼付'!E260,'出場選手 データ入力・貼付'!B260))","v":""},{"$f":"IF('出場選手 データ入力・貼付'!C260<>\"\",'出場選手 データ入力・貼付'!C260,\"\")","v":""},{"$f":"IFERROR('出場選手 データ入力・貼付'!G260,\"\")","v":""}]
[null,null,null,null,null,null,null,null,null,null,null,null,null,null,null,null,null,null,null,null,null,null,{"$f":"IF('出場選手 データ入力・貼付'!B261&'出場選手 データ入力・貼付'!E261=\"\",\"\",IF('出場選手 データ入力・貼付'!E261<>\"\",'出場選手 データ入力・貼付'!E261,'出場選手 データ入力・貼付'!B261))","v":""},{"$f":"IF('出場選手 データ入力・貼付'!C261<>\"\",'出場選手 データ入力・貼付'!C261,\"\")","v":""},{"$f":"IFERROR('出場選手 データ入力・貼付'!G261,\"\")","v":""}]
[null,null,null,null,null,null,null,null,null,null,null,null,null,null,null,null,null,null,null,null,null,null,{"$f":"IF('出場選手 データ入力・貼付'!B262&'出場選手 データ入力・貼付'!E262=\"\",\"\",IF('出場選手 データ入力・貼付'!E262<>\"\",'出場選手 データ入力・貼付'!E262,'出場選手 データ入力・貼付'!B262))","v":""},{"$f":"IF('出場選手 データ入力・貼付'!C262<>\"\",'出場選手 データ入力・貼付'!C262,\"\")","v":""},{"$f":"IFERROR('出場選手 データ入力・貼付'!G262,\"\")","v":""}]
[null,null,null,null,null,null,null,null,null,null,null,null,null,null,null,null,null,null,null,null,null,null,{"$f":"IF('出場選手 データ入力・貼付'!B263&'出場選手 データ入力・貼付'!E263=\"\",\"\",IF('出場選手 データ入力・貼付'!E263<>\"\",'出場選手 データ入力・貼付'!E263,'出場選手 データ入力・貼付'!B263))","v":""},{"$f":"IF('出場選手 データ入力・貼付'!C263<>\"\",'出場選手 データ入力・貼付'!C263,\"\")","v":""},{"$f":"IFERROR('出場選手 データ入力・貼付'!G263,\"\")","v":""}]
[null,null,null,null,null,null,null,null,null,null,null,null,null,null,null,null,null,null,null,null,null,null,{"$f":"IF('出場選手 データ入力・貼付'!B264&'出場選手 データ入力・貼付'!E264=\"\",\"\",IF('出場選手 データ入力・貼付'!E264<>\"\",'出場選手 データ入力・貼付'!E264,'出場選手 データ入力・貼付'!B264))","v":""},{"$f":"IF('出場選手 データ入力・貼付'!C264<>\"\",'出場選手 データ入力・貼付'!C264,\"\")","v":""},{"$f":"IFERROR('出場選手 データ入力・貼付'!G264,\"\")","v":""}]
[null,null,null,null,null,null,null,null,null,null,null,null,null,null,null,null,null,null,null,null,null,null,{"$f":"IF('出場選手 データ入力・貼付'!B265&'出場選手 データ入力・貼付'!E265=\"\",\"\",IF('出場選手 データ入力・貼付'!E265<>\"\",'出場選手 データ入力・貼付'!E265,'出場選手 データ入力・貼付'!B265))","v":""},{"$f":"IF('出場選手 データ入力・貼付'!C265<>\"\",'出場選手 データ入力・貼付'!C265,\"\")","v":""},{"$f":"IFERROR('出場選手 データ入力・貼付'!G265,\"\")","v":""}]
[null,null,null,null,null,null,null,null,null,null,null,null,null,null,null,null,null,null,null,null,null,null,{"$f":"IF('出場選手 データ入力・貼付'!B266&'出場選手 データ入力・貼付'!E266=\"\",\"\",IF('出場選手 データ入力・貼付'!E266<>\"\",'出場選手 データ入力・貼付'!E266,'出場選手 データ入力・貼付'!B266))","v":""},{"$f":"IF('出場選手 データ入力・貼付'!C266<>\"\",'出場選手 データ入力・貼付'!C266,\"\")","v":""},{"$f":"IFERROR('出場選手 データ入力・貼付'!G266,\"\")","v":""}]
[null,null,null,null,null,null,null,null,null,null,null,null,null,null,null,null,null,null,null,null,null,null,{"$f":"IF('出場選手 データ入力・貼付'!B267&'出場選手 データ入力・貼付'!E267=\"\",\"\",IF('出場選手 データ入力・貼付'!E267<>\"\",'出場選手 データ入力・貼付'!E267,'出場選手 データ入力・貼付'!B267))","v":""},{"$f":"IF('出場選手 データ入力・貼付'!C267<>\"\",'出場選手 データ入力・貼付'!C267,\"\")","v":""},{"$f":"IFERROR('出場選手 データ入力・貼付'!G267,\"\")","v":""}]
[null,null,null,null,null,null,null,null,null,null,null,null,null,null,null,null,null,null,null,null,null,null,{"$f":"IF('出場選手 データ入力・貼付'!B268&'出場選手 データ入力・貼付'!E268=\"\",\"\",IF('出場選手 データ入力・貼付'!E268<>\"\",'出場選手 データ入力・貼付'!E268,'出場選手 データ入力・貼付'!B268))","v":""},{"$f":"IF('出場選手 データ入力・貼付'!C268<>\"\",'出場選手 データ入力・貼付'!C268,\"\")","v":""},{"$f":"IFERROR('出場選手 データ入力・貼付'!G268,\"\")","v":""}]
[null,null,null,null,null,null,null,null,null,null,null,null,null,null,null,null,null,null,null,null,null,null,{"$f":"IF('出場選手 データ入力・貼付'!B269&'出場選手 データ入力・貼付'!E269=\"\",\"\",IF('出場選手 データ入力・貼付'!E269<>\"\",'出場選手 データ入力・貼付'!E269,'出場選手 データ入力・貼付'!B269))","v":""},{"$f":"IF('出場選手 データ入力・貼付'!C269<>\"\",'出場選手 データ入力・貼付'!C269,\"\")","v":""},{"$f":"IFERROR('出場選手 データ入力・貼付'!G269,\"\")","v":""}]
[null,null,null,null,null,null,null,null,null,null,null,null,null,null,null,null,null,null,null,null,null,null,{"$f":"IF('出場選手 データ入力・貼付'!B270&'出場選手 データ入力・貼付'!E270=\"\",\"\",IF('出場選手 データ入力・貼付'!E270<>\"\",'出場選手 データ入力・貼付'!E270,'出場選手 データ入力・貼付'!B270))","v":""},{"$f":"IF('出場選手 データ入力・貼付'!C270<>\"\",'出場選手 データ入力・貼付'!C270,\"\")","v":""},{"$f":"IFERROR('出場選手 データ入力・貼付'!G270,\"\")","v":""}]
[null,null,null,null,null,null,null,null,null,null,null,null,null,null,null,null,null,null,null,null,null,null,{"$f":"IF('出場選手 データ入力・貼付'!B271&'出場選手 データ入力・貼付'!E271=\"\",\"\",IF('出場選手 データ入力・貼付'!E271<>\"\",'出場選手 データ入力・貼付'!E271,'出場選手 データ入力・貼付'!B271))","v":""},{"$f":"IF('出場選手 データ入力・貼付'!C271<>\"\",'出場選手 データ入力・貼付'!C271,\"\")","v":""},{"$f":"IFERROR('出場選手 データ入力・貼付'!G271,\"\")","v":""}]
[null,null,null,null,null,null,null,null,null,null,null,null,null,null,null,null,null,null,null,null,null,null,{"$f":"IF('出場選手 データ入力・貼付'!B272&'出場選手 データ入力・貼付'!E272=\"\",\"\",IF('出場選手 データ入力・貼付'!E272<>\"\",'出場選手 データ入力・貼付'!E272,'出場選手 データ入力・貼付'!B272))","v":""},{"$f":"IF('出場選手 データ入力・貼付'!C272<>\"\",'出場選手 データ入力・貼付'!C272,\"\")","v":""},{"$f":"IFERROR('出場選手 データ入力・貼付'!G272,\"\")","v":""}]
[null,null,null,null,null,null,null,null,null,null,null,null,null,null,null,null,null,null,null,null,null,null,{"$f":"IF('出場選手 データ入力・貼付'!B273&'出場選手 データ入力・貼付'!E273=\"\",\"\",IF('出場選手 データ入力・貼付'!E273<>\"\",'出場選手 データ入力・貼付'!E273,'出場選手 データ入力・貼付'!B273))","v":""},{"$f":"IF('出場選手 データ入力・貼付'!C273<>\"\",'出場選手 データ入力・貼付'!C273,\"\")","v":""},{"$f":"IFERROR('出場選手 データ入力・貼付'!G273,\"\")","v":""}]
[null,null,null,null,null,null,null,null,null,null,null,null,null,null,null,null,null,null,null,null,null,null,{"$f":"IF('出場選手 データ入力・貼付'!B274&'出場選手 データ入力・貼付'!E274=\"\",\"\",IF('出場選手 データ入力・貼付'!E274<>\"\",'出場選手 データ入力・貼付'!E274,'出場選手 データ入力・貼付'!B274))","v":""},{"$f":"IF('出場選手 データ入力・貼付'!C274<>\"\",'出場選手 データ入力・貼付'!C274,\"\")","v":""},{"$f":"IFERROR('出場選手 データ入力・貼付'!G274,\"\")","v":""}]
[null,null,null,null,null,null,null,null,null,null,null,null,null,null,null,null,null,null,null,null,null,null,{"$f":"IF('出場選手 データ入力・貼付'!B275&'出場選手 データ入力・貼付'!E275=\"\",\"\",IF('出場選手 データ入力・貼付'!E275<>\"\",'出場選手 データ入力・貼付'!E275,'出場選手 データ入力・貼付'!B275))","v":""},{"$f":"IF('出場選手 データ入力・貼付'!C275<>\"\",'出場選手 データ入力・貼付'!C275,\"\")","v":""},{"$f":"IFERROR('出場選手 データ入力・貼付'!G275,\"\")","v":""}]
[null,null,null,null,null,null,null,null,null,null,null,null,null,null,null,null,null,null,null,null,null,null,{"$f":"IF('出場選手 データ入力・貼付'!B276&'出場選手 データ入力・貼付'!E276=\"\",\"\",IF('出場選手 データ入力・貼付'!E276<>\"\",'出場選手 データ入力・貼付'!E276,'出場選手 データ入力・貼付'!B276))","v":""},{"$f":"IF('出場選手 データ入力・貼付'!C276<>\"\",'出場選手 データ入力・貼付'!C276,\"\")","v":""},{"$f":"IFERROR('出場選手 データ入力・貼付'!G276,\"\")","v":""}]
[null,null,null,null,null,null,null,null,null,null,null,null,null,null,null,null,null,null,null,null,null,null,{"$f":"IF('出場選手 データ入力・貼付'!B277&'出場選手 データ入力・貼付'!E277=\"\",\"\",IF('出場選手 データ入力・貼付'!E277<>\"\",'出場選手 データ入力・貼付'!E277,'出場選手 データ入力・貼付'!B277))","v":""},{"$f":"IF('出場選手 データ入力・貼付'!C277<>\"\",'出場選手 データ入力・貼付'!C277,\"\")","v":""},{"$f":"IFERROR('出場選手 データ入力・貼付'!G277,\"\")","v":""}]
[null,null,null,null,null,null,null,null,null,null,null,null,null,null,null,null,null,null,null,null,null,null,{"$f":"IF('出場選手 データ入力・貼付'!B278&'出場選手 データ入力・貼付'!E278=\"\",\"\",IF('出場選手 データ入力・貼付'!E278<>\"\",'出場選手 データ入力・貼付'!E278,'出場選手 データ入力・貼付'!B278))","v":""},{"$f":"IF('出場選手 データ入力・貼付'!C278<>\"\",'出場選手 データ入力・貼付'!C278,\"\")","v":""},{"$f":"IFERROR('出場選手 データ入力・貼付'!G278,\"\")","v":""}]
[null,null,null,null,null,null,null,null,null,null,null,null,null,null,null,null,null,null,null,null,null,null,{"$f":"IF('出場選手 データ入力・貼付'!B279&'出場選手 データ入力・貼付'!E279=\"\",\"\",IF('出場選手 データ入力・貼付'!E279<>\"\",'出場選手 データ入力・貼付'!E279,'出場選手 データ入力・貼付'!B279))","v":""},{"$f":"IF('出場選手 データ入力・貼付'!C279<>\"\",'出場選手 データ入力・貼付'!C279,\"\")","v":""},{"$f":"IFERROR('出場選手 データ入力・貼付'!G279,\"\")","v":""}]
[null,null,null,null,null,null,null,null,null,null,null,null,null,null,null,null,null,null,null,null,null,null,{"$f":"IF('出場選手 データ入力・貼付'!B280&'出場選手 データ入力・貼付'!E280=\"\",\"\",IF('出場選手 データ入力・貼付'!E280<>\"\",'出場選手 データ入力・貼付'!E280,'出場選手 データ入力・貼付'!B280))","v":""},{"$f":"IF('出場選手 データ入力・貼付'!C280<>\"\",'出場選手 データ入力・貼付'!C280,\"\")","v":""},{"$f":"IFERROR('出場選手 データ入力・貼付'!G280,\"\")","v":""}]
[null,null,null,null,null,null,null,null,null,null,null,null,null,null,null,null,null,null,null,null,null,null,{"$f":"IF('出場選手 データ入力・貼付'!B281&'出場選手 データ入力・貼付'!E281=\"\",\"\",IF('出場選手 データ入力・貼付'!E281<>\"\",'出場選手 データ入力・貼付'!E281,'出場選手 データ入力・貼付'!B281))","v":""},{"$f":"IF('出場選手 データ入力・貼付'!C281<>\"\",'出場選手 データ入力・貼付'!C281,\"\")","v":""},{"$f":"IFERROR('出場選手 データ入力・貼付'!G281,\"\")","v":""}]
[null,null,null,null,null,null,null,null,null,null,null,null,null,null,null,null,null,null,null,null,null,null,{"$f":"IF('出場選手 データ入力・貼付'!B282&'出場選手 データ入力・貼付'!E282=\"\",\"\",IF('出場選手 データ入力・貼付'!E282<>\"\",'出場選手 データ入力・貼付'!E282,'出場選手 データ入力・貼付'!B282))","v":""},{"$f":"IF('出場選手 データ入力・貼付'!C282<>\"\",'出場選手 データ入力・貼付'!C282,\"\")","v":""},{"$f":"IFERROR('出場選手 データ入力・貼付'!G282,\"\")","v":""}]
[null,null,null,null,null,null,null,null,null,null,null,null,null,null,null,null,null,null,null,null,null,null,{"$f":"IF('出場選手 データ入力・貼付'!B283&'出場選手 データ入力・貼付'!E283=\"\",\"\",IF('出場選手 データ入力・貼付'!E283<>\"\",'出場選手 データ入力・貼付'!E283,'出場選手 データ入力・貼付'!B283))","v":""},{"$f":"IF('出場選手 データ入力・貼付'!C283<>\"\",'出場選手 データ入力・貼付'!C283,\"\")","v":""},{"$f":"IFERROR('出場選手 データ入力・貼付'!G283,\"\")","v":""}]
[null,null,null,null,null,null,null,null,null,null,null,null,null,null,null,null,null,null,null,null,null,null,{"$f":"IF('出場選手 データ入力・貼付'!B284&'出場選手 データ入力・貼付'!E284=\"\",\"\",IF('出場選手 データ入力・貼付'!E284<>\"\",'出場選手 データ入力・貼付'!E284,'出場選手 データ入力・貼付'!B284))","v":""},{"$f":"IF('出場選手 データ入力・貼付'!C284<>\"\",'出場選手 データ入力・貼付'!C284,\"\")","v":""},{"$f":"IFERROR('出場選手 データ入力・貼付'!G284,\"\")","v":""}]
[null,null,null,null,null,null,null,null,null,null,null,null,null,null,null,null,null,null,null,null,null,null,{"$f":"IF('出場選手 データ入力・貼付'!B285&'出場選手 データ入力・貼付'!E285=\"\",\"\",IF('出場選手 データ入力・貼付'!E285<>\"\",'出場選手 データ入力・貼付'!E285,'出場選手 データ入力・貼付'!B285))","v":""},{"$f":"IF('出場選手 データ入力・貼付'!C285<>\"\",'出場選手 データ入力・貼付'!C285,\"\")","v":""},{"$f":"IFERROR('出場選手 データ入力・貼付'!G285,\"\")","v":""}]
[null,null,null,null,null,null,null,null,null,null,null,null,null,null,null,null,null,null,null,null,null,null,{"$f":"IF('出場選手 データ入力・貼付'!B286&'出場選手 データ入力・貼付'!E286=\"\",\"\",IF('出場選手 データ入力・貼付'!E286<>\"\",'出場選手 データ入力・貼付'!E286,'出場選手 データ入力・貼付'!B286))","v":""},{"$f":"IF('出場選手 データ入力・貼付'!C286<>\"\",'出場選手 データ入力・貼付'!C286,\"\")","v":""},{"$f":"IFERROR('出場選手 データ入力・貼付'!G286,\"\")","v":""}]
[null,null,null,null,null,null,null,null,null,null,null,null,null,null,null,null,null,null,null,null,null,null,{"$f":"IF('出場選手 データ入力・貼付'!B287&'出場選手 データ入力・貼付'!E287=\"\",\"\",IF('出場選手 データ入力・貼付'!E287<>\"\",'出場選手 データ入力・貼付'!E287,'出場選手 データ入力・貼付'!B287))","v":""},{"$f":"IF('出場選手 データ入力・貼付'!C287<>\"\",'出場選手 データ入力・貼付'!C287,\"\")","v":""},{"$f":"IFERROR('出場選手 データ入力・貼付'!G287,\"\")","v":""}]
[null,null,null,null,null,null,null,null,null,null,null,null,null,null,null,null,null,null,null,null,null,null,{"$f":"IF('出場選手 データ入力・貼付'!B288&'出場選手 データ入力・貼付'!E288=\"\",\"\",IF('出場選手 データ入力・貼付'!E288<>\"\",'出場選手 データ入力・貼付'!E288,'出場選手 データ入力・貼付'!B288))","v":""},{"$f":"IF('出場選手 データ入力・貼付'!C288<>\"\",'出場選手 データ入力・貼付'!C288,\"\")","v":""},{"$f":"IFERROR('出場選手 データ入力・貼付'!G288,\"\")","v":""}]
[null,null,null,null,null,null,null,null,null,null,null,null,null,null,null,null,null,null,null,null,null,null,{"$f":"IF('出場選手 データ入力・貼付'!B289&'出場選手 データ入力・貼付'!E289=\"\",\"\",IF('出場選手 データ入力・貼付'!E289<>\"\",'出場選手 データ入力・貼付'!E289,'出場選手 データ入力・貼付'!B289))","v":""},{"$f":"IF('出場選手 データ入力・貼付'!C289<>\"\",'出場選手 データ入力・貼付'!C289,\"\")","v":""},{"$f":"IFERROR('出場選手 データ入力・貼付'!G289,\"\")","v":""}]
[null,null,null,null,null,null,null,null,null,null,null,null,null,null,null,null,null,null,null,null,null,null,{"$f":"IF('出場選手 データ入力・貼付'!B290&'出場選手 データ入力・貼付'!E290=\"\",\"\",IF('出場選手 データ入力・貼付'!E290<>\"\",'出場選手 データ入力・貼付'!E290,'出場選手 データ入力・貼付'!B290))","v":""},{"$f":"IF('出場選手 データ入力・貼付'!C290<>\"\",'出場選手 データ入力・貼付'!C290,\"\")","v":""},{"$f":"IFERROR('出場選手 データ入力・貼付'!G290,\"\")","v":""}]
[null,null,null,null,null,null,null,null,null,null,null,null,null,null,null,null,null,null,null,null,null,null,{"$f":"IF('出場選手 データ入力・貼付'!B291&'出場選手 データ入力・貼付'!E291=\"\",\"\",IF('出場選手 データ入力・貼付'!E291<>\"\",'出場選手 データ入力・貼付'!E291,'出場選手 データ入力・貼付'!B291))","v":""},{"$f":"IF('出場選手 データ入力・貼付'!C291<>\"\",'出場選手 データ入力・貼付'!C291,\"\")","v":""},{"$f":"IFERROR('出場選手 データ入力・貼付'!G291,\"\")","v":""}]
[null,null,null,null,null,null,null,null,null,null,null,null,null,null,null,null,null,null,null,null,null,null,{"$f":"IF('出場選手 データ入力・貼付'!B292&'出場選手 データ入力・貼付'!E292=\"\",\"\",IF('出場選手 データ入力・貼付'!E292<>\"\",'出場選手 データ入力・貼付'!E292,'出場選手 データ入力・貼付'!B292))","v":""},{"$f":"IF('出場選手 データ入力・貼付'!C292<>\"\",'出場選手 データ入力・貼付'!C292,\"\")","v":""},{"$f":"IFERROR('出場選手 データ入力・貼付'!G292,\"\")","v":""}]
[null,null,null,null,null,null,null,null,null,null,null,null,null,null,null,null,null,null,null,null,null,null,{"$f":"IF('出場選手 データ入力・貼付'!B293&'出場選手 データ入力・貼付'!E293=\"\",\"\",IF('出場選手 データ入力・貼付'!E293<>\"\",'出場選手 データ入力・貼付'!E293,'出場選手 データ入力・貼付'!B293))","v":""},{"$f":"IF('出場選手 データ入力・貼付'!C293<>\"\",'出場選手 データ入力・貼付'!C293,\"\")","v":""},{"$f":"IFERROR('出場選手 データ入力・貼付'!G293,\"\")","v":""}]
[null,null,null,null,null,null,null,null,null,null,null,null,null,null,null,null,null,null,null,null,null,null,{"$f":"IF('出場選手 データ入力・貼付'!B294&'出場選手 データ入力・貼付'!E294=\"\",\"\",IF('出場選手 データ入力・貼付'!E294<>\"\",'出場選手 データ入力・貼付'!E294,'出場選手 データ入力・貼付'!B294))","v":""},{"$f":"IF('出場選手 データ入力・貼付'!C294<>\"\",'出場選手 データ入力・貼付'!C294,\"\")","v":""},{"$f":"IFERROR('出場選手 データ入力・貼付'!G294,\"\")","v":""}]
[null,null,null,null,null,null,null,null,null,null,null,null,null,null,null,null,null,null,null,null,null,null,{"$f":"IF('出場選手 データ入力・貼付'!B295&'出場選手 データ入力・貼付'!E295=\"\",\"\",IF('出場選手 データ入力・貼付'!E295<>\"\",'出場選手 データ入力・貼付'!E295,'出場選手 データ入力・貼付'!B295))","v":""},{"$f":"IF('出場選手 データ入力・貼付'!C295<>\"\",'出場選手 データ入力・貼付'!C295,\"\")","v":""},{"$f":"IFERROR('出場選手 データ入力・貼付'!G295,\"\")","v":""}]
[null,null,null,null,null,null,null,null,null,null,null,null,null,null,null,null,null,null,null,null,null,null,{"$f":"IF('出場選手 データ入力・貼付'!B296&'出場選手 データ入力・貼付'!E296=\"\",\"\",IF('出場選手 データ入力・貼付'!E296<>\"\",'出場選手 データ入力・貼付'!E296,'出場選手 データ入力・貼付'!B296))","v":""},{"$f":"IF('出場選手 データ入力・貼付'!C296<>\"\",'出場選手 データ入力・貼付'!C296,\"\")","v":""},{"$f":"IFERROR('出場選手 データ入力・貼付'!G296,\"\")","v":""}]
[null,null,null,null,null,null,null,null,null,null,null,null,null,null,null,null,null,null,null,null,null,null,{"$f":"IF('出場選手 データ入力・貼付'!B297&'出場選手 データ入力・貼付'!E297=\"\",\"\",IF('出場選手 データ入力・貼付'!E297<>\"\",'出場選手 データ入力・貼付'!E297,'出場選手 データ入力・貼付'!B297))","v":""},{"$f":"IF('出場選手 データ入力・貼付'!C297<>\"\",'出場選手 データ入力・貼付'!C297,\"\")","v":""},{"$f":"IFERROR('出場選手 データ入力・貼付'!G297,\"\")","v":""}]
[null,null,null,null,null,null,null,null,null,null,null,null,null,null,null,null,null,null,null,null,null,null,{"$f":"IF('出場選手 データ入力・貼付'!B298&'出場選手 データ入力・貼付'!E298=\"\",\"\",IF('出場選手 データ入力・貼付'!E298<>\"\",'出場選手 データ入力・貼付'!E298,'出場選手 データ入力・貼付'!B298))","v":""},{"$f":"IF('出場選手 データ入力・貼付'!C298<>\"\",'出場選手 データ入力・貼付'!C298,\"\")","v":""},{"$f":"IFERROR('出場選手 データ入力・貼付'!G298,\"\")","v":""}]
[null,null,null,null,null,null,null,null,null,null,null,null,null,null,null,null,null,null,null,null,null,null,{"$f":"IF('出場選手 データ入力・貼付'!B299&'出場選手 データ入力・貼付'!E299=\"\",\"\",IF('出場選手 データ入力・貼付'!E299<>\"\",'出場選手 データ入力・貼付'!E299,'出場選手 データ入力・貼付'!B299))","v":""},{"$f":"IF('出場選手 データ入力・貼付'!C299<>\"\",'出場選手 データ入力・貼付'!C299,\"\")","v":""},{"$f":"IFERROR('出場選手 データ入力・貼付'!G299,\"\")","v":""}]
[null,null,null,null,null,null,null,null,null,null,null,null,null,null,null,null,null,null,null,null,null,null,{"$f":"IF('出場選手 データ入力・貼付'!B300&'出場選手 データ入力・貼付'!E300=\"\",\"\",IF('出場選手 データ入力・貼付'!E300<>\"\",'出場選手 データ入力・貼付'!E300,'出場選手 データ入力・貼付'!B300))","v":""},{"$f":"IF('出場選手 データ入力・貼付'!C300<>\"\",'出場選手 データ入力・貼付'!C300,\"\")","v":""},{"$f":"IFERROR('出場選手 データ入力・貼付'!G300,\"\")","v":""}]
[null,null,null,null,null,null,null,null,null,null,null,null,null,null,null,null,null,null,null,null,null,null,{"$f":"IF('出場選手 データ入力・貼付'!B301&'出場選手 データ入力・貼付'!E301=\"\",\"\",IF('出場選手 データ入力・貼付'!E301<>\"\",'出場選手 データ入力・貼付'!E301,'出場選手 データ入力・貼付'!B301))","v":""},{"$f":"IF('出場選手 データ入力・貼付'!C301<>\"\",'出場選手 データ入力・貼付'!C301,\"\")","v":""},{"$f":"IFERROR('出場選手 データ入力・貼付'!G301,\"\")","v":""}]
[null,null,null,null,null,null,null,null,null,null,null,null,null,null,null,null,null,null,null,null,null,null,{"$f":"IF('出場選手 データ入力・貼付'!B302&'出場選手 データ入力・貼付'!E302=\"\",\"\",IF('出場選手 データ入力・貼付'!E302<>\"\",'出場選手 データ入力・貼付'!E302,'出場選手 データ入力・貼付'!B302))","v":""},{"$f":"IF('出場選手 データ入力・貼付'!C302<>\"\",'出場選手 データ入力・貼付'!C302,\"\")","v":""},{"$f":"IFERROR('出場選手 データ入力・貼付'!G302,\"\")","v":""}]
[null,null,null,null,null,null,null,null,null,null,null,null,null,null,null,null,null,null,null,null,null,null,{"$f":"IF('出場選手 データ入力・貼付'!B303&'出場選手 データ入力・貼付'!E303=\"\",\"\",IF('出場選手 データ入力・貼付'!E303<>\"\",'出場選手 データ入力・貼付'!E303,'出場選手 データ入力・貼付'!B303))","v":""},{"$f":"IF('出場選手 データ入力・貼付'!C303<>\"\",'出場選手 データ入力・貼付'!C303,\"\")","v":""},{"$f":"IFERROR('出場選手 データ入力・貼付'!G303,\"\")","v":""}]
[null,null,null,null,null,null,null,null,null,null,null,null,null,null,null,null,null,null,null,null,null,null,{"$f":"IF('出場選手 データ入力・貼付'!B304&'出場選手 データ入力・貼付'!E304=\"\",\"\",IF('出場選手 データ入力・貼付'!E304<>\"\",'出場選手 データ入力・貼付'!E304,'出場選手 データ入力・貼付'!B304))","v":""},{"$f":"IF('出場選手 データ入力・貼付'!C304<>\"\",'出場選手 データ入力・貼付'!C304,\"\")","v":""},{"$f":"IFERROR('出場選手 データ入力・貼付'!G304,\"\")","v":""}]
[null,null,null,null,null,null,null,null,null,null,null,null,null,null,null,null,null,null,null,null,null,null,{"$f":"IF('出場選手 データ入力・貼付'!B305&'出場選手 データ入力・貼付'!E305=\"\",\"\",IF('出場選手 データ入力・貼付'!E305<>\"\",'出場選手 データ入力・貼付'!E305,'出場選手 データ入力・貼付'!B305))","v":""},{"$f":"IF('出場選手 データ入力・貼付'!C305<>\"\",'出場選手 データ入力・貼付'!C305,\"\")","v":""},{"$f":"IFERROR('出場選手 データ入力・貼付'!G305,\"\")","v":""}]
[null,null,null,null,null,null,null,null,null,null,null,null,null,null,null,null,null,null,null,null,null,null,{"$f":"IF('出場選手 データ入力・貼付'!B306&'出場選手 データ入力・貼付'!E306=\"\",\"\",IF('出場選手 データ入力・貼付'!E306<>\"\",'出場選手 データ入力・貼付'!E306,'出場選手 データ入力・貼付'!B306))","v":""},{"$f":"IF('出場選手 データ入力・貼付'!C306<>\"\",'出場選手 データ入力・貼付'!C306,\"\")","v":""},{"$f":"IFERROR('出場選手 データ入力・貼付'!G306,\"\")","v":""}]
[null,null,null,null,null,null,null,null,null,null,null,null,null,null,null,null,null,null,null,null,null,null,{"$f":"IF('出場選手 データ入力・貼付'!B307&'出場選手 データ入力・貼付'!E307=\"\",\"\",IF('出場選手 データ入力・貼付'!E307<>\"\",'出場選手 データ入力・貼付'!E307,'出場選手 データ入力・貼付'!B307))","v":""},{"$f":"IF('出場選手 データ入力・貼付'!C307<>\"\",'出場選手 データ入力・貼付'!C307,\"\")","v":""},{"$f":"IFERROR('出場選手 データ入力・貼付'!G307,\"\")","v":""}]
[null,null,null,null,null,null,null,null,null,null,null,null,null,null,null,null,null,null,null,null,null,null,{"$f":"IF('出場選手 データ入力・貼付'!B308&'出場選手 データ入力・貼付'!E308=\"\",\"\",IF('出場選手 データ入力・貼付'!E308<>\"\",'出場選手 データ入力・貼付'!E308,'出場選手 データ入力・貼付'!B308))","v":""},{"$f":"IF('出場選手 データ入力・貼付'!C308<>\"\",'出場選手 データ入力・貼付'!C308,\"\")","v":""},{"$f":"IFERROR('出場選手 データ入力・貼付'!G308,\"\")","v":""}]
[null,null,null,null,null,null,null,null,null,null,null,null,null,null,null,null,null,null,null,null,null,null,{"$f":"IF('出場選手 データ入力・貼付'!B309&'出場選手 データ入力・貼付'!E309=\"\",\"\",IF('出場選手 データ入力・貼付'!E309<>\"\",'出場選手 データ入力・貼付'!E309,'出場選手 データ入力・貼付'!B309))","v":""},{"$f":"IF('出場選手 データ入力・貼付'!C309<>\"\",'出場選手 データ入力・貼付'!C309,\"\")","v":""},{"$f":"IFERROR('出場選手 データ入力・貼付'!G309,\"\")","v":""}]
[null,null,null,null,null,null,null,null,null,null,null,null,null,null,null,null,null,null,null,null,null,null,{"$f":"IF('出場選手 データ入力・貼付'!B310&'出場選手 データ入力・貼付'!E310=\"\",\"\",IF('出場選手 データ入力・貼付'!E310<>\"\",'出場選手 データ入力・貼付'!E310,'出場選手 データ入力・貼付'!B310))","v":""},{"$f":"IF('出場選手 データ入力・貼付'!C310<>\"\",'出場選手 データ入力・貼付'!C310,\"\")","v":""},{"$f":"IFERROR('出場選手 データ入力・貼付'!G310,\"\")","v":""}]
[null,null,null,null,null,null,null,null,null,null,null,null,null,null,null,null,null,null,null,null,null,null,{"$f":"IF('出場選手 データ入力・貼付'!B311&'出場選手 データ入力・貼付'!E311=\"\",\"\",IF('出場選手 データ入力・貼付'!E311<>\"\",'出場選手 データ入力・貼付'!E311,'出場選手 データ入力・貼付'!B311))","v":""},{"$f":"IF('出場選手 データ入力・貼付'!C311<>\"\",'出場選手 データ入力・貼付'!C311,\"\")","v":""},{"$f":"IFERROR('出場選手 データ入力・貼付'!G311,\"\")","v":""}]
[null,null,null,null,null,null,null,null,null,null,null,null,null,null,null,null,null,null,null,null,null,null,{"$f":"IF('出場選手 データ入力・貼付'!B312&'出場選手 データ入力・貼付'!E312=\"\",\"\",IF('出場選手 データ入力・貼付'!E312<>\"\",'出場選手 データ入力・貼付'!E312,'出場選手 データ入力・貼付'!B312))","v":""},{"$f":"IF('出場選手 データ入力・貼付'!C312<>\"\",'出場選手 データ入力・貼付'!C312,\"\")","v":""},{"$f":"IFERROR('出場選手 データ入力・貼付'!G312,\"\")","v":""}]
[null,null,null,null,null,null,null,null,null,null,null,null,null,null,null,null,null,null,null,null,null,null,{"$f":"IF('出場選手 データ入力・貼付'!B313&'出場選手 データ入力・貼付'!E313=\"\",\"\",IF('出場選手 データ入力・貼付'!E313<>\"\",'出場選手 データ入力・貼付'!E313,'出場選手 データ入力・貼付'!B313))","v":""},{"$f":"IF('出場選手 データ入力・貼付'!C313<>\"\",'出場選手 データ入力・貼付'!C313,\"\")","v":""},{"$f":"IFERROR('出場選手 データ入力・貼付'!G313,\"\")","v":""}]

{"sheet":"採点票(印刷画面)","index":2,"n_rows":257,"n_cols":79,"rows_kept":257,"cut":false,"hidden":false,"merged":[[233,41,234,44],[235,41,235,44],[233,23,234,26],[235,23,235,26],[233,63,234,66],[235,63,235,66],[229,41,230,49],[229,50,229,59],[229,60,230,69],[228,60,228,69],[219,60,219,67],[219,68,219,69],[197,41,198,49],[197,50,197,59],[197,60,198,69],[196,60,196,69],[184,41,186,42],[184,57,186,62],[184,63,186,64],[187,41,187,42],[126,30,127,32],[126,33,127,38],[128,1,128,38],[130,1,130,38],[126,1,127,4],[126,5,127,10],[126,11,127,13],[126,14,127,19],[126,20,127,22],[126,23,127,29],[124,28,125,29],[124,30,125,32],[118,63,119,64],[171,63,171,66],[201,1,202,4],[203,1,203,4],[201,41,202,44],[203,41,203,44],[201,23,202,26],[203,23,203,26],[201,63,202,66],[203,63,203,66],[137,63,138,66],[139,63,139,66],[133,41,134,49],[133,50,133,59],[133,60,134,69],[132,60,132,69],[120,41,122,42],[120,57,122,62],[120,63,122,64],[123,41,123,42],[123,43,123,45],[123,46,123,48],[123,49,123,51],[123,52,123,59],[123,60,123,67],[123,68,123,69],[131,60,131,61],[41,1,42,4],[43,1,43,4],[41,41,42,44],[43,41,43,44],[41,23,42,26],[43,23,43,26],[41,63,42,66],[43,63,43,66],[3,20,3,21],[3,60,3,61],[35,20,35,21],[35,60,35,61],[35,22,35,29],[35,62,35,69],[3,22,3,29],[3,62,3,69],[37,41,38,49],[37,50,37,59],[37,60,38,69],[36,60,36,69],[27,41,27,42],[27,43,27,45],[27,46,27,48],[27,49,27,51],[27,52,27,59],[27,60,27,67],[27,68,27,69],[24,63,26,64],[9,45,11,56],[9,67,11,78],[195,60,195,61],[227,20,227,21],[227,60,227,61],[195,62,195,69],[195,22,195,29],[227,22,227,29],[227,62,227,69],[163,22,163,29],[163,62,163,69],[131,22,131,29],[131,62,131,69],[99,22,99,29],[99,62,99,69],[216,41,218,42],[216,57,218,62],[216,63,218,64],[219,41,219,42],[219,43,219,45],[219,46,219,48],[219,49,219,51],[219,52,219,59],[105,41,106,44],[107,41,107,44],[105,23,106,26],[107,23,107,26],[105,63,106,66],[107,63,107,66],[137,41,138,44],[187,46,187,48],[139,41,139,44],[137,23,138,26],[139,23,139,26],[254,41,255,44],[254,45,255,50],[254,51,255,53],[254,54,255,59],[254,60,255,62],[254,63,255,69],[254,70,255,72],[254,73,255,78],[256,41,256,78],[248,41,250,42],[248,57,250,62],[248,63,250,64],[251,41,251,42],[251,43,251,45],[251,46,251,48],[251,49,251,51],[251,52,251,59],[251,60,251,67],[251,68,251,69],[251,70,251,72],[251,73,251,75],[251,76,251,78],[252,41,253,42],[252,43,253,45],[252,46,253,48],[252,49,253,51],[252,68,253,69],[252,70,253,72],[252,73,253,75],[252,76,253,78],[236,41,237,42],[236,57,237,62],[236,63,237,64],[238,41,239,42],[238,57,239,62],[238,63,239,64],[240,41,241,42],[240,57,241,62],[240,63,241,64],[242,41,243,42],[242,57,243,62],[242,63,243,64],[244,41,245,42],[244,57,245,62],[244,63,245,64],[246,41,247,42],[246,57,247,62],[246,63,247,64],[229,70,230,78],[230,50,230,59],[231,41,232,41],[231,42,232,45],[231,46,232,48],[231,49,232,56],[231,57,232,62],[231,63,232,63],[231,64,232,67],[231,68,232,70],[231,71,232,78],[233,45,235,56],[233,67,235,78],[235,57,235,58],[234,59,234,60],[235,61,235,62],[222,41,223,44],[222,45,223,50],[222,51,223,53],[222,54,223,59],[222,60,223,62],[222,63,223,69],[222,70,223,72],[222,73,223,78],[224,41,224,78],[226,41,226,78],[227,41,228,43],[227,44,228,49],[227,50,228,51],[227,52,228,55],[227,56,228,59],[227,70,228,78],[219,70,219,72],[219,73,219,75],[219,76,219,78],[220,41,221,42],[220,43,221,45],[220,46,221,48],[220,49,221,51],[220,68,221,69],[220,70,221,72],[220,73,221,75],[220,76,221,78],[204,41,205,42],[204,57,205,62],[204,63,205,64],[206,41,207,42],[206,57,207,62],[206,63,207,64],[208,41,209,42],[208,57,209,62],[208,63,209,64],[210,41,211,42],[210,57,211,62],[210,63,211,64],[212,41,213,42],[212,57,213,62],[212,63,213,64],[214,41,215,42],[214,57,215,62],[214,63,215,64],[197,70,198,78],[198,50,198,59],[199,41,200,41],[199,42,200,45],[199,46,200,48],[199,49,200,56],[199,57,200,62],[199,63,200,63],[199,64,200,67],[199,68,200,70],[199,71,200,78],[201,45,203,56],[201,67,203,78],[203,57,203,58],[202,59,202,60],[203,61,203,62],[190,41,191,44],[190,45,191,50],[190,51,191,53],[190,54,191,59],[190,60,191,62],[190,63,191,69],[190,70,191,72],[190,73,191,78],[192,41,192,78],[194,41,194,78],[195,41,196,43],[195,44,196,49],[195,50,196,51],[195,52,196,55],[195,56,196,59],[195,70,196,78],[187,49,187,51],[187,52,187,59],[187,60,187,67],[187,68,187,69],[187,70,187,72],[187,73,187,75],[187,76,187,78],[188,41,189,42],[188,43,189,45],[188,46,189,48],[188,49,189,51],[188,52,188,59],[188,60,188,67],[188,68,189,69],[188,70,189,72],[188,73,189,75],[188,76,189,78],[189,52,189,59],[189,60,189,67],[187,43,187,45],[172,41,173,42],[172,57,173,62],[172,63,173,64],[174,41,175,42],[174,57,175,62],[174,63,175,64],[176,41,177,42],[176,57,177,62],[176,63,177,64],[178,41,179,42],[178,57,179,62],[178,63,179,64],[180,41,181,42],[180,57,181,62],[180,63,181,64],[182,41,183,42],[182,57,183,62],[182,63,183,64],[165,41,166,49],[165,50,165,59],[165,60,166,69],[165,70,166,78],[166,50,166,59],[167,41,168,41],[167,42,168,45],[167,46,168,48],[167,49,168,56],[167,57,168,62],[167,63,168,63],[167,64,168,67],[167,68,168,70],[167,71,168,78],[169,45,171,56],[169,67,171,78],[171,57,171,58],[170,59,170,60],[171,61,171,62],[169,41,170,44],[171,41,171,44],[169,63,170,66],[158,41,159,44],[158,45,159,50],[158,51,159,53],[158,54,159,59],[158,60,159,62],[158,63,159,69],[158,70,159,72],[158,73,159,78],[160,41,160,78],[162,41,162,78],[163,41,164,43],[163,44,164,49],[163,50,164,51],[163,52,164,55],[163,56,164,59],[163,70,164,78],[164,60,164,69],[163,60,163,61],[152,41,154,42],[152,57,154,62],[152,63,154,64],[155,41,155,42],[155,43,155,45],[155,46,155,48],[155,49,155,51],[155,52,155,59],[155,60,155,67],[155,68,155,69],[155,70,155,72],[155,73,155,75],[155,76,155,78],[156,41,157,42],[156,43,157,45],[156,46,157,48],[156,49,157,51],[156,68,157,69],[156,70,157,72],[156,73,157,75],[156,76,157,78],[140,41,141,42],[140,57,141,62],[140,63,141,64],[142,41,143,42],[142,57,143,62],[142,63,143,64],[144,41,145,42],[144,57,145,62],[144,63,145,64],[146,41,147,42],[146,57,147,62],[146,63,147,64],[148,41,149,42],[148,57,149,62],[148,63,149,64],[150,41,151,42],[150,57,151,62],[150,63,151,64],[133,70,134,78],[134,50,134,59],[135,41,136,41],[135,42,136,45],[135,46,136,48],[135,49,136,56],[135,57,136,62],[135,63,136,63],[135,64,136,67],[135,68,136,70],[135,71,136,78],[137,45,139,56],[137,67,139,78],[139,57,139,58],[138,59,138,60],[139,61,139,62],[126,41,127,44],[126,45,127,50],[126,51,127,53],[126,54,127,59],[126,60,127,62],[126,63,127,69],[126,70,127,72],[126,73,127,78],[128,41,128,78],[130,41,130,78],[131,41,132,43],[131,44,132,49],[131,50,132,51],[131,52,132,55],[131,56,132,59],[131,70,132,78],[123,70,123,72],[123,73,123,75],[123,76,123,78],[124,41,125,42],[124,43,125,45],[124,46,125,48],[124,49,125,51],[124,52,124,59],[124,60,124,67],[124,68,125,69],[124,70,125,72],[124,73,125,75],[124,76,125,78],[125,52,125,59],[125,60,125,67],[108,41,109,42],[108,57,109,62],[108,63,109,64],[110,41,111,42],[110,57,111,62],[110,63,111,64],[112,41,113,42],[112,57,113,62],[112,63,113,64],[114,41,115,42],[114,57,115,62],[114,63,115,64],[116,41,117,42],[116,57,117,62],[116,63,117,64],[118,41,119,42],[118,57,119,62],[101,41,102,49],[101,50,101,59],[101,60,102,69],[101,70,102,78],[102,50,102,59],[103,41,104,41],[103,42,104,45],[103,46,104,48],[103,49,104,56],[103,57,104,62],[103,63,104,63],[103,64,104,67],[103,68,104,70],[103,71,104,78],[105,45,107,56],[105,67,107,78],[107,57,107,58],[106,59,106,60],[107,61,107,62],[94,41,95,44],[94,45,95,50],[94,51,95,53],[94,54,95,59],[94,60,95,62],[94,63,95,69],[94,70,95,72],[94,73,95,78],[96,41,96,78],[98,41,98,78],[99,41,100,43],[99,44,100,49],[99,50,100,51],[99,52,100,55],[99,56,100,59],[99,70,100,78],[100,60,100,69],[99,60,99,61],[88,41,90,42],[88,57,90,62],[88,63,90,64],[91,41,91,42],[91,43,91,45],[91,46,91,48],[91,49,91,51],[91,52,91,59],[91,60,91,67],[91,68,91,69],[91,70,91,72],[91,73,91,75],[91,76,91,78],[92,41,93,42],[92,43,93,45],[92,46,93,48],[92,49,93,51],[92,52,92,59],[92,60,92,67],[92,68,93,69],[92,70,93,72],[92,73,93,75],[92,76,93,78],[93,52,93,59],[93,60,93,67],[76,41,77,42],[76,57,77,62],[76,63,77,64],[78,41,79,42],[78,57,79,62],[78,63,79,64],[80,41,81,42],[80,57,81,62],[80,63,81,64],[82,41,83,42],[82,57,83,62],[82,63,83,64],[84,41,85,42],[84,57,85,62],[84,63,85,64],[86,41,87,42],[86,57,87,62],[86,63,87,64],[69,41,70,49],[69,50,69,59],[69,60,70,69],[69,70,70,78],[70,50,70,59],[71,41,72,41],[71,42,72,45],[71,46,72,48],[71,49,72,56],[71,57,72,62],[71,63,72,63],[71,64,72,67],[71,68,72,70],[71,71,72,78],[73,45,75,56],[73,67,75,78],[75,57,75,58],[74,59,74,60],[75,61,75,62],[73,41,74,44],[75,41,75,44],[73,63,74,66],[75,63,75,66],[62,41,63,44],[62,45,63,50],[62,51,63,53],[62,54,63,59],[62,60,63,62],[62,63,63,69],[62,70,63,72],[62,73,63,78],[64,41,64,78],[66,41,66,78],[67,41,68,43],[67,44,68,49],[67,50,68,51],[67,52,68,55],[67,56,68,59],[67,70,68,78],[68,60,68,69],[67,60,67,61],[67,62,67,69],[56,41,58,42],[56,57,58,62],[56,63,58,64],[59,41,59,42],[59,43,59,45],[59,46,59,48],[59,49,59,51],[59,52,59,59],[59,60,59,67],[59,68,59,69],[59,70,59,72],[59,73,59,75],[59,76,59,78],[60,41,61,42],[60,43,61,45],[60,46,61,48],[60,49,61,51],[60,52,60,59],[60,60,60,67],[60,68,61,69],[60,70,61,72],[60,73,61,75],[60,76,61,78],[61,52,61,59],[61,60,61,67],[44,41,45,42],[44,57,45,62],[44,63,45,64],[46,41,47,42],[46,57,47,62],[46,63,47,64],[48,41,49,42],[48,57,49,62],[48,63,49,64],[50,41,51,42],[50,57,51,62],[50,63,51,64],[52,41,53,42],[52,57,53,62],[52,63,53,64],[54,41,55,42],[54,57,55,62],[54,63,55,64],[37,70,38,78],[38,50,38,59],[39,41,40,41],[39,42,40,45],[39,46,40,48],[39,49,40,56],[39,57,40,62],[39,63,40,63],[39,64,40,67],[39,68,40,70],[39,71,40,78],[41,45,43,56],[41,67,43,78],[43,57,43,58],[42,59,42,60],[43,61,43,62],[30,41,31,44],[30,45,31,50],[30,51,31,53],[30,54,31,59],[30,60,31,62],[30,63,31,69],[30,70,31,72],[30,73,31,78],[32,41,32,78],[34,41,34,78],[35,41,36,43],[35,44,36,49],[35,50,36,51],[35,52,36,55],[35,56,36,59],[35,70,36,78],[27,70,27,72],[27,73,27,75],[27,76,27,78],[28,41,29,42],[28,43,29,45],[28,46,29,48],[28,49,29,51],[28,52,28,59],[28,60,28,67],[28,68,29,69],[28,70,29,72],[28,73,29,75],[28,76,29,78],[29,52,29,59],[29,60,29,67],[14,41,15,42],[14,57,15,62],[14,63,15,64],[16,41,17,42],[16,57,17,62],[16,63,17,64],[18,41,19,42],[18,57,19,62],[18,63,19,64],[20,41,21,42],[20,57,21,62],[20,63,21,64],[22,41,23,42],[22,57,23,62],[22,63,23,64],[24,41,26,42],[24,57,26,62],[11,57,11,58],[10,59,10,60],[11,61,11,62],[12,41,13,42],[12,57,13,62],[12,63,13,64],[2,41,2,78],[3,41,4,43],[3,44,4,49],[3,50,4,51],[3,52,4,55],[3,56,4,59],[3,70,4,78],[4,60,4,69],[5,41,6,49],[5,50,5,59],[5,60,6,69],[5,70,6,78],[6,50,6,59],[7,41,8,41],[7,42,8,45],[7,46,8,48],[7,49,8,56],[7,57,8,62],[7,63,8,63],[7,64,8,67],[7,68,8,70],[7,71,8,78],[9,41,10,44],[11,41,11,44],[9,63,10,66],[11,63,11,66],[254,30,255,32],[254,33,255,38],[256,1,256,38],[254,1,255,4],[254,5,255,10],[254,11,255,13],[254,14,255,19],[254,20,255,22],[254,23,255,29],[252,28,253,29],[252,30,253,32],[252,33,253,35],[252,36,253,38],[251,28,251,29],[251,30,251,32],[251,33,251,35],[251,36,251,38],[252,1,253,2],[252,3,253,5],[252,6,253,8],[252,9,253,11],[248,1,250,2],[248,17,250,22],[248,23,250,24],[251,1,251,2],[251,3,251,5],[251,6,251,8],[251,9,251,11],[251,12,251,19],[251,20,251,27],[244,1,245,2],[244,17,245,22],[244,23,245,24],[246,1,247,2],[246,17,247,22],[246,23,247,24],[240,1,241,2],[240,17,241,22],[240,23,241,24],[242,1,243,2],[242,17,243,22],[242,23,243,24],[236,1,237,2],[236,17,237,22],[236,23,237,24],[238,1,239,2],[238,17,239,22],[238,23,239,24],[234,19,234,20],[235,21,235,22],[231,24,232,27],[231,28,232,30],[231,31,232,38],[233,5,235,16],[233,27,235,38],[235,17,235,18],[231,1,232,1],[231,2,232,5],[231,6,232,8],[231,9,232,16],[231,17,232,22],[231,23,232,23],[233,1,234,4],[235,1,235,4],[227,30,228,38],[229,10,229,19],[229,20,230,29],[229,30,230,38],[230,10,230,19],[222,30,223,32],[222,33,223,38],[224,1,224,38],[226,1,226,38],[227,1,228,3],[227,4,228,9],[227,10,228,11],[227,12,228,15],[227,16,228,19],[222,1,223,4],[222,5,223,10],[222,11,223,13],[222,14,223,19],[222,20,223,22],[222,23,223,29],[229,1,230,9],[228,20,228,29],[220,28,221,29],[220,30,221,32],[220,33,221,35],[220,36,221,38],[219,28,219,29],[219,30,219,32],[219,33,219,35],[219,36,219,38],[220,1,221,2],[220,3,221,5],[220,6,221,8],[220,9,221,11],[216,1,218,2],[216,17,218,22],[216,23,218,24],[219,1,219,2],[219,3,219,5],[219,6,219,8],[219,9,219,11],[219,12,219,19],[219,20,219,27],[212,1,213,2],[212,17,213,22],[212,23,213,24],[214,1,215,2],[214,17,215,22],[214,23,215,24],[208,1,209,2],[208,17,209,22],[208,23,209,24],[210,1,211,2],[210,17,211,22],[210,23,211,24],[204,1,205,2],[204,17,205,22],[204,23,205,24],[206,1,207,2],[206,17,207,22],[206,23,207,24],[202,19,202,20],[203,21,203,22],[199,24,200,27],[199,28,200,30],[199,31,200,38],[201,5,203,16],[201,27,203,38],[203,17,203,18],[199,1,200,1],[199,2,200,5],[199,6,200,8],[199,9,200,16],[199,17,200,22],[199,23,200,23],[195,30,196,38],[197,10,197,19],[197,20,198,29],[197,30,198,38],[198,10,198,19],[195,20,195,21],[190,30,191,32],[190,33,191,38],[192,1,192,38],[194,1,194,38],[195,1,196,3],[195,4,196,9],[195,10,196,11],[195,12,196,15],[195,16,196,19],[190,1,191,4],[190,5,191,10],[190,11,191,13],[190,14,191,19],[190,20,191,22],[190,23,191,29],[197,1,198,9],[196,20,196,29],[188,28,189,29],[188,30,189,32],[188,33,189,35],[188,36,189,38],[189,12,189,19],[189,20,189,27],[187,28,187,29],[187,30,187,32],[187,33,187,35],[187,36,187,38],[188,1,189,2],[188,3,189,5],[188,6,189,8],[188,9,189,11],[188,12,188,19],[188,20,188,27],[184,1,186,2],[184,17,186,22],[184,23,186,24],[187,1,187,2],[187,3,187,5],[187,6,187,8],[187,9,187,11],[187,12,187,19],[187,20,187,27],[180,1,181,2],[180,17,181,22],[180,23,181,24],[182,1,183,2],[182,17,183,22],[182,23,183,24],[176,1,177,2],[176,17,177,22],[176,23,177,24],[178,1,179,2],[178,17,179,22],[178,23,179,24],[172,1,173,2],[172,17,173,22],[172,23,173,24],[174,1,175,2],[174,17,175,22],[174,23,175,24],[170,19,170,20],[171,21,171,22],[167,24,168,27],[167,28,168,30],[167,31,168,38],[169,5,171,16],[169,27,171,38],[171,17,171,18],[167,1,168,1],[167,2,168,5],[167,6,168,8],[167,9,168,16],[167,17,168,22],[167,23,168,23],[169,1,170,4],[171,1,171,4],[169,23,170,26],[171,23,171,26],[163,30,164,38],[165,10,165,19],[165,20,166,29],[165,30,166,38],[166,10,166,19],[158,30,159,32],[158,33,159,38],[160,1,160,38],[162,1,162,38],[163,1,164,3],[163,4,164,9],[163,10,164,11],[163,12,164,15],[163,16,164,19],[158,1,159,4],[158,5,159,10],[158,11,159,13],[158,14,159,19],[158,20,159,22],[158,23,159,29],[165,1,166,9],[164,20,164,29],[163,20,163,21],[156,28,157,29],[156,30,157,32],[156,33,157,35],[156,36,157,38],[155,28,155,29],[155,30,155,32],[155,33,155,35],[155,36,155,38],[156,1,157,2],[156,3,157,5],[156,6,157,8],[156,9,157,11],[152,1,154,2],[152,17,154,22],[152,23,154,24],[155,1,155,2],[155,3,155,5],[155,6,155,8],[155,9,155,11],[155,12,155,19],[155,20,155,27],[148,1,149,2],[148,17,149,22],[148,23,149,24],[150,1,151,2],[150,17,151,22],[150,23,151,24],[144,1,145,2],[144,17,145,22],[144,23,145,24],[146,1,147,2],[146,17,147,22],[146,23,147,24],[140,1,141,2],[140,17,141,22],[140,23,141,24],[142,1,143,2],[142,17,143,22],[142,23,143,24],[138,19,138,20],[139,21,139,22],[135,24,136,27],[135,28,136,30],[135,31,136,38],[137,5,139,16],[137,27,139,38],[139,17,139,18],[135,1,136,1],[135,2,136,5],[135,6,136,8]],"merged_total":1335,"flags":["merged_cut"]}
[]
[]
[null,"シングルス　スコアシート",null,null,null,null,null,null,null,null,null,null,null,null,null,null,null,null,null,null,null,null,null,null,null,null,null,null,null,null,null,null,null,null,null,null,null,null,null,null,null,{"$f":"B3","v":"シングルス　スコアシート"}]
[null,"種別",null,null,{"$f":"IF('採点票(作成画面)'!$A$1=\"\",\"\",'採点票(作成画面)'!$A$1)","v":""},null,null,null,null,null,"第",null,{"$f":"IF('採点票(作成画面)'!C5=\"\",\"\",'採点票(作成画面)'!C5)","v":""},null,null,null,"コート",null,null,null,"　正審\n\n　　　　　　　",null,{"$f":"IF('採点票(作成画面)'!Q5=\"\",\"\",'採点票(作成画面)'!Q5&\".\"&\"   \"&'採点票(作成画面)'!R5)","v":""},null,null,null,null,null,null,null,"副審\n\n　　　　　　",null,null,null,null,null,null,null,null,null,null,"種別",null,null,{"$f":"IF('採点票(作成画面)'!$A$1=\"\",\"\",'採点票(作成画面)'!$A$1)","v":""},null,null,null,null,null,"第",null,{"$f":"IF('採点票(作成画面)'!C13=\"\",\"\",'採点票(作成画面)'!C13)","v":""},null,null,null,"コート",null,null,null,"　正審\n\n　　　　　　　",null,{"$f":"IF('採点票(作成画面)'!Q13=\"\",\"\",'採点票(作成画面)'!Q13&\".\"&\"   \"&'採点票(作成画面)'!R13)","v":""},null,null,null,null,null,null,null,"副審\n\n　　　　　　"]
[null,null,null,null,null,null,null,null,null,null,null,null,null,null,null,null,null,null,null,null,{"$f":"IF('採点票(作成画面)'!S5=\"\",\"\",'採点票(作成画面)'!S5&\".\"&\"   \"&'採点票(作成画面)'!T5)","v":""},null,null,null,null,null,null,null,null,null,null,null,null,null,null,null,null,null,null,null,null,null,null,null,null,null,null,null,null,null,null,null,null,null,null,null,null,null,null,null,{"$f":"IF('採点票(作成画面)'!S13=\"\",\"\",'採点票(作成画面)'!S13&\".\"&\"   \"&'採点票(作成画面)'!T13)","v":""}]
[null,{"$f":"IF('採点票(作成画面)'!D5=\"\",\"第　　　　回戦\",'採点票(作成画面)'!D5)","v":"第　　　　回戦"},null,null,null,null,null,null,null,null,"開始　　　　　　　：　　　　　",null,null,null,null,null,null,null,null,null,"線審\n\n　　　　　　　",null,null,null,null,null,null,null,null,null,"線審\n\n　　　　　　",null,null,null,null,null,null,null,null,null,null,{"$f":"IF('採点票(作成画面)'!D13=\"\",\"第　　　　回戦\",'採点票(作成画面)'!D13)","v":"第　　　　回戦"},null,null,null,null,null,null,null,null,"開始　　　　　　　：　　　　　",null,null,null,null,null,null,null,null,null,"線審\n\n　　　　　　　",null,null,null,null,null,null,null,null,null,"線審\n\n　　　　　　"]
[null,null,null,null,null,null,null,null,null,null,"終了　　　　　　　：　　　　　",null,null,null,null,null,null,null,null,null,null,null,null,null,null,null,null,null,null,null,null,null,null,null,null,null,null,null,null,null,null,null,null,null,null,null,null,null,null,null,"終了　　　　　　　：　　　　　"]
[null,"№",{"$f":"IF('採点票(作成画面)'!F5<>\"\",'採点票(作成画面)'!F5,\"\")","v":""},null,null,null,"所属",null,null,{"$f":"IFERROR('採点票(作成画面)'!I5,\"\")","v":""},null,null,null,null,null,null,null,"(スコアー）",null,null,null,null,null,"№",{"$f":"IF('採点票(作成画面)'!L5<>\"\",'採点票(作成画面)'!L5,\"\")","v":""},null,null,null,"所属",null,null,{"$f":"IFERROR('採点票(作成画面)'!O5,\"\")","v":""},null,null,null,null,null,null,null,null,null,"№",{"$f":"IF('採点票(作成画面)'!F13<>\"\",'採点票(作成画面)'!F13,\"\")","v":""},null,null,null,"所属",null,null,{"$f":"IFERROR('採点票(作成画面)'!I13,\"\")","v":""},null,null,null,null,null,null,null,"(スコアー）",null,null,null,null,null,"№",{"$f":"IF('採点票(作成画面)'!L13<>\"\",'採点票(作成画面)'!L13,\"\")","v":""},null,null,null,"所属",null,null,{"$f":"IFERROR('採点票(作成画面)'!O13,\"\")","v":""}]
[]
[null,"プレーヤー",null,null,null,{"$f":"IFERROR('採点票(作成画面)'!G5,\"\")","v":""},null,null,null,null,null,null,null,null,null,null,null,null,null,null,null,null,null,"プレーヤー",null,null,null,{"$f":"IFERROR('採点票(作成画面)'!M5,\"\")","v":""},null,null,null,null,null,null,null,null,null,null,null,null,null,"プレーヤー",null,null,null,{"$f":"IFERROR('採点票(作成画面)'!G13,\"\")","v":""},null,null,null,null,null,null,null,null,null,null,null,null,null,null,null,null,null,"プレーヤー",null,null,null,{"$f":"IFERROR('採点票(作成画面)'!M13,\"\")","v":""}]
[null,null,null,null,null,null,null,null,null,null,null,null,null,null,null,null,null,null,null,"―",null,null,null,null,null,null,null,null,null,null,null,null,null,null,null,null,null,null,null,null,null,null,null,null,null,null,null,null,null,null,null,null,null,null,null,null,null,null,null,"―"]
[null,"サイド",null,null,null,null,null,null,null,null,null,null,null,null,null,null,null,null,null,null,null,null,null,"サイド",null,null,null,null,null,null,null,null,null,null,null,null,null,null,null,null,null,"サイド",null,null,null,null,null,null,null,null,null,null,null,null,null,null,null,null,null,null,null,null,null,"サイド"]
[null,"S R",null,null,null,null,null,null,null,null,null,null,null,null,null,null,null,"　-①-　",null,null,null,null,null,"S R",null,null,null,null,null,null,null,null,null,null,null,null,null,null,null,null,null,"S R",null,null,null,null,null,null,null,null,null,null,null,null,null,null,null,"　-①-　",null,null,null,null,null,"S R"]
[]
[null,"S R",null,null,null,null,null,null,null,null,null,null,null,null,null,null,null,"　-②-　",null,null,null,null,null,"S R",null,null,null,null,null,null,null,null,null,null,null,null,null,null,null,null,null,"S R",null,null,null,null,null,null,null,null,null,null,null,null,null,null,null,"　-②-　",null,null,null,null,null,"S R"]
[]
[null,"S R",null,null,null,null,null,null,null,null,null,null,null,null,null,null,null,"　-③-　",null,null,null,null,null,"S R",null,null,null,null,null,null,null,null,null,null,null,null,null,null,null,null,null,"S R",null,null,null,null,null,null,null,null,null,null,null,null,null,null,null,"　-③-　",null,null,null,null,null,"S R"]
[]
[null,"S R",null,null,null,null,null,null,null,null,null,null,null,null,null,null,null,"　-④-　",null,null,null,null,null,"S R",null,null,null,null,null,null,null,null,null,null,null,null,null,null,null,null,null,"S R",null,null,null,null,null,null,null,null,null,null,null,null,null,null,null,"　-④-　",null,null,null,null,null,"S R"]
[]
[null,"S R",null,null,null,null,null,null,null,null,null,null,null,null,null,null,null,"　-⑤-　",null,null,null,null,null,"S R",null,null,null,null,null,null,null,null,null,null,null,null,null,null,null,null,null,"S R",null,null,null,null,null,null,null,null,null,null,null,null,null,null,null,"　-⑤-　",null,null,null,null,null,"S R"]
[]
[null,"S R",null,null,null,null,null,null,null,null,null,null,null,null,null,null,null,"　-⑥-　",null,null,null,null,null,"S R",null,null,null,null,null,null,null,null,null,null,null,null,null,null,null,null,null,"S R",null,null,null,null,null,null,null,null,null,null,null,null,null,null,null,"　-⑥-　",null,null,null,null,null,"S R"]
[]
[null,"S R",null,"*","*",null,null,"*","*",null,null,"*","*",null,null,"*","*","　-F-　",null,null,null,null,null,"S R",null,null,null,"*","*",null,null,"*","*",null,null,"*","*",null,null,null,null,"S R",null,"*","*",null,null,"*","*",null,null,"*","*",null,null,"*","*","　-F-　",null,null,null,null,null,"S R",null,null,null,"*","*",null,null,"*","*",null,null,"*","*"]
[null,null,null,null,null,"*","*",null,null,"*","*",null,null,"*","*",null,null,null,null,null,null,null,null,null,null,"*","*",null,null,"*","*",null,null,"*","*",null,null,"*","*",null,null,null,null,null,null,"*","*",null,null,"*","*",null,null,"*","*",null,null,null,null,null,null,null,null,null,null,"*","*",null,null,"*","*",null,null,"*","*",null,null,"*","*"]
[null,null,null,"*","*",null,null,"*","*",null,null,"*","*",null,null,"*","*",null,null,null,null,null,null,null,null,null,null,"*","*",null,null,"*","*",null,null,"*","*",null,null,null,null,null,null,"*","*",null,null,"*","*",null,null,"*","*",null,null,"*","*",null,null,null,null,null,null,null,null,null,null,"*","*",null,null,"*","*",null,null,"*","*"]
[null,"(警告）",null,"Y",null,null,"Y",null,null,"R",null,null,"タ イ ム",null,null,null,null,null,null,null,"タ イ ム",null,null,null,null,null,null,null,"(警告）",null,"Y",null,null,"Y",null,null,"R",null,null,null,null,"(警告）",null,"Y",null,null,"Y",null,null,"R",null,null,"タ イ ム",null,null,null,null,null,null,null,"タ イ ム",null,null,null,null,null,null,null,"(警告）",null,"Y",null,null,"Y",null,null,"R"]
[null,"該当事項",null,null,null,null,null,null,null,null,null,null,"　　　５　　・　　５",null,null,null,null,null,null,null,"　　　５　　・　　５",null,null,null,null,null,null,null,"該当事項",null,null,null,null,null,null,null,null,null,null,null,null,"該当事項",null,null,null,null,null,null,null,null,null,null,"　　　５　　・　　５",null,null,null,null,null,null,null,"　　　５　　・　　５",null,null,null,null,null,null,null,"該当事項"]
[]
[null,"勝者サイン\nNO.",null,null,null,null,null,null,null,null,null,"進行",null,null,null,null,null,null,null,null,"点検",null,null,null,null,null,null,null,null,null,"記録",null,null,null,null,null,null,null,null,null,null,"勝者サイン\nNO.",null,null,null,null,null,null,null,null,null,"進行",null,null,null,null,null,null,null,null,"点検",null,null,null,null,null,null,null,null,null,"記録"]
[]
[null,"千葉県ソフトテニス",null,null,null,null,null,null,null,null,null,null,null,null,null,null,null,null,null,null,null,null,null,null,null,null,null,null,null,null,null,null,null,null,null,null,null,null,null,null,null,"千葉県ソフトテニス"]
[]
[null,{"$f":"B3","v":"シングルス　スコアシート"},null,null,null,null,null,null,null,null,null,null,null,null,null,null,null,null,null,null,null,null,null,null,null,null,null,null,null,null,null,null,null,null,null,null,null,null,null,null,null,{"$f":"B3","v":"シングルス　スコアシート"}]
[null,"種別",null,null,{"$f":"IF('採点票(作成画面)'!$A$1=\"\",\"\",'採点票(作成画面)'!$A$1)","v":""},null,null,null,null,null,"第",null,{"$f":"IF('採点票(作成画面)'!C6=\"\",\"\",'採点票(作成画面)'!C6)","v":""},null,null,null,"コート",null,null,null,"　正審\n\n　　　　　　　",null,{"$f":"IF('採点票(作成画面)'!Q6=\"\",\"\",'採点票(作成画面)'!Q6&\".\"&\"   \"&'採点票(作成画面)'!R6)","v":""},null,null,null,null,null,null,null,"副審\n\n　　　　　　",null,null,null,null,null,null,null,null,null,null,"種別",null,null,{"$f":"IF('採点票(作成画面)'!$A$1=\"\",\"\",'採点票(作成画面)'!$A$1)","v":""},null,null,null,null,null,"第",null,{"$f":"IF('採点票(作成画面)'!C14=\"\",\"\",'採点票(作成画面)'!C14)","v":""},null,null,null,"コート",null,null,null,"　正審\n\n　　　　　　　",null,{"$f":"IF('採点票(作成画面)'!Q14=\"\",\"\",'採点票(作成画面)'!Q14&\".\"&\"   \"&'採点票(作成画面)'!R14)","v":""},null,null,null,null,null,null,null,"副審\n\n　　　　　　"]
[null,null,null,null,null,null,null,null,null,null,null,null,null,null,null,null,null,null,null,null,{"$f":"IF('採点票(作成画面)'!S6=\"\",\"\",'採点票(作成画面)'!S6&\".\"&\"   \"&'採点票(作成画面)'!T6)","v":""},null,null,null,null,null,null,null,null,null,null,null,null,null,null,null,null,null,null,null,null,null,null,null,null,null,null,null,null,null,null,null,null,null,null,null,null,null,null,null,{"$f":"IF('採点票(作成画面)'!S14=\"\",\"\",'採点票(作成画面)'!S14&\".\"&\"   \"&'採点票(作成画面)'!T14)","v":""}]
[null,{"$f":"IF('採点票(作成画面)'!D6=\"\",\"第　　　　回戦\",'採点票(作成画面)'!D6)","v":"第　　　　回戦"},null,null,null,null,null,null,null,null,"開始　　　　　　　：　　　　　",null,null,null,null,null,null,null,null,null,"線審\n\n　　　　　　　",null,null,null,null,null,null,null,null,null,"線審\n\n　　　　　　",null,null,null,null,null,null,null,null,null,null,{"$f":"IF('採点票(作成画面)'!D14=\"\",\"第　　　　回戦\",'採点票(作成画面)'!D14)","v":"第　　　　回戦"},null,null,null,null,null,null,null,null,"開始　　　　　　　：　　　　　",null,null,null,null,null,null,null,null,null,"線審\n\n　　　　　　　",null,null,null,null,null,null,null,null,null,"線審\n\n　　　　　　"]
[null,null,null,null,null,null,null,null,null,null,"終了　　　　　　　：　　　　　",null,null,null,null,null,null,null,null,null,null,null,null,null,null,null,null,null,null,null,null,null,null,null,null,null,null,null,null,null,null,null,null,null,null,null,null,null,null,null,"終了　　　　　　　：　　　　　"]
[null,"№",{"$f":"IF('採点票(作成画面)'!F6<>\"\",'採点票(作成画面)'!F6,\"\")","v":""},null,null,null,"所属",null,null,{"$f":"IFERROR('採点票(作成画面)'!I6,\"\")","v":""},null,null,null,null,null,null,null,"(スコアー）",null,null,null,null,null,"№",{"$f":"IF('採点票(作成画面)'!L6<>\"\",'採点票(作成画面)'!L6,\"\")","v":""},null,null,null,"所属",null,null,{"$f":"IFERROR('採点票(作成画面)'!O6,\"\")","v":""},null,null,null,null,null,null,null,null,null,"№",{"$f":"IF('採点票(作成画面)'!F14<>\"\",'採点票(作成画面)'!F14,\"\")","v":""},null,null,null,"所属",null,null,{"$f":"IFERROR('採点票(作成画面)'!I14,\"\")","v":""},null,null,null,null,null,null,null,"(スコアー）",null,null,null,null,null,"№",{"$f":"IF('採点票(作成画面)'!L14<>\"\",'採点票(作成画面)'!L14,\"\")","v":""},null,null,null,"所属",null,null,{"$f":"IFERROR('採点票(作成画面)'!O14,\"\")","v":""}]
[]
[null,"プレーヤー",null,null,null,{"$f":"IFERROR('採点票(作成画面)'!G6,\"\")","v":""},null,null,null,null,null,null,null,null,null,null,null,null,null,null,null,null,null,"プレーヤー",null,null,null,{"$f":"IFERROR('採点票(作成画面)'!M6,\"\")","v":""},null,null,null,null,null,null,null,null,null,null,null,null,null,"プレーヤー",null,null,null,{"$f":"IFERROR('採点票(作成画面)'!G14,\"\")","v":""},null,null,null,null,null,null,null,null,null,null,null,null,null,null,null,null,null,"プレーヤー",null,null,null,{"$f":"IFERROR('採点票(作成画面)'!M14,\"\")","v":""}]
[null,null,null,null,null,null,null,null,null,null,null,null,null,null,null,null,null,null,null,"―",null,null,null,null,null,null,null,null,null,null,null,null,null,null,null,null,null,null,null,null,null,null,null,null,null,null,null,null,null,null,null,null,null,null,null,null,null,null,null,"―"]
[null,"サイド",null,null,null,null,null,null,null,null,null,null,null,null,null,null,null,null,null,null,null,null,null,"サイド",null,null,null,null,null,null,null,null,null,null,null,null,null,null,null,null,null,"サイド",null,null,null,null,null,null,null,null,null,null,null,null,null,null,null,null,null,null,null,null,null,"サイド"]
[null,"S R",null,null,null,null,null,null,null,null,null,null,null,null,null,null,null,"　-①-　",null,null,null,null,null,"S R",null,null,null,null,null,null,null,null,null,null,null,null,null,null,null,null,null,"S R",null,null,null,null,null,null,null,null,null,null,null,null,null,null,null,"　-①-　",null,null,null,null,null,"S R"]
[]
[null,"S R",null,null,null,null,null,null,null,null,null,null,null,null,null,null,null,"　-②-　",null,null,null,null,null,"S R",null,null,null,null,null,null,null,null,null,null,null,null,null,null,null,null,null,"S R",null,null,null,null,null,null,null,null,null,null,null,null,null,null,null,"　-②-　",null,null,null,null,null,"S R"]
[]
[null,"S R",null,null,null,null,null,null,null,null,null,null,null,null,null,null,null,"　-③-　",null,null,null,null,null,"S R",null,null,null,null,null,null,null,null,null,null,null,null,null,null,null,null,null,"S R",null,null,null,null,null,null,null,null,null,null,null,null,null,null,null,"　-③-　",null,null,null,null,null,"S R"]
[]
[null,"S R",null,null,null,null,null,null,null,null,null,null,null,null,null,null,null,"　-④-　",null,null,null,null,null,"S R",null,null,null,null,null,null,null,null,null,null,null,null,null,null,null,null,null,"S R",null,null,null,null,null,null,null,null,null,null,null,null,null,null,null,"　-④-　",null,null,null,null,null,"S R"]
[]
[null,"S R",null,null,null,null,null,null,null,null,null,null,null,null,null,null,null,"　-⑤-　",null,null,null,null,null,"S R",null,null,null,null,null,null,null,null,null,null,null,null,null,null,null,null,null,"S R",null,null,null,null,null,null,null,null,null,null,null,null,null,null,null,"　-⑤-　",null,null,null,null,null,"S R"]
[]
[null,"S R",null,null,null,null,null,null,null,null,null,null,null,null,null,null,null,"　-⑥-　",null,null,null,null,null,"S R",null,null,null,null,null,null,null,null,null,null,null,null,null,null,null,null,null,"S R",null,null,null,null,null,null,null,null,null,null,null,null,null,null,null,"　-⑥-　",null,null,null,null,null,"S R"]
[]
[null,"S R",null,"*","*",null,null,"*","*",null,null,"*","*",null,null,"*","*","　-F-　",null,null,null,null,null,"S R",null,null,null,"*","*",null,null,"*","*",null,null,"*","*",null,null,null,null,"S R",null,"*","*",null,null,"*","*",null,null,"*","*",null,null,"*","*","　-F-　",null,null,null,null,null,"S R",null,null,null,"*","*",null,null,"*","*",null,null,"*","*"]
[null,null,null,null,null,"*","*",null,null,"*","*",null,null,"*","*",null,null,null,null,null,null,null,null,null,null,"*","*",null,null,"*","*",null,null,"*","*",null,null,"*","*",null,null,null,null,null,null,"*","*",null,null,"*","*",null,null,"*","*",null,null,null,null,null,null,null,null,null,null,"*","*",null,null,"*","*",null,null,"*","*",null,null,"*","*"]
[null,null,null,"*","*",null,null,"*","*",null,null,"*","*",null,null,"*","*",null,null,null,null,null,null,null,null,null,null,"*","*",null,null,"*","*",null,null,"*","*",null,null,null,null,null,null,"*","*",null,null,"*","*",null,null,"*","*",null,null,"*","*",null,null,null,null,null,null,null,null,null,null,"*","*",null,null,"*","*",null,null,"*","*"]
[null,"(警告）",null,"Y",null,null,"Y",null,null,"R",null,null,"タ イ ム",null,null,null,null,null,null,null,"タ イ ム",null,null,null,null,null,null,null,"(警告）",null,"Y",null,null,"Y",null,null,"R",null,null,null,null,"(警告）",null,"Y",null,null,"Y",null,null,"R",null,null,"タ イ ム",null,null,null,null,null,null,null,"タ イ ム",null,null,null,null,null,null,null,"(警告）",null,"Y",null,null,"Y",null,null,"R"]
[null,"該当事項",null,null,null,null,null,null,null,null,null,null,"　　　５　　・　　５",null,null,null,null,null,null,null,"　　　５　　・　　５",null,null,null,null,null,null,null,"該当事項",null,null,null,null,null,null,null,null,null,null,null,null,"該当事項",null,null,null,null,null,null,null,null,null,null,"　　　５　　・　　５",null,null,null,null,null,null,null,"　　　５　　・　　５",null,null,null,null,null,null,null,"該当事項"]
[]
[null,"勝者サイン\nNO.",null,null,null,null,null,null,null,null,null,"進行",null,null,null,null,null,null,null,null,"点検",null,null,null,null,null,null,null,null,null,"記録",null,null,null,null,null,null,null,null,null,null,"勝者サイン\nNO.",null,null,null,null,null,null,null,null,null,"進行",null,null,null,null,null,null,null,null,"点検",null,null,null,null,null,null,null,null,null,"記録"]
[]
[null,"千葉県ソフトテニス",null,null,null,null,null,null,null,null,null,null,null,null,null,null,null,null,null,null,null,null,null,null,null,null,null,null,null,null,null,null,null,null,null,null,null,null,null,null,null,"千葉県ソフトテニス"]
[]
[null,{"$f":"B3","v":"シングルス　スコアシート"},null,null,null,null,null,null,null,null,null,null,null,null,null,null,null,null,null,null,null,null,null,null,null,null,null,null,null,null,null,null,null,null,null,null,null,null,null,null,null,{"$f":"B3","v":"シングルス　スコアシート"}]
[null,"種別",null,null,{"$f":"IF('採点票(作成画面)'!$A$1=\"\",\"\",'採点票(作成画面)'!$A$1)","v":""},null,null,null,null,null,"第",null,{"$f":"IF('採点票(作成画面)'!C7=\"\",\"\",'採点票(作成画面)'!C7)","v":""},null,null,null,"コート",null,null,null,"　正審\n\n　　　　　　　",null,{"$f":"IF('採点票(作成画面)'!Q7=\"\",\"\",'採点票(作成画面)'!Q7&\".\"&\"   \"&'採点票(作成画面)'!R7)","v":""},null,null,null,null,null,null,null,"副審\n\n　　　　　　",null,null,null,null,null,null,null,null,null,null,"種別",null,null,{"$f":"IF('採点票(作成画面)'!$A$1=\"\",\"\",'採点票(作成画面)'!$A$1)","v":""},null,null,null,null,null,"第",null,{"$f":"IF('採点票(作成画面)'!C15=\"\",\"\",'採点票(作成画面)'!C15)","v":""},null,null,null,"コート",null,null,null,"　正審\n\n　　　　　　　",null,{"$f":"IF('採点票(作成画面)'!Q15=\"\",\"\",'採点票(作成画面)'!Q15&\".\"&\"   \"&'採点票(作成画面)'!R15)","v":""},null,null,null,null,null,null,null,"副審\n\n　　　　　　"]
[null,null,null,null,null,null,null,null,null,null,null,null,null,null,null,null,null,null,null,null,{"$f":"IF('採点票(作成画面)'!S7=\"\",\"\",'採点票(作成画面)'!S7&\".\"&\"   \"&'採点票(作成画面)'!T7)","v":""},null,null,null,null,null,null,null,null,null,null,null,null,null,null,null,null,null,null,null,null,null,null,null,null,null,null,null,null,null,null,null,null,null,null,null,null,null,null,null,{"$f":"IF('採点票(作成画面)'!S15=\"\",\"\",'採点票(作成画面)'!S15&\".\"&\"   \"&'採点票(作成画面)'!T15)","v":""}]
[null,{"$f":"IF('採点票(作成画面)'!D7=\"\",\"第　　　　回戦\",'採点票(作成画面)'!D7)","v":"第　　　　回戦"},null,null,null,null,null,null,null,null,"開始　　　　　　　：　　　　　",null,null,null,null,null,null,null,null,null,"線審\n\n　　　　　　　",null,null,null,null,null,null,null,null,null,"線審\n\n　　　　　　",null,null,null,null,null,null,null,null,null,null,{"$f":"IF('採点票(作成画面)'!D15=\"\",\"第　　　　回戦\",'採点票(作成画面)'!D15)","v":"第　　　　回戦"},null,null,null,null,null,null,null,null,"開始　　　　　　　：　　　　　",null,null,null,null,null,null,null,null,null,"線審\n\n　　　　　　　",null,null,null,null,null,null,null,null,null,"線審\n\n　　　　　　"]
[null,null,null,null,null,null,null,null,null,null,"終了　　　　　　　：　　　　　",null,null,null,null,null,null,null,null,null,null,null,null,null,null,null,null,null,null,null,null,null,null,null,null,null,null,null,null,null,null,null,null,null,null,null,null,null,null,null,"終了　　　　　　　：　　　　　"]
[null,"№",{"$f":"IF('採点票(作成画面)'!F7<>\"\",'採点票(作成画面)'!F7,\"\")","v":""},null,null,null,"所属",null,null,{"$f":"IFERROR('採点票(作成画面)'!I7,\"\")","v":""},null,null,null,null,null,null,null,"(スコアー）",null,null,null,null,null,"№",{"$f":"IF('採点票(作成画面)'!L7<>\"\",'採点票(作成画面)'!L7,\"\")","v":""},null,null,null,"所属",null,null,{"$f":"IFERROR('採点票(作成画面)'!O7,\"\")","v":""},null,null,null,null,null,null,null,null,null,"№",{"$f":"IF('採点票(作成画面)'!F15<>\"\",'採点票(作成画面)'!F15,\"\")","v":""},null,null,null,"所属",null,null,{"$f":"IFERROR('採点票(作成画面)'!I15,\"\")","v":""},null,null,null,null,null,null,null,"(スコアー）",null,null,null,null,null,"№",{"$f":"IF('採点票(作成画面)'!L15<>\"\",'採点票(作成画面)'!L15,\"\")","v":""},null,null,null,"所属",null,null,{"$f":"IFERROR('採点票(作成画面)'!O15,\"\")","v":""}]
[]
[null,"プレーヤー",null,null,null,{"$f":"IFERROR('採点票(作成画面)'!G7,\"\")","v":""},null,null,null,null,null,null,null,null,null,null,null,null,null,null,null,null,null,"プレーヤー",null,null,null,{"$f":"IFERROR('採点票(作成画面)'!M7,\"\")","v":""},null,null,null,null,null,null,null,null,null,null,null,null,null,"プレーヤー",null,null,null,{"$f":"IFERROR('採点票(作成画面)'!G15,\"\")","v":""},null,null,null,null,null,null,null,null,null,null,null,null,null,null,null,null,null,"プレーヤー",null,null,null,{"$f":"IFERROR('採点票(作成画面)'!M15,\"\")","v":""}]
[null,null,null,null,null,null,null,null,null,null,null,null,null,null,null,null,null,null,null,"―",null,null,null,null,null,null,null,null,null,null,null,null,null,null,null,null,null,null,null,null,null,null,null,null,null,null,null,null,null,null,null,null,null,null,null,null,null,null,null,"―"]
[null,"サイド",null,null,null,null,null,null,null,null,null,null,null,null,null,null,null,null,null,null,null,null,null,"サイド",null,null,null,null,null,null,null,null,null,null,null,null,null,null,null,null,null,"サイド",null,null,null,null,null,null,null,null,null,null,null,null,null,null,null,null,null,null,null,null,null,"サイド"]
[null,"S R",null,null,null,null,null,null,null,null,null,null,null,null,null,null,null,"　-①-　",null,null,null,null,null,"S R",null,null,null,null,null,null,null,null,null,null,null,null,null,null,null,null,null,"S R",null,null,null,null,null,null,null,null,null,null,null,null,null,null,null,"　-①-　",null,null,null,null,null,"S R"]
[]
[null,"S R",null,null,null,null,null,null,null,null,null,null,null,null,null,null,null,"　-②-　",null,null,null,null,null,"S R",null,null,null,null,null,null,null,null,null,null,null,null,null,null,null,null,null,"S R",null,null,null,null,null,null,null,null,null,null,null,null,null,null,null,"　-②-　",null,null,null,null,null,"S R"]
[]
[null,"S R",null,null,null,null,null,null,null,null,null,null,null,null,null,null,null,"　-③-　",null,null,null,null,null,"S R",null,null,null,null,null,null,null,null,null,null,null,null,null,null,null,null,null,"S R",null,null,null,null,null,null,null,null,null,null,null,null,null,null,null,"　-③-　",null,null,null,null,null,"S R"]
[]
[null,"S R",null,null,null,null,null,null,null,null,null,null,null,null,null,null,null,"　-④-　",null,null,null,null,null,"S R",null,null,null,null,null,null,null,null,null,null,null,null,null,null,null,null,null,"S R",null,null,null,null,null,null,null,null,null,null,null,null,null,null,null,"　-④-　",null,null,null,null,null,"S R"]
[]
[null,"S R",null,null,null,null,null,null,null,null,null,null,null,null,null,null,null,"　-⑤-　",null,null,null,null,null,"S R",null,null,null,null,null,null,null,null,null,null,null,null,null,null,null,null,null,"S R",null,null,null,null,null,null,null,null,null,null,null,null,null,null,null,"　-⑤-　",null,null,null,null,null,"S R"]
[]
[null,"S R",null,null,null,null,null,null,null,null,null,null,null,null,null,null,null,"　-⑥-　",null,null,null,null,null,"S R",null,null,null,null,null,null,null,null,null,null,null,null,null,null,null,null,null,"S R",null,null,null,null,null,null,null,null,null,null,null,null,null,null,null,"　-⑥-　",null,null,null,null,null,"S R"]
[]
[null,"S R",null,"*","*",null,null,"*","*",null,null,"*","*",null,null,"*","*","　-F-　",null,null,null,null,null,"S R",null,null,null,"*","*",null,null,"*","*",null,null,"*","*",null,null,null,null,"S R",null,"*","*",null,null,"*","*",null,null,"*","*",null,null,"*","*","　-F-　",null,null,null,null,null,"S R",null,null,null,"*","*",null,null,"*","*",null,null,"*","*"]
[null,null,null,null,null,"*","*",null,null,"*","*",null,null,"*","*",null,null,null,null,null,null,null,null,null,null,"*","*",null,null,"*","*",null,null,"*","*",null,null,"*","*",null,null,null,null,null,null,"*","*",null,null,"*","*",null,null,"*","*",null,null,null,null,null,null,null,null,null,null,"*","*",null,null,"*","*",null,null,"*","*",null,null,"*","*"]
[null,null,null,"*","*",null,null,"*","*",null,null,"*","*",null,null,"*","*",null,null,null,null,null,null,null,null,null,null,"*","*",null,null,"*","*",null,null,"*","*",null,null,null,null,null,null,"*","*",null,null,"*","*",null,null,"*","*",null,null,"*","*",null,null,null,null,null,null,null,null,null,null,"*","*",null,null,"*","*",null,null,"*","*"]
[null,"(警告）",null,"Y",null,null,"Y",null,null,"R",null,null,"タ イ ム",null,null,null,null,null,null,null,"タ イ ム",null,null,null,null,null,null,null,"(警告）",null,"Y",null,null,"Y",null,null,"R",null,null,null,null,"(警告）",null,"Y",null,null,"Y",null,null,"R",null,null,"タ イ ム",null,null,null,null,null,null,null,"タ イ ム",null,null,null,null,null,null,null,"(警告）",null,"Y",null,null,"Y",null,null,"R"]
[null,"該当事項",null,null,null,null,null,null,null,null,null,null,"　　　５　　・　　５",null,null,null,null,null,null,null,"　　　５　　・　　５",null,null,null,null,null,null,null,"該当事項",null,null,null,null,null,null,null,null,null,null,null,null,"該当事項",null,null,null,null,null,null,null,null,null,null,"　　　５　　・　　５",null,null,null,null,null,null,null,"　　　５　　・　　５",null,null,null,null,null,null,null,"該当事項"]
[]
[null,"勝者サイン\nNO.",null,null,null,null,null,null,null,null,null,"進行",null,null,null,null,null,null,null,null,"点検",null,null,null,null,null,null,null,null,null,"記録",null,null,null,null,null,null,null,null,null,null,"勝者サイン\nNO.",null,null,null,null,null,null,null,null,null,"進行",null,null,null,null,null,null,null,null,"点検",null,null,null,null,null,null,null,null,null,"記録"]
[]
[null,"千葉県ソフトテニス",null,null,null,null,null,null,null,null,null,null,null,null,null,null,null,null,null,null,null,null,null,null,null,null,null,null,null,null,null,null,null,null,null,null,null,null,null,null,null,"千葉県ソフトテニス"]
[]
[null,{"$f":"B3","v":"シングルス　スコアシート"},null,null,null,null,null,null,null,null,null,null,null,null,null,null,null,null,null,null,null,null,null,null,null,null,null,null,null,null,null,null,null,null,null,null,null,null,null,null,null,{"$f":"B3","v":"シングルス　スコアシート"}]
[null,"種別",null,null,{"$f":"IF('採点票(作成画面)'!$A$1=\"\",\"\",'採点票(作成画面)'!$A$1)","v":""},null,null,null,null,null,"第",null,{"$f":"IF('採点票(作成画面)'!C8=\"\",\"\",'採点票(作成画面)'!C8)","v":""},null,null,null,"コート",null,null,null,"　正審\n\n　　　　　　　",null,{"$f":"IF('採点票(作成画面)'!Q8=\"\",\"\",'採点票(作成画面)'!Q8&\".\"&\"   \"&'採点票(作成画面)'!R8)","v":""},null,null,null,null,null,null,null,"副審\n\n　　　　　　",null,null,null,null,null,null,null,null,null,null,"種別",null,null,{"$f":"IF('採点票(作成画面)'!$A$1=\"\",\"\",'採点票(作成画面)'!$A$1)","v":""},null,null,null,null,null,"第",null,{"$f":"IF('採点票(作成画面)'!C16=\"\",\"\",'採点票(作成画面)'!C16)","v":""},null,null,null,"コート",null,null,null,"　正審\n\n　　　　　　　",null,{"$f":"IF('採点票(作成画面)'!Q16=\"\",\"\",'採点票(作成画面)'!Q16&\".\"&\"   \"&'採点票(作成画面)'!R16)","v":""},null,null,null,null,null,null,null,"副審\n\n　　　　　　"]
[null,null,null,null,null,null,null,null,null,null,null,null,null,null,null,null,null,null,null,null,{"$f":"IF('採点票(作成画面)'!S8=\"\",\"\",'採点票(作成画面)'!S8&\".\"&\"   \"&'採点票(作成画面)'!T8)","v":""},null,null,null,null,null,null,null,null,null,null,null,null,null,null,null,null,null,null,null,null,null,null,null,null,null,null,null,null,null,null,null,null,null,null,null,null,null,null,null,{"$f":"IF('採点票(作成画面)'!S16=\"\",\"\",'採点票(作成画面)'!S16&\".\"&\"   \"&'採点票(作成画面)'!T16)","v":""}]
[null,{"$f":"IF('採点票(作成画面)'!D8=\"\",\"第　　　　回戦\",'採点票(作成画面)'!D8)","v":"第　　　　回戦"},null,null,null,null,null,null,null,null,"開始　　　　　　　：　　　　　",null,null,null,null,null,null,null,null,null,"線審\n\n　　　　　　　",null,null,null,null,null,null,null,null,null,"線審\n\n　　　　　　",null,null,null,null,null,null,null,null,null,null,{"$f":"IF('採点票(作成画面)'!D16=\"\",\"第　　　　回戦\",'採点票(作成画面)'!D16)","v":"第　　　　回戦"},null,null,null,null,null,null,null,null,"開始　　　　　　　：　　　　　",null,null,null,null,null,null,null,null,null,"線審\n\n　　　　　　　",null,null,null,null,null,null,null,null,null,"線審\n\n　　　　　　"]
[null,null,null,null,null,null,null,null,null,null,"終了　　　　　　　：　　　　　",null,null,null,null,null,null,null,null,null,null,null,null,null,null,null,null,null,null,null,null,null,null,null,null,null,null,null,null,null,null,null,null,null,null,null,null,null,null,null,"終了　　　　　　　：　　　　　"]
[null,"№",{"$f":"IF('採点票(作成画面)'!F8<>\"\",'採点票(作成画面)'!F8,\"\")","v":""},null,null,null,"所属",null,null,{"$f":"IFERROR('採点票(作成画面)'!I8,\"\")","v":""},null,null,null,null,null,null,null,"(スコアー）",null,null,null,null,null,"№",{"$f":"IF('採点票(作成画面)'!L8<>\"\",'採点票(作成画面)'!L8,\"\")","v":""},null,null,null,"所属",null,null,{"$f":"IFERROR('採点票(作成画面)'!O8,\"\")","v":""},null,null,null,null,null,null,null,null,null,"№",{"$f":"IF('採点票(作成画面)'!F16<>\"\",'採点票(作成画面)'!F16,\"\")","v":""},null,null,null,"所属",null,null,{"$f":"IFERROR('採点票(作成画面)'!I16,\"\")","v":""},null,null,null,null,null,null,null,"(スコアー）",null,null,null,null,null,"№",{"$f":"IF('採点票(作成画面)'!L16<>\"\",'採点票(作成画面)'!L16,\"\")","v":""},null,null,null,"所属",null,null,{"$f":"IFERROR('採点票(作成画面)'!O16,\"\")","v":""}]
[]
[null,"プレーヤー",null,null,null,{"$f":"IFERROR('採点票(作成画面)'!G8,\"\")","v":""},null,null,null,null,null,null,null,null,null,null,null,null,null,null,null,null,null,"プレーヤー",null,null,null,{"$f":"IFERROR('採点票(作成画面)'!M8,\"\")","v":""},null,null,null,null,null,null,null,null,null,null,null,null,null,"プレーヤー",null,null,null,{"$f":"IFERROR('採点票(作成画面)'!G16,\"\")","v":""},null,null,null,null,null,null,null,null,null,null,null,null,null,null,null,null,null,"プレーヤー",null,null,null,{"$f":"IFERROR('採点票(作成画面)'!M16,\"\")","v":""}]
[null,null,null,null,null,null,null,null,null,null,null,null,null,null,null,null,null,null,null,"―",null,null,null,null,null,null,null,null,null,null,null,null,null,null,null,null,null,null,null,null,null,null,null,null,null,null,null,null,null,null,null,null,null,null,null,null,null,null,null,"―"]
[null,"サイド",null,null,null,null,null,null,null,null,null,null,null,null,null,null,null,null,null,null,null,null,null,"サイド",null,null,null,null,null,null,null,null,null,null,null,null,null,null,null,null,null,"サイド",null,null,null,null,null,null,null,null,null,null,null,null,null,null,null,null,null,null,null,null,null,"サイド"]
[null,"S R",null,null,null,null,null,null,null,null,null,null,null,null,null,null,null,"　-①-　",null,null,null,null,null,"S R",null,null,null,null,null,null,null,null,null,null,null,null,null,null,null,null,null,"S R",null,null,null,null,null,null,null,null,null,null,null,null,null,null,null,"　-①-　",null,null,null,null,null,"S R"]
[]
[null,"S R",null,null,null,null,null,null,null,null,null,null,null,null,null,null,null,"　-②-　",null,null,null,null,null,"S R",null,null,null,null,null,null,null,null,null,null,null,null,null,null,null,null,null,"S R",null,null,null,null,null,null,null,null,null,null,null,null,null,null,null,"　-②-　",null,null,null,null,null,"S R"]
[]
[null,"S R",null,null,null,null,null,null,null,null,null,null,null,null,null,null,null,"　-③-　",null,null,null,null,null,"S R",null,null,null,null,null,null,null,null,null,null,null,null,null,null,null,null,null,"S R",null,null,null,null,null,null,null,null,null,null,null,null,null,null,null,"　-③-　",null,null,null,null,null,"S R"]
[]
[null,"S R",null,null,null,null,null,null,null,null,null,null,null,null,null,null,null,"　-④-　",null,null,null,null,null,"S R",null,null,null,null,null,null,null,null,null,null,null,null,null,null,null,null,null,"S R",null,null,null,null,null,null,null,null,null,null,null,null,null,null,null,"　-④-　",null,null,null,null,null,"S R"]
[]
[null,"S R",null,null,null,null,null,null,null,null,null,null,null,null,null,null,null,"　-⑤-　",null,null,null,null,null,"S R",null,null,null,null,null,null,null,null,null,null,null,null,null,null,null,null,null,"S R",null,null,null,null,null,null,null,null,null,null,null,null,null,null,null,"　-⑤-　",null,null,null,null,null,"S R"]
[]
[null,"S R",null,null,null,null,null,null,null,null,null,null,null,null,null,null,null,"　-⑥-　",null,null,null,null,null,"S R",null,null,null,null,null,null,null,null,null,null,null,null,null,null,null,null,null,"S R",null,null,null,null,null,null,null,null,null,null,null,null,null,null,null,"　-⑥-　",null,null,null,null,null,"S R"]
[]
[null,"S R",null,"*","*",null,null,"*","*",null,null,"*","*",null,null,"*","*","　-F-　",null,null,null,null,null,"S R",null,null,null,"*","*",null,null,"*","*",null,null,"*","*",null,null,null,null,"S R",null,"*","*",null,null,"*","*",null,null,"*","*",null,null,"*","*","　-F-　",null,null,null,null,null,"S R",null,null,null,"*","*",null,null,"*","*",null,null,"*","*"]
[null,null,null,null,null,"*","*",null,null,"*","*",null,null,"*","*",null,null,null,null,null,null,null,null,null,null,"*","*",null,null,"*","*",null,null,"*","*",null,null,"*","*",null,null,null,null,null,null,"*","*",null,null,"*","*",null,null,"*","*",null,null,null,null,null,null,null,null,null,null,"*","*",null,null,"*","*",null,null,"*","*",null,null,"*","*"]
[null,null,null,"*","*",null,null,"*","*",null,null,"*","*",null,null,"*","*",null,null,null,null,null,null,null,null,null,null,"*","*",null,null,"*","*",null,null,"*","*",null,null,null,null,null,null,"*","*",null,null,"*","*",null,null,"*","*",null,null,"*","*",null,null,null,null,null,null,null,null,null,null,"*","*",null,null,"*","*",null,null,"*","*"]
[null,"(警告）",null,"Y",null,null,"Y",null,null,"R",null,null,"タ イ ム",null,null,null,null,null,null,null,"タ イ ム",null,null,null,null,null,null,null,"(警告）",null,"Y",null,null,"Y",null,null,"R",null,null,null,null,"(警告）",null,"Y",null,null,"Y",null,null,"R",null,null,"タ イ ム",null,null,null,null,null,null,null,"タ イ ム",null,null,null,null,null,null,null,"(警告）",null,"Y",null,null,"Y",null,null,"R"]
[null,"該当事項",null,null,null,null,null,null,null,null,null,null,"　　　５　　・　　５",null,null,null,null,null,null,null,"　　　５　　・　　５",null,null,null,null,null,null,null,"該当事項",null,null,null,null,null,null,null,null,null,null,null,null,"該当事項",null,null,null,null,null,null,null,null,null,null,"A　　　５　　・　　５",null,null,null,null,null,null,null,"A　　　５　　・　　５",null,null,null,null,null,null,null,"該当事項"]
[null,null,null,null,null,null,null,null,null,null,null,null,null,null,null,null,null,null,null,null,null,null,null,null,null,null,null,null,null,null,null,null,null,null,null,null,null,null,null,null,null,null,null,null,null,null,null,null,null,null,null,null,"B　　　５　　・　　５",null,null,null,null,null,null,null,"B　　　５　　・　　５"]
[null,"勝者サイン\nNO.",null,null,null,null,null,null,null,null,null,"進行",null,null,null,null,null,null,null,null,"点検",null,null,null,null,null,null,null,null,null,"記録",null,null,null,null,null,null,null,null,null,null,"勝者サイン\nNO.",null,null,null,null,null,null,null,null,null,"進行",null,null,null,null,null,null,null,null,"点検",null,null,null,null,null,null,null,null,null,"記録"]
[]
[null,"千葉県ソフトテニス",null,null,null,null,null,null,null,null,null,null,null,null,null,null,null,null,null,null,null,null,null,null,null,null,null,null,null,null,null,null,null,null,null,null,null,null,null,null,null,"千葉県ソフトテニス"]
[]
[null,{"$f":"B3","v":"シングルス　スコアシート"},null,null,null,null,null,null,null,null,null,null,null,null,null,null,null,null,null,null,null,null,null,null,null,null,null,null,null,null,null,null,null,null,null,null,null,null,null,null,null,{"$f":"B3","v":"シングルス　スコアシート"}]
[null,"種別",null,null,{"$f":"IF('採点票(作成画面)'!$A$1=\"\",\"\",'採点票(作成画面)'!$A$1)","v":""},null,null,null,null,null,"第",null,{"$f":"IF('採点票(作成画面)'!C9=\"\",\"\",'採点票(作成画面)'!C9)","v":""},null,null,null,"コート",null,null,null,"　正審\n\n　　　　　　　",null,{"$f":"IF('採点票(作成画面)'!Q9=\"\",\"\",'採点票(作成画面)'!Q9&\".\"&\"   \"&'採点票(作成画面)'!R9)","v":""},null,null,null,null,null,null,null,"副審\n\n　　　　　　",null,null,null,null,null,null,null,null,null,null,"種別",null,null,{"$f":"IF('採点票(作成画面)'!$A$1=\"\",\"\",'採点票(作成画面)'!$A$1)","v":""},null,null,null,null,null,"第",null,{"$f":"IF('採点票(作成画面)'!C17=\"\",\"\",'採点票(作成画面)'!C17)","v":""},null,null,null,"コート",null,null,null,"　正審\n\n　　　　　　　",null,{"$f":"IF('採点票(作成画面)'!Q17=\"\",\"\",'採点票(作成画面)'!Q17&\".\"&\"   \"&'採点票(作成画面)'!R17)","v":""},null,null,null,null,null,null,null,"副審\n\n　　　　　　"]
[null,null,null,null,null,null,null,null,null,null,null,null,null,null,null,null,null,null,null,null,{"$f":"IF('採点票(作成画面)'!S9=\"\",\"\",'採点票(作成画面)'!S9&\".\"&\"   \"&'採点票(作成画面)'!T9)","v":""},null,null,null,null,null,null,null,null,null,null,null,null,null,null,null,null,null,null,null,null,null,null,null,null,null,null,null,null,null,null,null,null,null,null,null,null,null,null,null,{"$f":"IF('採点票(作成画面)'!S17=\"\",\"\",'採点票(作成画面)'!S17&\".\"&\"   \"&'採点票(作成画面)'!T17)","v":""}]
[null,{"$f":"IF('採点票(作成画面)'!D9=\"\",\"第　　　　回戦\",'採点票(作成画面)'!D9)","v":"第　　　　回戦"},null,null,null,null,null,null,null,null,"開始　　　　　　　：　　　　　",null,null,null,null,null,null,null,null,null,"線審\n\n　　　　　　　",null,null,null,null,null,null,null,null,null,"線審\n\n　　　　　　",null,null,null,null,null,null,null,null,null,null,{"$f":"IF('採点票(作成画面)'!D17=\"\",\"第　　　　回戦\",'採点票(作成画面)'!D17)","v":"第　　　　回戦"},null,null,null,null,null,null,null,null,"開始　　　　　　　：　　　　　",null,null,null,null,null,null,null,null,null,"線審\n\n　　　　　　　",null,null,null,null,null,null,null,null,null,"線審\n\n　　　　　　"]
[null,null,null,null,null,null,null,null,null,null,"終了　　　　　　　：　　　　　",null,null,null,null,null,null,null,null,null,null,null,null,null,null,null,null,null,null,null,null,null,null,null,null,null,null,null,null,null,null,null,null,null,null,null,null,null,null,null,"終了　　　　　　　：　　　　　"]
[null,"№",{"$f":"IF('採点票(作成画面)'!F9<>\"\",'採点票(作成画面)'!F9,\"\")","v":""},null,null,null,"所属",null,null,{"$f":"IFERROR('採点票(作成画面)'!I9,\"\")","v":""},null,null,null,null,null,null,null,"(スコアー）",null,null,null,null,null,"№",{"$f":"IF('採点票(作成画面)'!L9<>\"\",'採点票(作成画面)'!L9,\"\")","v":""},null,null,null,"所属",null,null,{"$f":"IFERROR('採点票(作成画面)'!O9,\"\")","v":""},null,null,null,null,null,null,null,null,null,"№",{"$f":"IF('採点票(作成画面)'!F17<>\"\",'採点票(作成画面)'!F17,\"\")","v":""},null,null,null,"所属",null,null,{"$f":"IFERROR('採点票(作成画面)'!I17,\"\")","v":""},null,null,null,null,null,null,null,"(スコアー）",null,null,null,null,null,"№",{"$f":"IF('採点票(作成画面)'!L17<>\"\",'採点票(作成画面)'!L17,\"\")","v":""},null,null,null,"所属",null,null,{"$f":"IFERROR('採点票(作成画面)'!O17,\"\")","v":""}]
[]
[null,"プレーヤー",null,null,null,{"$f":"IFERROR('採点票(作成画面)'!G9,\"\")","v":""},null,null,null,null,null,null,null,null,null,null,null,null,null,null,null,null,null,"プレーヤー",null,null,null,{"$f":"IFERROR('採点票(作成画面)'!M9,\"\")","v":""},null,null,null,null,null,null,null,null,null,null,null,null,null,"プレーヤー",null,null,null,{"$f":"IFERROR('採点票(作成画面)'!G17,\"\")","v":""},null,null,null,null,null,null,null,null,null,null,null,null,null,null,null,null,null,"プレーヤー",null,null,null,{"$f":"IFERROR('採点票(作成画面)'!M17,\"\")","v":""}]
[null,null,null,null,null,null,null,null,null,null,null,null,null,null,null,null,null,null,null,"―",null,null,null,null,null,null,null,null,null,null,null,null,null,null,null,null,null,null,null,null,null,null,null,null,null,null,null,null,null,null,null,null,null,null,null,null,null,null,null,"―"]
[null,"サイド",null,null,null,null,null,null,null,null,null,null,null,null,null,null,null,null,null,null,null,null,null,"サイド",null,null,null,null,null,null,null,null,null,null,null,null,null,null,null,null,null,"サイド",null,null,null,null,null,null,null,null,null,null,null,null,null,null,null,null,null,null,null,null,null,"サイド"]
[null,"S R",null,null,null,null,null,null,null,null,null,null,null,null,null,null,null,"　-①-　",null,null,null,null,null,"S R",null,null,null,null,null,null,null,null,null,null,null,null,null,null,null,null,null,"S R",null,null,null,null,null,null,null,null,null,null,null,null,null,null,null,"　-①-　",null,null,null,null,null,"S R"]
[]
[null,"S R",null,null,null,null,null,null,null,null,null,null,null,null,null,null,null,"　-②-　",null,null,null,null,null,"S R",null,null,null,null,null,null,null,null,null,null,null,null,null,null,null,null,null,"S R",null,null,null,null,null,null,null,null,null,null,null,null,null,null,null,"　-②-　",null,null,null,null,null,"S R"]
[]
[null,"S R",null,null,null,null,null,null,null,null,null,null,null,null,null,null,null,"　-③-　",null,null,null,null,null,"S R",null,null,null,null,null,null,null,null,null,null,null,null,null,null,null,null,null,"S R",null,null,null,null,null,null,null,null,null,null,null,null,null,null,null,"　-③-　",null,null,null,null,null,"S R"]
[]
[null,"S R",null,null,null,null,null,null,null,null,null,null,null,null,null,null,null,"　-④-　",null,null,null,null,null,"S R",null,null,null,null,null,null,null,null,null,null,null,null,null,null,null,null,null,"S R",null,null,null,null,null,null,null,null,null,null,null,null,null,null,null,"　-④-　",null,null,null,null,null,"S R"]
[]
[null,"S R",null,null,null,null,null,null,null,null,null,null,null,null,null,null,null,"　-⑤-　",null,null,null,null,null,"S R",null,null,null,null,null,null,null,null,null,null,null,null,null,null,null,null,null,"S R",null,null,null,null,null,null,null,null,null,null,null,null,null,null,null,"　-⑤-　",null,null,null,null,null,"S R"]
[]
[null,"S R",null,null,null,null,null,null,null,null,null,null,null,null,null,null,null,"　-⑥-　",null,null,null,null,null,"S R",null,null,null,null,null,null,null,null,null,null,null,null,null,null,null,null,null,"S R",null,null,null,null,null,null,null,null,null,null,null,null,null,null,null,"　-⑥-　",null,null,null,null,null,"S R"]
[]
[null,"S R",null,"*","*",null,null,"*","*",null,null,"*","*",null,null,"*","*","　-F-　",null,null,null,null,null,"S R",null,null,null,"*","*",null,null,"*","*",null,null,"*","*",null,null,null,null,"S R",null,"*","*",null,null,"*","*",null,null,"*","*",null,null,"*","*","　-F-　",null,null,null,null,null,"S R",null,null,null,"*","*",null,null,"*","*",null,null,"*","*"]
[null,null,null,null,null,"*","*",null,null,"*","*",null,null,"*","*",null,null,null,null,null,null,null,null,null,null,"*","*",null,null,"*","*",null,null,"*","*",null,null,"*","*",null,null,null,null,null,null,"*","*",null,null,"*","*",null,null,"*","*",null,null,null,null,null,null,null,null,null,null,"*","*",null,null,"*","*",null,null,"*","*",null,null,"*","*"]
[null,null,null,"*","*",null,null,"*","*",null,null,"*","*",null,null,"*","*",null,null,null,null,null,null,null,null,null,null,"*","*",null,null,"*","*",null,null,"*","*",null,null,null,null,null,null,"*","*",null,null,"*","*",null,null,"*","*",null,null,"*","*",null,null,null,null,null,null,null,null,null,null,"*","*",null,null,"*","*",null,null,"*","*"]
[null,"(警告）",null,"Y",null,null,"Y",null,null,"R",null,null,"タ イ ム",null,null,null,null,null,null,null,"タ イ ム",null,null,null,null,null,null,null,"(警告）",null,"Y",null,null,"Y",null,null,"R",null,null,null,null,"(警告）",null,"Y",null,null,"Y",null,null,"R",null,null,"タ イ ム",null,null,null,null,null,null,null,"タ イ ム",null,null,null,null,null,null,null,"(警告）",null,"Y",null,null,"Y",null,null,"R"]
[null,"該当事項",null,null,null,null,null,null,null,null,null,null,"　　　５　　・　　５",null,null,null,null,null,null,null,"　　　５　　・　　５",null,null,null,null,null,null,null,"該当事項",null,null,null,null,null,null,null,null,null,null,null,null,"該当事項",null,null,null,null,null,null,null,null,null,null,"　　　５　　・　　５",null,null,null,null,null,null,null,"　　　５　　・　　５",null,null,null,null,null,null,null,"該当事項"]
[]
[null,"勝者サイン\nNO.",null,null,null,null,null,null,null,null,null,"進行",null,null,null,null,null,null,null,null,"点検",null,null,null,null,null,null,null,null,null,"記録",null,null,null,null,null,null,null,null,null,null,"勝者サイン\nNO.",null,null,null,null,null,null,null,null,null,"進行",null,null,null,null,null,null,null,null,"点検",null,null,null,null,null,null,null,null,null,"記録"]
[]
[null,"千葉県ソフトテニス",null,null,null,null,null,null,null,null,null,null,null,null,null,null,null,null,null,null,null,null,null,null,null,null,null,null,null,null,null,null,null,null,null,null,null,null,null,null,null,"千葉県ソフトテニス"]
[]
[null,{"$f":"B3","v":"シングルス　スコアシート"},null,null,null,null,null,null,null,null,null,null,null,null,null,null,null,null,null,null,null,null,null,null,null,null,null,null,null,null,null,null,null,null,null,null,null,null,null,null,null,{"$f":"B3","v":"シングルス　スコアシート"}]
[null,"種別",null,null,{"$f":"IF('採点票(作成画面)'!$A$1=\"\",\"\",'採点票(作成画面)'!$A$1)","v":""},null,null,null,null,null,"第",null,{"$f":"IF('採点票(作成画面)'!C10=\"\",\"\",'採点票(作成画面)'!C10)","v":""},null,null,null,"コート",null,null,null,"　正審\n\n　　　　　　　",null,{"$f":"IF('採点票(作成画面)'!Q10=\"\",\"\",'採点票(作成画面)'!Q10&\".\"&\"   \"&'採点票(作成画面)'!R10)","v":""},null,null,null,null,null,null,null,"副審\n\n　　　　　　",null,null,null,null,null,null,null,null,null,null,"種別",null,null,{"$f":"IF('採点票(作成画面)'!$A$1=\"\",\"\",'採点票(作成画面)'!$A$1)","v":""},null,null,null,null,null,"第",null,{"$f":"IF('採点票(作成画面)'!C18=\"\",\"\",'採点票(作成画面)'!C18)","v":""},null,null,null,"コート",null,null,null,"　正審\n\n　　　　　　　",null,{"$f":"IF('採点票(作成画面)'!Q18=\"\",\"\",'採点票(作成画面)'!Q18&\".\"&\"   \"&'採点票(作成画面)'!R18)","v":""},null,null,null,null,null,null,null,"副審\n\n　　　　　　"]
[null,null,null,null,null,null,null,null,null,null,null,null,null,null,null,null,null,null,null,null,{"$f":"IF('採点票(作成画面)'!S10=\"\",\"\",'採点票(作成画面)'!S10&\".\"&\"   \"&'採点票(作成画面)'!T10)","v":""},null,null,null,null,null,null,null,null,null,null,null,null,null,null,null,null,null,null,null,null,null,null,null,null,null,null,null,null,null,null,null,null,null,null,null,null,null,null,null,{"$f":"IF('採点票(作成画面)'!S18=\"\",\"\",'採点票(作成画面)'!S18&\".\"&\"   \"&'採点票(作成画面)'!T18)","v":""}]
[null,{"$f":"IF('採点票(作成画面)'!D10=\"\",\"第　　　　回戦\",'採点票(作成画面)'!D10)","v":"第　　　　回戦"},null,null,null,null,null,null,null,null,"開始　　　　　　　：　　　　　",null,null,null,null,null,null,null,null,null,"線審\n\n　　　　　　　",null,null,null,null,null,null,null,null,null,"線審\n\n　　　　　　",null,null,null,null,null,null,null,null,null,null,{"$f":"IF('採点票(作成画面)'!D18=\"\",\"第　　　　回戦\",'採点票(作成画面)'!D18)","v":"第　　　　回戦"},null,null,null,null,null,null,null,null,"開始　　　　　　　：　　　　　",null,null,null,null,null,null,null,null,null,"線審\n\n　　　　　　　",null,null,null,null,null,null,null,null,null,"線審\n\n　　　　　　"]
[null,null,null,null,null,null,null,null,null,null,"終了　　　　　　　：　　　　　",null,null,null,null,null,null,null,null,null,null,null,null,null,null,null,null,null,null,null,null,null,null,null,null,null,null,null,null,null,null,null,null,null,null,null,null,null,null,null,"終了　　　　　　　：　　　　　"]
[null,"№",{"$f":"IF('採点票(作成画面)'!F10<>\"\",'採点票(作成画面)'!F10,\"\")","v":""},null,null,null,"所属",null,null,{"$f":"IFERROR('採点票(作成画面)'!I10,\"\")","v":""},null,null,null,null,null,null,null,"(スコアー）",null,null,null,null,null,"№",{"$f":"IF('採点票(作成画面)'!L10<>\"\",'採点票(作成画面)'!L10,\"\")","v":""},null,null,null,"所属",null,null,{"$f":"IFERROR('採点票(作成画面)'!O10,\"\")","v":""},null,null,null,null,null,null,null,null,null,"№",{"$f":"IF('採点票(作成画面)'!F18<>\"\",'採点票(作成画面)'!F18,\"\")","v":""},null,null,null,"所属",null,null,{"$f":"IFERROR('採点票(作成画面)'!I18,\"\")","v":""},null,null,null,null,null,null,null,"(スコアー）",null,null,null,null,null,"№",{"$f":"IF('採点票(作成画面)'!L18<>\"\",'採点票(作成画面)'!L18,\"\")","v":""},null,null,null,"所属",null,null,{"$f":"IFERROR('採点票(作成画面)'!O18,\"\")","v":""}]
[]
[null,"プレーヤー",null,null,null,{"$f":"IFERROR('採点票(作成画面)'!G10,\"\")","v":""},null,null,null,null,null,null,null,null,null,null,null,null,null,null,null,null,null,"プレーヤー",null,null,null,{"$f":"IFERROR('採点票(作成画面)'!M10,\"\")","v":""},null,null,null,null,null,null,null,null,null,null,null,null,null,"プレーヤー",null,null,null,{"$f":"IFERROR('採点票(作成画面)'!G18,\"\")","v":""},null,null,null,null,null,null,null,null,null,null,null,null,null,null,null,null,null,"プレーヤー",null,null,null,{"$f":"IFERROR('採点票(作成画面)'!M18,\"\")","v":""}]
[null,null,null,null,null,null,null,null,null,null,null,null,null,null,null,null,null,null,null,"―",null,null,null,null,null,null,null,null,null,null,null,null,null,null,null,null,null,null,null,null,null,null,null,null,null,null,null,null,null,null,null,null,null,null,null,null,null,null,null,"―"]
[null,"サイド",null,null,null,null,null,null,null,null,null,null,null,null,null,null,null,null,null,null,null,null,null,"サイド",null,null,null,null,null,null,null,null,null,null,null,null,null,null,null,null,null,"サイド",null,null,null,null,null,null,null,null,null,null,null,null,null,null,null,null,null,null,null,null,null,"サイド"]
[null,"S R",null,null,null,null,null,null,null,null,null,null,null,null,null,null,null,"　-①-　",null,null,null,null,null,"S R",null,null,null,null,null,null,null,null,null,null,null,null,null,null,null,null,null,"S R",null,null,null,null,null,null,null,null,null,null,null,null,null,null,null,"　-①-　",null,null,null,null,null,"S R"]
[]
[null,"S R",null,null,null,null,null,null,null,null,null,null,null,null,null,null,null,"　-②-　",null,null,null,null,null,"S R",null,null,null,null,null,null,null,null,null,null,null,null,null,null,null,null,null,"S R",null,null,null,null,null,null,null,null,null,null,null,null,null,null,null,"　-②-　",null,null,null,null,null,"S R"]
[]
[null,"S R",null,null,null,null,null,null,null,null,null,null,null,null,null,null,null,"　-③-　",null,null,null,null,null,"S R",null,null,null,null,null,null,null,null,null,null,null,null,null,null,null,null,null,"S R",null,null,null,null,null,null,null,null,null,null,null,null,null,null,null,"　-③-　",null,null,null,null,null,"S R"]
[]
[null,"S R",null,null,null,null,null,null,null,null,null,null,null,null,null,null,null,"　-④-　",null,null,null,null,null,"S R",null,null,null,null,null,null,null,null,null,null,null,null,null,null,null,null,null,"S R",null,null,null,null,null,null,null,null,null,null,null,null,null,null,null,"　-④-　",null,null,null,null,null,"S R"]
[]
[null,"S R",null,null,null,null,null,null,null,null,null,null,null,null,null,null,null,"　-⑤-　",null,null,null,null,null,"S R",null,null,null,null,null,null,null,null,null,null,null,null,null,null,null,null,null,"S R",null,null,null,null,null,null,null,null,null,null,null,null,null,null,null,"　-⑤-　",null,null,null,null,null,"S R"]
[]
[null,"S R",null,null,null,null,null,null,null,null,null,null,null,null,null,null,null,"　-⑥-　",null,null,null,null,null,"S R",null,null,null,null,null,null,null,null,null,null,null,null,null,null,null,null,null,"S R",null,null,null,null,null,null,null,null,null,null,null,null,null,null,null,"　-⑥-　",null,null,null,null,null,"S R"]
[]
[null,"S R",null,"*","*",null,null,"*","*",null,null,"*","*",null,null,"*","*","　-F-　",null,null,null,null,null,"S R",null,null,null,"*","*",null,null,"*","*",null,null,"*","*",null,null,null,null,"S R",null,"*","*",null,null,"*","*",null,null,"*","*",null,null,"*","*","　-F-　",null,null,null,null,null,"S R",null,null,null,"*","*",null,null,"*","*",null,null,"*","*"]
[null,null,null,null,null,"*","*",null,null,"*","*",null,null,"*","*",null,null,null,null,null,null,null,null,null,null,"*","*",null,null,"*","*",null,null,"*","*",null,null,"*","*",null,null,null,null,null,null,"*","*",null,null,"*","*",null,null,"*","*",null,null,null,null,null,null,null,null,null,null,"*","*",null,null,"*","*",null,null,"*","*",null,null,"*","*"]
[null,null,null,"*","*",null,null,"*","*",null,null,"*","*",null,null,"*","*",null,null,null,null,null,null,null,null,null,null,"*","*",null,null,"*","*",null,null,"*","*",null,null,null,null,null,null,"*","*",null,null,"*","*",null,null,"*","*",null,null,"*","*",null,null,null,null,null,null,null,null,null,null,"*","*",null,null,"*","*",null,null,"*","*"]
[null,"(警告）",null,"Y",null,null,"Y",null,null,"R",null,null,"タ イ ム",null,null,null,null,null,null,null,"タ イ ム",null,null,null,null,null,null,null,"(警告）",null,"Y",null,null,"Y",null,null,"R",null,null,null,null,"(警告）",null,"Y",null,null,"Y",null,null,"R",null,null,"タ イ ム",null,null,null,null,null,null,null,"タ イ ム",null,null,null,null,null,null,null,"(警告）",null,"Y",null,null,"Y",null,null,"R"]
[null,"該当事項",null,null,null,null,null,null,null,null,null,null,"A　　　５　　・　　５",null,null,null,null,null,null,null,"A　　　５　　・　　５",null,null,null,null,null,null,null,"該当事項",null,null,null,null,null,null,null,null,null,null,null,null,"該当事項",null,null,null,null,null,null,null,null,null,null,"A　　　５　　・　　５",null,null,null,null,null,null,null,"A　　　５　　・　　５",null,null,null,null,null,null,null,"該当事項"]
[null,null,null,null,null,null,null,null,null,null,null,null,"B　　　５　　・　　５",null,null,null,null,null,null,null,"B　　　５　　・　　５",null,null,null,null,null,null,null,null,null,null,null,null,null,null,null,null,null,null,null,null,null,null,null,null,null,null,null,null,null,null,null,"B　　　５　　・　　５",null,null,null,null,null,null,null,"B　　　５　　・　　５"]
[null,"勝者サイン\nNO.",null,null,null,null,null,null,null,null,null,"進行",null,null,null,null,null,null,null,null,"点検",null,null,null,null,null,null,null,null,null,"記録",null,null,null,null,null,null,null,null,null,null,"勝者サイン\nNO.",null,null,null,null,null,null,null,null,null,"進行",null,null,null,null,null,null,null,null,"点検",null,null,null,null,null,null,null,null,null,"記録"]
[]
[null,"千葉県ソフトテニス",null,null,null,null,null,null,null,null,null,null,null,null,null,null,null,null,null,null,null,null,null,null,null,null,null,null,null,null,null,null,null,null,null,null,null,null,null,null,null,"千葉県ソフトテニス"]
[]
[null,{"$f":"B3","v":"シングルス　スコアシート"},null,null,null,null,null,null,null,null,null,null,null,null,null,null,null,null,null,null,null,null,null,null,null,null,null,null,null,null,null,null,null,null,null,null,null,null,null,null,null,{"$f":"B3","v":"シングルス　スコアシート"}]
[null,"種別",null,null,{"$f":"IF('採点票(作成画面)'!$A$1=\"\",\"\",'採点票(作成画面)'!$A$1)","v":""},null,null,null,null,null,"第",null,{"$f":"IF('採点票(作成画面)'!C11=\"\",\"\",'採点票(作成画面)'!C11)","v":""},null,null,null,"コート",null,null,null,"　正審\n\n　　　　　　　",null,{"$f":"IF('採点票(作成画面)'!Q11=\"\",\"\",'採点票(作成画面)'!Q11&\".\"&\"   \"&'採点票(作成画面)'!R11)","v":""},null,null,null,null,null,null,null,"副審\n\n　　　　　　",null,null,null,null,null,null,null,null,null,null,"種別",null,null,{"$f":"IF('採点票(作成画面)'!$A$1=\"\",\"\",'採点票(作成画面)'!$A$1)","v":""},null,null,null,null,null,"第",null,{"$f":"IF('採点票(作成画面)'!C19=\"\",\"\",'採点票(作成画面)'!C19)","v":""},null,null,null,"コート",null,null,null,"　正審\n\n　　　　　　　",null,{"$f":"IF('採点票(作成画面)'!Q19=\"\",\"\",'採点票(作成画面)'!Q19&\".\"&\"   \"&'採点票(作成画面)'!R19)","v":""},null,null,null,null,null,null,null,"副審\n\n　　　　　　"]
[null,null,null,null,null,null,null,null,null,null,null,null,null,null,null,null,null,null,null,null,{"$f":"IF('採点票(作成画面)'!S11=\"\",\"\",'採点票(作成画面)'!S11&\".\"&\"   \"&'採点票(作成画面)'!T11)","v":""},null,null,null,null,null,null,null,null,null,null,null,null,null,null,null,null,null,null,null,null,null,null,null,null,null,null,null,null,null,null,null,null,null,null,null,null,null,null,null,{"$f":"IF('採点票(作成画面)'!S19=\"\",\"\",'採点票(作成画面)'!S19&\".\"&\"   \"&'採点票(作成画面)'!T19)","v":""}]
[null,{"$f":"IF('採点票(作成画面)'!D11=\"\",\"第　　　　回戦\",'採点票(作成画面)'!D11)","v":"第　　　　回戦"},null,null,null,null,null,null,null,null,"開始　　　　　　　：　　　　　",null,null,null,null,null,null,null,null,null,"線審\n\n　　　　　　　",null,null,null,null,null,null,null,null,null,"線審\n\n　　　　　　",null,null,null,null,null,null,null,null,null,null,{"$f":"IF('採点票(作成画面)'!D19=\"\",\"第　　　　回戦\",'採点票(作成画面)'!D19)","v":"第　　　　回戦"},null,null,null,null,null,null,null,null,"開始　　　　　　　：　　　　　",null,null,null,null,null,null,null,null,null,"線審\n\n　　　　　　　",null,null,null,null,null,null,null,null,null,"線審\n\n　　　　　　"]
[null,null,null,null,null,null,null,null,null,null,"終了　　　　　　　：　　　　　",null,null,null,null,null,null,null,null,null,null,null,null,null,null,null,null,null,null,null,null,null,null,null,null,null,null,null,null,null,null,null,null,null,null,null,null,null,null,null,"終了　　　　　　　：　　　　　"]
[null,"№",{"$f":"IF('採点票(作成画面)'!F11<>\"\",'採点票(作成画面)'!F11,\"\")","v":""},null,null,null,"所属",null,null,{"$f":"IFERROR('採点票(作成画面)'!I11,\"\")","v":""},null,null,null,null,null,null,null,"(スコアー）",null,null,null,null,null,"№",{"$f":"IF('採点票(作成画面)'!L11<>\"\",'採点票(作成画面)'!L11,\"\")","v":""},null,null,null,"所属",null,null,{"$f":"IFERROR('採点票(作成画面)'!O11,\"\")","v":""},null,null,null,null,null,null,null,null,null,"№",{"$f":"IF('採点票(作成画面)'!F19<>\"\",'採点票(作成画面)'!F19,\"\")","v":""},null,null,null,"所属",null,null,{"$f":"IFERROR('採点票(作成画面)'!I19,\"\")","v":""},null,null,null,null,null,null,null,"(スコアー）",null,null,null,null,null,"№",{"$f":"IF('採点票(作成画面)'!L19<>\"\",'採点票(作成画面)'!L19,\"\")","v":""},null,null,null,"所属",null,null,{"$f":"IFERROR('採点票(作成画面)'!O19,\"\")","v":""}]
[]
[null,"プレーヤー",null,null,null,{"$f":"IFERROR('採点票(作成画面)'!G11,\"\")","v":""},null,null,null,null,null,null,null,null,null,null,null,null,null,null,null,null,null,"プレーヤー",null,null,null,{"$f":"IFERROR('採点票(作成画面)'!M11,\"\")","v":""},null,null,null,null,null,null,null,null,null,null,null,null,null,"プレーヤー",null,null,null,{"$f":"IFERROR('採点票(作成画面)'!G19,\"\")","v":""},null,null,null,null,null,null,null,null,null,null,null,null,null,null,null,null,null,"プレーヤー",null,null,null,{"$f":"IFERROR('採点票(作成画面)'!M19,\"\")","v":""}]
[null,null,null,null,null,null,null,null,null,null,null,null,null,null,null,null,null,null,null,"―",null,null,null,null,null,null,null,null,null,null,null,null,null,null,null,null,null,null,null,null,null,null,null,null,null,null,null,null,null,null,null,null,null,null,null,null,null,null,null,"―"]
[null,"サイド",null,null,null,null,null,null,null,null,null,null,null,null,null,null,null,null,null,null,null,null,null,"サイド",null,null,null,null,null,null,null,null,null,null,null,null,null,null,null,null,null,"サイド",null,null,null,null,null,null,null,null,null,null,null,null,null,null,null,null,null,null,null,null,null,"サイド"]
[null,"S R",null,null,null,null,null,null,null,null,null,null,null,null,null,null,null,"　-①-　",null,null,null,null,null,"S R",null,null,null,null,null,null,null,null,null,null,null,null,null,null,null,null,null,"S R",null,null,null,null,null,null,null,null,null,null,null,null,null,null,null,"　-①-　",null,null,null,null,null,"S R"]
[]
[null,"S R",null,null,null,null,null,null,null,null,null,null,null,null,null,null,null,"　-②-　",null,null,null,null,null,"S R",null,null,null,null,null,null,null,null,null,null,null,null,null,null,null,null,null,"S R",null,null,null,null,null,null,null,null,null,null,null,null,null,null,null,"　-②-　",null,null,null,null,null,"S R"]
[]
[null,"S R",null,null,null,null,null,null,null,null,null,null,null,null,null,null,null,"　-③-　",null,null,null,null,null,"S R",null,null,null,null,null,null,null,null,null,null,null,null,null,null,null,null,null,"S R",null,null,null,null,null,null,null,null,null,null,null,null,null,null,null,"　-③-　",null,null,null,null,null,"S R"]
[]
[null,"S R",null,null,null,null,null,null,null,null,null,null,null,null,null,null,null,"　-④-　",null,null,null,null,null,"S R",null,null,null,null,null,null,null,null,null,null,null,null,null,null,null,null,null,"S R",null,null,null,null,null,null,null,null,null,null,null,null,null,null,null,"　-④-　",null,null,null,null,null,"S R"]
[]
[null,"S R",null,null,null,null,null,null,null,null,null,null,null,null,null,null,null,"　-⑤-　",null,null,null,null,null,"S R",null,null,null,null,null,null,null,null,null,null,null,null,null,null,null,null,null,"S R",null,null,null,null,null,null,null,null,null,null,null,null,null,null,null,"　-⑤-　",null,null,null,null,null,"S R"]
[]
[null,"S R",null,null,null,null,null,null,null,null,null,null,null,null,null,null,null,"　-⑥-　",null,null,null,null,null,"S R",null,null,null,null,null,null,null,null,null,null,null,null,null,null,null,null,null,"S R",null,null,null,null,null,null,null,null,null,null,null,null,null,null,null,"　-⑥-　",null,null,null,null,null,"S R"]
[]
[null,"S R",null,"*","*",null,null,"*","*",null,null,"*","*",null,null,"*","*","　-F-　",null,null,null,null,null,"S R",null,null,null,"*","*",null,null,"*","*",null,null,"*","*",null,null,null,null,"S R",null,"*","*",null,null,"*","*",null,null,"*","*",null,null,"*","*","　-F-　",null,null,null,null,null,"S R",null,null,null,"*","*",null,null,"*","*",null,null,"*","*"]
[null,null,null,null,null,"*","*",null,null,"*","*",null,null,"*","*",null,null,null,null,null,null,null,null,null,null,"*","*",null,null,"*","*",null,null,"*","*",null,null,"*","*",null,null,null,null,null,null,"*","*",null,null,"*","*",null,null,"*","*",null,null,null,null,null,null,null,null,null,null,"*","*",null,null,"*","*",null,null,"*","*",null,null,"*","*"]
[null,null,null,"*","*",null,null,"*","*",null,null,"*","*",null,null,"*","*",null,null,null,null,null,null,null,null,null,null,"*","*",null,null,"*","*",null,null,"*","*",null,null,null,null,null,null,"*","*",null,null,"*","*",null,null,"*","*",null,null,"*","*",null,null,null,null,null,null,null,null,null,null,"*","*",null,null,"*","*",null,null,"*","*"]
[null,"(警告）",null,"Y",null,null,"Y",null,null,"R",null,null,"タ イ ム",null,null,null,null,null,null,null,"タ イ ム",null,null,null,null,null,null,null,"(警告）",null,"Y",null,null,"Y",null,null,"R",null,null,null,null,"(警告）",null,"Y",null,null,"Y",null,null,"R",null,null,"タ イ ム",null,null,null,null,null,null,null,"タ イ ム",null,null,null,null,null,null,null,"(警告）",null,"Y",null,null,"Y",null,null,"R"]
[null,"該当事項",null,null,null,null,null,null,null,null,null,null,"　　　５　　・　　５",null,null,null,null,null,null,null,"　　　５　　・　　５",null,null,null,null,null,null,null,"該当事項",null,null,null,null,null,null,null,null,null,null,null,null,"該当事項",null,null,null,null,null,null,null,null,null,null,"　　　５　　・　　５",null,null,null,null,null,null,null,"　　　５　　・　　５",null,null,null,null,null,null,null,"該当事項"]
[]
[null,"勝者サイン\nNO.",null,null,null,null,null,null,null,null,null,"進行",null,null,null,null,null,null,null,null,"点検",null,null,null,null,null,null,null,null,null,"記録",null,null,null,null,null,null,null,null,null,null,"勝者サイン\nNO.",null,null,null,null,null,null,null,null,null,"進行",null,null,null,null,null,null,null,null,"点検",null,null,null,null,null,null,null,null,null,"記録"]
[]
[null,"千葉県ソフトテニス",null,null,null,null,null,null,null,null,null,null,null,null,null,null,null,null,null,null,null,null,null,null,null,null,null,null,null,null,null,null,null,null,null,null,null,null,null,null,null,"千葉県ソフトテニス"]
[]
[null,{"$f":"B3","v":"シングルス　スコアシート"},null,null,null,null,null,null,null,null,null,null,null,null,null,null,null,null,null,null,null,null,null,null,null,null,null,null,null,null,null,null,null,null,null,null,null,null,null,null,null,{"$f":"B3","v":"シングルス　スコアシート"}]
[null,"種別",null,null,{"$f":"IF('採点票(作成画面)'!$A$1=\"\",\"\",'採点票(作成画面)'!$A$1)","v":""},null,null,null,null,null,"第",null,{"$f":"IF('採点票(作成画面)'!C12=\"\",\"\",'採点票(作成画面)'!C12)","v":""},null,null,null,"コート",null,null,null,"　正審\n\n　　　　　　　",null,{"$f":"IF('採点票(作成画面)'!Q12=\"\",\"\",'採点票(作成画面)'!Q12&\".\"&\"   \"&'採点票(作成画面)'!R12)","v":""},null,null,null,null,null,null,null,"副審\n\n　　　　　　",null,null,null,null,null,null,null,null,null,null,"種別",null,null,{"$f":"IF('採点票(作成画面)'!$A$1=\"\",\"\",'採点票(作成画面)'!$A$1)","v":""},null,null,null,null,null,"第",null,{"$f":"IF('採点票(作成画面)'!C20=\"\",\"\",'採点票(作成画面)'!C20)","v":""},null,null,null,"コート",null,null,null,"  正審\n\n　　　　　　　",null,{"$f":"IF('採点票(作成画面)'!Q20=\"\",\"\",'採点票(作成画面)'!Q20&\".\"&\"   \"&'採点票(作成画面)'!R20)","v":""},null,null,null,null,null,null,null,"副審\n\n　　　　　　"]
[null,null,null,null,null,null,null,null,null,null,null,null,null,null,null,null,null,null,null,null,{"$f":"IF('採点票(作成画面)'!S12=\"\",\"\",'採点票(作成画面)'!S12&\".\"&\"   \"&'採点票(作成画面)'!T12)","v":""},null,null,null,null,null,null,null,null,null,null,null,null,null,null,null,null,null,null,null,null,null,null,null,null,null,null,null,null,null,null,null,null,null,null,null,null,null,null,null,{"$f":"IF('採点票(作成画面)'!S20=\"\",\"\",'採点票(作成画面)'!S20&\".\"&\"   \"&'採点票(作成画面)'!T20)","v":""}]
[null,{"$f":"IF('採点票(作成画面)'!D12=\"\",\"第　　　　回戦\",'採点票(作成画面)'!D12)","v":"第　　　　回戦"},null,null,null,null,null,null,null,null,"開始　　　　　　　：　　　　　",null,null,null,null,null,null,null,null,null,"線審\n\n　　　　　　　",null,null,null,null,null,null,null,null,null,"線審\n\n　　　　　　",null,null,null,null,null,null,null,null,null,null,{"$f":"IF('採点票(作成画面)'!D20=\"\",\"第　　　　回戦\",'採点票(作成画面)'!D20)","v":"第　　　　回戦"},null,null,null,null,null,null,null,null,"開始　　　　　　　：　　　　　",null,null,null,null,null,null,null,null,null,"線審\n\n　　　　　　　",null,null,null,null,null,null,null,null,null,"線審\n\n　　　　　　"]
[null,null,null,null,null,null,null,null,null,null,"終了　　　　　　　：　　　　　",null,null,null,null,null,null,null,null,null,null,null,null,null,null,null,null,null,null,null,null,null,null,null,null,null,null,null,null,null,null,null,null,null,null,null,null,null,null,null,"終了　　　　　　　：　　　　　"]
[null,"№",{"$f":"IF('採点票(作成画面)'!F12<>\"\",'採点票(作成画面)'!F12,\"\")","v":""},null,null,null,"所属",null,null,{"$f":"IFERROR('採点票(作成画面)'!I12,\"\")","v":""},null,null,null,null,null,null,null,"(スコアー）",null,null,null,null,null,"№",{"$f":"IF('採点票(作成画面)'!L12<>\"\",'採点票(作成画面)'!L12,\"\")","v":""},null,null,null,"所属",null,null,{"$f":"IFERROR('採点票(作成画面)'!O12,\"\")","v":""},null,null,null,null,null,null,null,null,null,"№",{"$f":"IF('採点票(作成画面)'!F20<>\"\",'採点票(作成画面)'!F20,\"\")","v":""},null,null,null,"所属",null,null,{"$f":"IFERROR('採点票(作成画面)'!I20,\"\")","v":""},null,null,null,null,null,null,null,"(スコアー）",null,null,null,null,null,"№",{"$f":"IF('採点票(作成画面)'!L20<>\"\",'採点票(作成画面)'!L20,\"\")","v":""},null,null,null,"所属",null,null,{"$f":"IFERROR('採点票(作成画面)'!O20,\"\")","v":""}]
[]
[null,"プレーヤー",null,null,null,{"$f":"IFERROR('採点票(作成画面)'!G12,\"\")","v":""},null,null,null,null,null,null,null,null,null,null,null,null,null,null,null,null,null,"プレーヤー",null,null,null,{"$f":"IFERROR('採点票(作成画面)'!M12,\"\")","v":""},null,null,null,null,null,null,null,null,null,null,null,null,null,"プレーヤー",null,null,null,{"$f":"IFERROR('採点票(作成画面)'!G20,\"\")","v":""},null,null,null,null,null,null,null,null,null,null,null,null,null,null,null,null,null,"プレーヤー",null,null,null,{"$f":"IFERROR('採点票(作成画面)'!M20,\"\")","v":""}]
[null,null,null,null,null,null,null,null,null,null,null,null,null,null,null,null,null,null,null,"―",null,null,null,null,null,null,null,null,null,null,null,null,null,null,null,null,null,null,null,null,null,null,null,null,null,null,null,null,null,null,null,null,null,null,null,null,null,null,null,"―"]
[null,"サイド",null,null,null,null,null,null,null,null,null,null,null,null,null,null,null,null,null,null,null,null,null,"サイド",null,null,null,null,null,null,null,null,null,null,null,null,null,null,null,null,null,"サイド",null,null,null,null,null,null,null,null,null,null,null,null,null,null,null,null,null,null,null,null,null,"サイド"]
[null,"S R",null,null,null,null,null,null,null,null,null,null,null,null,null,null,null,"　-①-　",null,null,null,null,null,"S R",null,null,null,null,null,null,null,null,null,null,null,null,null,null,null,null,null,"S R",null,null,null,null,null,null,null,null,null,null,null,null,null,null,null,"　-①-　",null,null,null,null,null,"S R"]
[]
[null,"S R",null,null,null,null,null,null,null,null,null,null,null,null,null,null,null,"　-②-　",null,null,null,null,null,"S R",null,null,null,null,null,null,null,null,null,null,null,null,null,null,null,null,null,"S R",null,null,null,null,null,null,null,null,null,null,null,null,null,null,null,"　-②-　",null,null,null,null,null,"S R"]
[]
[null,"S R",null,null,null,null,null,null,null,null,null,null,null,null,null,null,null,"　-③-　",null,null,null,null,null,"S R",null,null,null,null,null,null,null,null,null,null,null,null,null,null,null,null,null,"S R",null,null,null,null,null,null,null,null,null,null,null,null,null,null,null,"　-③-　",null,null,null,null,null,"S R"]
[]
[null,"S R",null,null,null,null,null,null,null,null,null,null,null,null,null,null,null,"　-④-　",null,null,null,null,null,"S R",null,null,null,null,null,null,null,null,null,null,null,null,null,null,null,null,null,"S R",null,null,null,null,null,null,null,null,null,null,null,null,null,null,null,"　-④-　",null,null,null,null,null,"S R"]
[]
[null,"S R",null,null,null,null,null,null,null,null,null,null,null,null,null,null,null,"　-⑤-　",null,null,null,null,null,"S R",null,null,null,null,null,null,null,null,null,null,null,null,null,null,null,null,null,"S R",null,null,null,null,null,null,null,null,null,null,null,null,null,null,null,"　-⑤-　",null,null,null,null,null,"S R"]
[]
[null,"S R",null,null,null,null,null,null,null,null,null,null,null,null,null,null,null,"　-⑥-　",null,null,null,null,null,"S R",null,null,null,null,null,null,null,null,null,null,null,null,null,null,null,null,null,"S R",null,null,null,null,null,null,null,null,null,null,null,null,null,null,null,"　-⑥-　",null,null,null,null,null,"S R"]
[]
[null,"S R",null,"*","*",null,null,"*","*",null,null,"*","*",null,null,"*","*","　-F-　",null,null,null,null,null,"S R",null,null,null,"*","*",null,null,"*","*",null,null,"*","*",null,null,null,null,"S R",null,"*","*",null,null,"*","*",null,null,"*","*",null,null,"*","*","　-F-　",null,null,null,null,null,"S R",null,null,null,"*","*",null,null,"*","*",null,null,"*","*"]
[null,null,null,null,null,"*","*",null,null,"*","*",null,null,"*","*",null,null,null,null,null,null,null,null,null,null,"*","*",null,null,"*","*",null,null,"*","*",null,null,"*","*",null,null,null,null,null,null,"*","*",null,null,"*","*",null,null,"*","*",null,null,null,null,null,null,null,null,null,null,"*","*",null,null,"*","*",null,null,"*","*",null,null,"*","*"]
[null,null,null,"*","*",null,null,"*","*",null,null,"*","*",null,null,"*","*",null,null,null,null,null,null,null,null,null,null,"*","*",null,null,"*","*",null,null,"*","*",null,null,null,null,null,null,"*","*",null,null,"*","*",null,null,"*","*",null,null,"*","*",null,null,null,null,null,null,null,null,null,null,"*","*",null,null,"*","*",null,null,"*","*"]
[null,"(警告）",null,"Y",null,null,"Y",null,null,"R",null,null,"タ イ ム",null,null,null,null,null,null,null,"タ イ ム",null,null,null,null,null,null,null,"(警告）",null,"Y",null,null,"Y",null,null,"R",null,null,null,null,"(警告）",null,"Y",null,null,"Y",null,null,"R",null,null,"タ イ ム",null,null,null,null,null,null,null,"タ イ ム",null,null,null,null,null,null,null,"(警告）",null,"Y",null,null,"Y",null,null,"R"]
[null,"該当事項",null,null,null,null,null,null,null,null,null,null,"　　　５　　・　　５",null,null,null,null,null,null,null,"　　　５　　・　　５",null,null,null,null,null,null,null,"該当事項",null,null,null,null,null,null,null,null,null,null,null,null,"該当事項",null,null,null,null,null,null,null,null,null,null,"　　　５　　・　　５",null,null,null,null,null,null,null,"　　　５　　・　　５",null,null,null,null,null,null,null,"該当事項"]
[]
[null,"勝者サイン\nNO.",null,null,null,null,null,null,null,null,null,"進行",null,null,null,null,null,null,null,null,"点検",null,null,null,null,null,null,null,null,null,"記録",null,null,null,null,null,null,null,null,null,null,"勝者サイン\nNO.",null,null,null,null,null,null,null,null,null,"進行",null,null,null,null,null,null,null,null,"点検",null,null,null,null,null,null,null,null,null,"記録"]
[]
[null,"千葉県ソフトテニス",null,null,null,null,null,null,null,null,null,null,null,null,null,null,null,null,null,null,null,null,null,null,null,null,null,null,null,null,null,null,null,null,null,null,null,null,null,null,null,"千葉県ソフトテニス"]